Workbook

Sheet Übersicht
A1: Generelles | C1: Semester 1 | E1: Semester2
A3: Gesamtnote | C3: Übersicht | E3: Übersicht | G3: andreas.leimer@gmx.at
A5: Notenskala | C5: Mitarbeit | E5: Mitarbeit | G5: CC-Lizenz BY ND
C7: Wiederholungen | E7: Wiederholungen
C9: Heftführung | E9: Heftführung
C11: Test 1 | E11: Test 3 | G11: !Achtung!
C13: Test 2 | E13: Test 4
A24: Anleitung
A29: Diese Beurteilungsdatei habe ich für das Unterrichtsfach GW (MS) erstellt. Änderbare Bereiche sind in ORANGE markiert. Wenn du einen Button (links oben) anklickst, kannst du schnell zwischen den Mappen wechseln. Der Löschen-Button setzt alle ausfüllbaren Felder zurück.
A30: Unter "Notenskala" kannst du die Ziffernnotenskala der ganzen Beurteilungsdatei ändern. Ebenso kannst du die Gewichtung der einzelnen Bereiche anpassen. ACHTUNG: Diese muss immer insgesamt 100% ergeben.
A31: Falls du eine Unterschiedliche Anzahl an Tests machst, gibt es dafür eine eigene Gewichtungsmöglichkeit die anpassbar ist. Diese findest du in den Semesterübersichten. Falls ein Schüler nur den zweiten Test macht, wird dieser Wert automatisch zum Test 1 übertragen. Die Prozentwerte bleiben richtig. Falls du gar keinen Test machst, musst du in den jeweiligen Mappen nichts eintragen. Die Tests sind in verschiedene Teilbereiche (A,B,C,...) gegliedert.
A32: Die Mitarbeitsbenotung kannst du über ein Drop-down Menü auswählen (K=Krank). Achte darauf, dass du immer ein Datum eingibst, wann die Mitarbeit bewertet wurde. Sonst wird sie nicht gezählt. (überprüfe "Stunden bis jetzt")
A33: Zusätzlich zur ausgerechneten Note, gibt es noch die Möglichkeit eine eigene Note zu vermerken (Bei Zwischennoten). Diese zählen nicht zur Berechnung dazu. (Lehrernoten)

Sheet Gesamtnote
A1: zurück
B2: Nr. | C2: Name | D2: J Lehrer | E2: Note | F2: h | G2: i | H2: Gesamt | I2: S1 Lehrer | J2: S2 Lehrer | K2: S1 | L2: S2 | M2: h | N2: i | AC2: =Notenskala!B4 -> Nicht Beurteilt | AD2: =Notenskala!C4 -> K/NB | AE2: =Notenskala!D4 -> K/NB | AF2: =Notenskala!E4 -> K/NB
B3: 1 | C3: Schüler 1 | E3: =IFERROR(IF(H3=0,"",VLOOKUP(H3,Notenskala!$D$4:$E$9,2,TRUE)),"") -> 5 | F3: =IF(O3<2%,"h",IF(O3<4%,"k"," ")) -> h | G3: =IF(P3<2%,"i",IF(P3<4%,"m"," ")) -> i | H3: =SUMPRODUCT(K3:L3,$K$29:$L$29)/SUM($K$29:$L$29) -> 0.3901134178 | I3: =IF('Semester 1'!D3=0,"",'Semester 1'!D3) -> 2 | J3: =IF('Semester 2'!D3=0,"",'Semester 1'!E3) ->  | K3: ='Semester 1'!H3 -> 0.8669187063 | L3: =IFERROR('Semester 2'!H3,"") -> 0 | M3: =IFERROR(IF(E3=1,"",IF(E3=2,Notenskala!$D$9-H3,IF(E3=3,Notenskala!$D$8-H3,IF(E3=4,Notenskala!$D$7-H3,IF(E3=5,Notenskala!$D$6-H3))))),"") -> 0.1098865822 | N3: =IFERROR(IF(E3=1,H3-Notenskala!$C$8,IF(E3=2,H3-Notenskala!$C$7,IF(E3=3,H3-Notenskala!$C$6,IF(E3=4,H3-Notenskala!$C$5,IF(E3=5,""))))),"") ->  | AC3: =Notenskala!B5 -> Nicht Genügend | AD3: =Notenskala!C5 -> 0.4999 | AE3: =Notenskala!D5 -> 0 | AF3: =Notenskala!E5 -> 5
B4: 2 | C4: Schüler 2 | E4: =IFERROR(IF(H4=0,"",VLOOKUP(H4,Notenskala!$D$4:$E$9,2,TRUE)),"") -> 5 | F4: h | G4: i | H4: 0.4404375 | I4: =IF('Semester 1'!D4=0,"",'Semester 1'!D4) -> 1 | J4: =IF('Semester 2'!D4=0,"",'Semester 1'!E4) ->  | K4: ='Semester 1'!H4 -> 0.97875 | L4: =IFERROR('Semester 2'!H4,"") -> 0 | M4: =IFERROR(IF(E4=1,"",IF(E4=2,Notenskala!$D$9-H4,IF(E4=3,Notenskala!$D$8-H4,IF(E4=4,Notenskala!$D$7-H4,IF(E4=5,Notenskala!$D$6-H4))))),"") -> 0.0595625 | N4: =IFERROR(IF(E4=1,H4-Notenskala!$C$8,IF(E4=2,H4-Notenskala!$C$7,IF(E4=3,H4-Notenskala!$C$6,IF(E4=4,H4-Notenskala!$C$5,IF(E4=5,""))))),"") ->  | AC4: =Notenskala!B6 -> Genügend | AD4: =Notenskala!C6 -> 0.6499 | AE4: =Notenskala!D6 -> 0.5 | AF4: =Notenskala!E6 -> 4
B5: 3 | C5: Schüler 3 | E5: =IFERROR(IF(H5=0,"",VLOOKUP(H5,Notenskala!$D$4:$E$9,2,TRUE)),"") -> 5 | F5: h | G5: i | H5: 0.3596420455 | I5: =IF('Semester 1'!D5=0,"",'Semester 1'!D5) -> 2 | J5: =IF('Semester 2'!D5=0,"",'Semester 1'!E5) ->  | K5: ='Semester 1'!H5 -> 0.7992045455 | L5: =IFERROR('Semester 2'!H5,"") -> 0 | M5: =IFERROR(IF(E5=1,"",IF(E5=2,Notenskala!$D$9-H5,IF(E5=3,Notenskala!$D$8-H5,IF(E5=4,Notenskala!$D$7-H5,IF(E5=5,Notenskala!$D$6-H5))))),"") -> 0.1403579545 | N5: =IFERROR(IF(E5=1,H5-Notenskala!$C$8,IF(E5=2,H5-Notenskala!$C$7,IF(E5=3,H5-Notenskala!$C$6,IF(E5=4,H5-Notenskala!$C$5,IF(E5=5,""))))),"") ->  | AC5: =Notenskala!B7 -> Befriedigend | AD5: =Notenskala!C7 -> 0.8099 | AE5: =Notenskala!D7 -> 0.65 | AF5: =Notenskala!E7 -> 3
B6: 4 | C6: Schüler 4 | E6: =IFERROR(IF(H6=0,"",VLOOKUP(H6,Notenskala!$D$4:$E$9,2,TRUE)),"") -> 5 | F6: h | G6: i | H6: 0.428625 | I6: =IF('Semester 1'!D6=0,"",'Semester 1'!D6) -> 1 | J6: =IF('Semester 2'!D6=0,"",'Semester 1'!E6) ->  | K6: ='Semester 1'!H6 -> 0.9525 | L6: =IFERROR('Semester 2'!H6,"") -> 0 | M6: =IFERROR(IF(E6=1,"",IF(E6=2,Notenskala!$D$9-H6,IF(E6=3,Notenskala!$D$8-H6,IF(E6=4,Notenskala!$D$7-H6,IF(E6=5,Notenskala!$D$6-H6))))),"") -> 0.071375 | N6: =IFERROR(IF(E6=1,H6-Notenskala!$C$8,IF(E6=2,H6-Notenskala!$C$7,IF(E6=3,H6-Notenskala!$C$6,IF(E6=4,H6-Notenskala!$C$5,IF(E6=5,""))))),"") ->  | AC6: =Notenskala!B8 -> Gut | AD6: =Notenskala!C8 -> 0.9099 | AE6: =Notenskala!D8 -> 0.81 | AF6: =Notenskala!E8 -> 2
B7: 5 | C7: Schüler 5 | E7: =IFERROR(IF(H7=0,"",VLOOKUP(H7,Notenskala!$D$4:$E$9,2,TRUE)),"") -> 5 | F7: h | G7: i | H7: 0.3751766827 | I7: =IF('Semester 1'!D7=0,"",'Semester 1'!D7) -> 2 | J7: =IF('Semester 2'!D7=0,"",'Semester 1'!E7) ->  | K7: ='Semester 1'!H7 -> 0.8337259615 | L7: =IFERROR('Semester 2'!H7,"") -> 0 | M7: =IFERROR(IF(E7=1,"",IF(E7=2,Notenskala!$D$9-H7,IF(E7=3,Notenskala!$D$8-H7,IF(E7=4,Notenskala!$D$7-H7,IF(E7=5,Notenskala!$D$6-H7))))),"") -> 0.1248233173 | N7: =IFERROR(IF(E7=1,H7-Notenskala!$C$8,IF(E7=2,H7-Notenskala!$C$7,IF(E7=3,H7-Notenskala!$C$6,IF(E7=4,H7-Notenskala!$C$5,IF(E7=5,""))))),"") ->  | AC7: =Notenskala!B9 -> Sehr Gut | AD7: =Notenskala!C9 -> 1 | AE7: =Notenskala!D9 -> 0.91 | AF7: =Notenskala!E9 -> 1
B8: 6 | C8: Schüler 6 | E8: =IFERROR(IF(H8=0,"",VLOOKUP(H8,Notenskala!$D$4:$E$9,2,TRUE)),"") -> 5 | F8: h | G8: i | H8: 0.43875 | I8: =IF('Semester 1'!D8=0,"",'Semester 1'!D8) -> 1 | J8: =IF('Semester 2'!D8=0,"",'Semester 1'!E8) ->  | K8: ='Semester 1'!H8 -> 0.975 | L8: =IFERROR('Semester 2'!H8,"") -> 0 | M8: =IFERROR(IF(E8=1,"",IF(E8=2,Notenskala!$D$9-H8,IF(E8=3,Notenskala!$D$8-H8,IF(E8=4,Notenskala!$D$7-H8,IF(E8=5,Notenskala!$D$6-H8))))),"") -> 0.06125 | N8: =IFERROR(IF(E8=1,H8-Notenskala!$C$8,IF(E8=2,H8-Notenskala!$C$7,IF(E8=3,H8-Notenskala!$C$6,IF(E8=4,H8-Notenskala!$C$5,IF(E8=5,""))))),"") -> 
B9: 7 | C9: Schüler 7 | E9: =IFERROR(IF(H9=0,"",VLOOKUP(H9,Notenskala!$D$4:$E$9,2,TRUE)),"") -> 5 | F9: h | G9: i | H9: 0.37625 | I9: =IF('Semester 1'!D9=0,"",'Semester 1'!D9) -> 2 | J9: =IF('Semester 2'!D9=0,"",'Semester 1'!E9) ->  | K9: ='Semester 1'!H9 -> 0.8361111111 | L9: =IFERROR('Semester 2'!H9,"") -> 0 | M9: =IFERROR(IF(E9=1,"",IF(E9=2,Notenskala!$D$9-H9,IF(E9=3,Notenskala!$D$8-H9,IF(E9=4,Notenskala!$D$7-H9,IF(E9=5,Notenskala!$D$6-H9))))),"") -> 0.12375 | N9: =IFERROR(IF(E9=1,H9-Notenskala!$C$8,IF(E9=2,H9-Notenskala!$C$7,IF(E9=3,H9-Notenskala!$C$6,IF(E9=4,H9-Notenskala!$C$5,IF(E9=5,""))))),"") -> 
B10: 8 | C10: Schüler 8 | E10: =IFERROR(IF(H10=0,"",VLOOKUP(H10,Notenskala!$D$4:$E$9,2,TRUE)),"") -> 5 | F10: h | G10: i | H10: 0.3086919643 | I10: =IF('Semester 1'!D10=0,"",'Semester 1'!D10) -> 3 | J10: =IF('Semester 2'!D10=0,"",'Semester 1'!E10) ->  | K10: ='Semester 1'!H10 -> 0.6859821429 | L10: =IFERROR('Semester 2'!H10,"") -> 0 | M10: =IFERROR(IF(E10=1,"",IF(E10=2,Notenskala!$D$9-H10,IF(E10=3,Notenskala!$D$8-H10,IF(E10=4,Notenskala!$D$7-H10,IF(E10=5,Notenskala!$D$6-H10))))),"") -> 0.1913080357 | N10: =IFERROR(IF(E10=1,H10-Notenskala!$C$8,IF(E10=2,H10-Notenskala!$C$7,IF(E10=3,H10-Notenskala!$C$6,IF(E10=4,H10-Notenskala!$C$5,IF(E10=5,""))))),"") -> 
B11: 9 | C11: Schüler 9 | E11: =IFERROR(IF(H11=0,"",VLOOKUP(H11,Notenskala!$D$4:$E$9,2,TRUE)),"") -> 5 | F11: h | G11: i | H11: 0.3660888799 | I11: =IF('Semester 1'!D11=0,"",'Semester 1'!D11) -> 2 | J11: =IF('Semester 2'!D11=0,"",'Semester 1'!E11) ->  | K11: ='Semester 1'!H11 -> 0.8135308442 | L11: =IFERROR('Semester 2'!H11,"") -> 0 | M11: =IFERROR(IF(E11=1,"",IF(E11=2,Notenskala!$D$9-H11,IF(E11=3,Notenskala!$D$8-H11,IF(E11=4,Notenskala!$D$7-H11,IF(E11=5,Notenskala!$D$6-H11))))),"") -> 0.1339111201 | N11: =IFERROR(IF(E11=1,H11-Notenskala!$C$8,IF(E11=2,H11-Notenskala!$C$7,IF(E11=3,H11-Notenskala!$C$6,IF(E11=4,H11-Notenskala!$C$5,IF(E11=5,""))))),"") -> 
B12: 10 | C12: Schüler 10 | E12: =IFERROR(IF(H12=0,"",VLOOKUP(H12,Notenskala!$D$4:$E$9,2,TRUE)),"") -> 5 | F12: h | G12: i | H12: 0.3423816964 | I12: =IF('Semester 1'!D12=0,"",'Semester 1'!D12) -> 3 | J12: =IF('Semester 2'!D12=0,"",'Semester 1'!E12) ->  | K12: ='Semester 1'!H12 -> 0.7608482143 | L12: =IFERROR('Semester 2'!H12,"") -> 0 | M12: =IFERROR(IF(E12=1,"",IF(E12=2,Notenskala!$D$9-H12,IF(E12=3,Notenskala!$D$8-H12,IF(E12=4,Notenskala!$D$7-H12,IF(E12=5,Notenskala!$D$6-H12))))),"") -> 0.1576183036 | N12: =IFERROR(IF(E12=1,H12-Notenskala!$C$8,IF(E12=2,H12-Notenskala!$C$7,IF(E12=3,H12-Notenskala!$C$6,IF(E12=4,H12-Notenskala!$C$5,IF(E12=5,""))))),"") -> 
B13: 11 | C13: Schüler 11 | E13: =IFERROR(IF(H13=0,"",VLOOKUP(H13,Notenskala!$D$4:$E$9,2,TRUE)),"") -> 5 | F13: h | G13: i | H13: 0.3927857143 | I13: =IF('Semester 1'!D13=0,"",'Semester 1'!D13) -> 2 | J13: =IF('Semester 2'!D13=0,"",'Semester 1'!E13) ->  | K13: ='Semester 1'!H13 -> 0.8728571429 | L13: =IFERROR('Semester 2'!H13,"") -> 0 | M13: =IFERROR(IF(E13=1,"",IF(E13=2,Notenskala!$D$9-H13,IF(E13=3,Notenskala!$D$8-H13,IF(E13=4,Notenskala!$D$7-H13,IF(E13=5,Notenskala!$D$6-H13))))),"") -> 0.1072142857 | N13: =IFERROR(IF(E13=1,H13-Notenskala!$C$8,IF(E13=2,H13-Notenskala!$C$7,IF(E13=3,H13-Notenskala!$C$6,IF(E13=4,H13-Notenskala!$C$5,IF(E13=5,""))))),"") -> 
B14: 12 | C14: Schüler 12 | E14: =IFERROR(IF(H14=0,"",VLOOKUP(H14,Notenskala!$D$4:$E$9,2,TRUE)),"") -> 5 | F14: h | G14: i | H14: 0.4085357143 | I14: =IF('Semester 1'!D14=0,"",'Semester 1'!D14) -> 1 | J14: =IF('Semester 2'!D14=0,"",'Semester 1'!E14) ->  | K14: ='Semester 1'!H14 -> 0.9078571429 | L14: =IFERROR('Semester 2'!H14,"") -> 0 | M14: =IFERROR(IF(E14=1,"",IF(E14=2,Notenskala!$D$9-H14,IF(E14=3,Notenskala!$D$8-H14,IF(E14=4,Notenskala!$D$7-H14,IF(E14=5,Notenskala!$D$6-H14))))),"") -> 0.09146428571 | N14: =IFERROR(IF(E14=1,H14-Notenskala!$C$8,IF(E14=2,H14-Notenskala!$C$7,IF(E14=3,H14-Notenskala!$C$6,IF(E14=4,H14-Notenskala!$C$5,IF(E14=5,""))))),"") -> 
B15: 13 | C15: Schüler 13 | E15: =IFERROR(IF(H15=0,"",VLOOKUP(H15,Notenskala!$D$4:$E$9,2,TRUE)),"") -> 5 | F15: h | G15: i | H15: 0.3400714286 | I15: =IF('Semester 1'!D15=0,"",'Semester 1'!D15) -> 3 | J15: =IF('Semester 2'!D15=0,"",'Semester 1'!E15) ->  | K15: ='Semester 1'!H15 -> 0.7557142857 | L15: =IFERROR('Semester 2'!H15,"") -> 0 | M15: =IFERROR(IF(E15=1,"",IF(E15=2,Notenskala!$D$9-H15,IF(E15=3,Notenskala!$D$8-H15,IF(E15=4,Notenskala!$D$7-H15,IF(E15=5,Notenskala!$D$6-H15))))),"") -> 0.1599285714 | N15: =IFERROR(IF(E15=1,H15-Notenskala!$C$8,IF(E15=2,H15-Notenskala!$C$7,IF(E15=3,H15-Notenskala!$C$6,IF(E15=4,H15-Notenskala!$C$5,IF(E15=5,""))))),"") -> 
B16: 14 | C16: Schüler 14 | E16: =IFERROR(IF(H16=0,"",VLOOKUP(H16,Notenskala!$D$4:$E$9,2,TRUE)),"") -> 5 | F16: h | G16: i | H16: 0.3946339286 | I16: =IF('Semester 1'!D16=0,"",'Semester 1'!D16) -> 2 | J16: =IF('Semester 2'!D16=0,"",'Semester 1'!E16) ->  | K16: ='Semester 1'!H16 -> 0.8769642857 | L16: =IFERROR('Semester 2'!H16,"") -> 0 | M16: =IFERROR(IF(E16=1,"",IF(E16=2,Notenskala!$D$9-H16,IF(E16=3,Notenskala!$D$8-H16,IF(E16=4,Notenskala!$D$7-H16,IF(E16=5,Notenskala!$D$6-H16))))),"") -> 0.1053660714 | N16: =IFERROR(IF(E16=1,H16-Notenskala!$C$8,IF(E16=2,H16-Notenskala!$C$7,IF(E16=3,H16-Notenskala!$C$6,IF(E16=4,H16-Notenskala!$C$5,IF(E16=5,""))))),"") -> 
B17: 15 | C17: Schüler 15 | E17: =IFERROR(IF(H17=0,"",VLOOKUP(H17,Notenskala!$D$4:$E$9,2,TRUE)),"") -> 5 | F17: h | G17: i | H17: 0.4264553571 | I17: =IF('Semester 1'!D17=0,"",'Semester 1'!D17) -> 1 | J17: =IF('Semester 2'!D17=0,"",'Semester 1'!E17) ->  | K17: ='Semester 1'!H17 -> 0.9476785714 | L17: =IFERROR('Semester 2'!H17,"") -> 0 | M17: =IFERROR(IF(E17=1,"",IF(E17=2,Notenskala!$D$9-H17,IF(E17=3,Notenskala!$D$8-H17,IF(E17=4,Notenskala!$D$7-H17,IF(E17=5,Notenskala!$D$6-H17))))),"") -> 0.07354464286 | N17: =IFERROR(IF(E17=1,H17-Notenskala!$C$8,IF(E17=2,H17-Notenskala!$C$7,IF(E17=3,H17-Notenskala!$C$6,IF(E17=4,H17-Notenskala!$C$5,IF(E17=5,""))))),"") -> 
B18: 16 | C18: Schüler 16 | E18: =IFERROR(IF(H18=0,"",VLOOKUP(H18,Notenskala!$D$4:$E$9,2,TRUE)),"") -> 5 | F18: h | G18: i | H18: 0.4461490385 | I18: =IF('Semester 1'!D18=0,"",'Semester 1'!D18) -> 1 | J18: =IF('Semester 2'!D18=0,"",'Semester 1'!E18) ->  | K18: ='Semester 1'!H18 -> 0.9914423077 | L18: =IFERROR('Semester 2'!H18,"") -> 0 | M18: =IFERROR(IF(E18=1,"",IF(E18=2,Notenskala!$D$9-H18,IF(E18=3,Notenskala!$D$8-H18,IF(E18=4,Notenskala!$D$7-H18,IF(E18=5,Notenskala!$D$6-H18))))),"") -> 0.05385096154 | N18: =IFERROR(IF(E18=1,H18-Notenskala!$C$8,IF(E18=2,H18-Notenskala!$C$7,IF(E18=3,H18-Notenskala!$C$6,IF(E18=4,H18-Notenskala!$C$5,IF(E18=5,""))))),"") -> 
B19: 17 | C19: Schüler 17 | E19: =IFERROR(IF(H19=0,"",VLOOKUP(H19,Notenskala!$D$4:$E$9,2,TRUE)),"") -> 5 | F19: h | G19: i | H19: 0.3696201923 | I19: =IF('Semester 1'!D19=0,"",'Semester 1'!D19) -> 2 | J19: =IF('Semester 2'!D19=0,"",'Semester 1'!E19) ->  | K19: ='Semester 1'!H19 -> 0.8213782051 | L19: =IFERROR('Semester 2'!H19,"") -> 0 | M19: =IFERROR(IF(E19=1,"",IF(E19=2,Notenskala!$D$9-H19,IF(E19=3,Notenskala!$D$8-H19,IF(E19=4,Notenskala!$D$7-H19,IF(E19=5,Notenskala!$D$6-H19))))),"") -> 0.1303798077 | N19: =IFERROR(IF(E19=1,H19-Notenskala!$C$8,IF(E19=2,H19-Notenskala!$C$7,IF(E19=3,H19-Notenskala!$C$6,IF(E19=4,H19-Notenskala!$C$5,IF(E19=5,""))))),"") -> 
B20: 18 | C20: Schüler 18 | E20: =IFERROR(IF(H20=0,"",VLOOKUP(H20,Notenskala!$D$4:$E$9,2,TRUE)),"") -> 5 | F20: h | G20: i | H20: 0.4262946429 | I20: =IF('Semester 1'!D20=0,"",'Semester 1'!D20) -> 1 | J20: =IF('Semester 2'!D20=0,"",'Semester 1'!E20) ->  | K20: ='Semester 1'!H20 -> 0.9473214286 | L20: =IFERROR('Semester 2'!H20,"") -> 0 | M20: =IFERROR(IF(E20=1,"",IF(E20=2,Notenskala!$D$9-H20,IF(E20=3,Notenskala!$D$8-H20,IF(E20=4,Notenskala!$D$7-H20,IF(E20=5,Notenskala!$D$6-H20))))),"") -> 0.07370535714 | N20: =IFERROR(IF(E20=1,H20-Notenskala!$C$8,IF(E20=2,H20-Notenskala!$C$7,IF(E20=3,H20-Notenskala!$C$6,IF(E20=4,H20-Notenskala!$C$5,IF(E20=5,""))))),"") -> 
B21: 19 | C21: Schüler 19 | E21: =IFERROR(IF(H21=0,"",VLOOKUP(H21,Notenskala!$D$4:$E$9,2,TRUE)),"") -> 5 | F21: h | G21: i | H21: 0.3652232143 | I21: =IF('Semester 1'!D21=0,"",'Semester 1'!D21) -> 2 | J21: =IF('Semester 2'!D21=0,"",'Semester 1'!E21) ->  | K21: ='Semester 1'!H21 -> 0.8116071429 | L21: =IFERROR('Semester 2'!H21,"") -> 0 | M21: =IFERROR(IF(E21=1,"",IF(E21=2,Notenskala!$D$9-H21,IF(E21=3,Notenskala!$D$8-H21,IF(E21=4,Notenskala!$D$7-H21,IF(E21=5,Notenskala!$D$6-H21))))),"") -> 0.1347767857 | N21: =IFERROR(IF(E21=1,H21-Notenskala!$C$8,IF(E21=2,H21-Notenskala!$C$7,IF(E21=3,H21-Notenskala!$C$6,IF(E21=4,H21-Notenskala!$C$5,IF(E21=5,""))))),"") -> 
B22: 20 | C22: Schüler 20 | E22: =IFERROR(IF(H22=0,"",VLOOKUP(H22,Notenskala!$D$4:$E$9,2,TRUE)),"") -> 5 | F22: h | G22: i | H22: 0.41484375 | I22: =IF('Semester 1'!D22=0,"",'Semester 1'!D22) -> 1 | J22: =IF('Semester 2'!D22=0,"",'Semester 1'!E22) ->  | K22: ='Semester 1'!H22 -> 0.921875 | L22: =IFERROR('Semester 2'!H22,"") -> 0 | M22: =IFERROR(IF(E22=1,"",IF(E22=2,Notenskala!$D$9-H22,IF(E22=3,Notenskala!$D$8-H22,IF(E22=4,Notenskala!$D$7-H22,IF(E22=5,Notenskala!$D$6-H22))))),"") -> 0.08515625 | N22: =IFERROR(IF(E22=1,H22-Notenskala!$C$8,IF(E22=2,H22-Notenskala!$C$7,IF(E22=3,H22-Notenskala!$C$6,IF(E22=4,H22-Notenskala!$C$5,IF(E22=5,""))))),"") -> 
B23: 21 | C23: Schüler 21 | E23: =IFERROR(IF(H23=0,"",VLOOKUP(H23,Notenskala!$D$4:$E$9,2,TRUE)),"") -> 5 | F23: h | G23: i | H23: 0.3392276786 | I23: =IF('Semester 1'!D23=0,"",'Semester 1'!D23) -> 3 | J23: =IF('Semester 2'!D23=0,"",'Semester 1'!E23) ->  | K23: ='Semester 1'!H23 -> 0.7538392857 | L23: =IFERROR('Semester 2'!H23,"") -> 0 | M23: =IFERROR(IF(E23=1,"",IF(E23=2,Notenskala!$D$9-H23,IF(E23=3,Notenskala!$D$8-H23,IF(E23=4,Notenskala!$D$7-H23,IF(E23=5,Notenskala!$D$6-H23))))),"") -> 0.1607723214 | N23: =IFERROR(IF(E23=1,H23-Notenskala!$C$8,IF(E23=2,H23-Notenskala!$C$7,IF(E23=3,H23-Notenskala!$C$6,IF(E23=4,H23-Notenskala!$C$5,IF(E23=5,""))))),"") -> 
B24: 22 | C24: Schüler 22 | E24: =IFERROR(IF(H24=0,"",VLOOKUP(H24,Notenskala!$D$4:$E$9,2,TRUE)),"") -> 5 | F24: h | G24: i | H24: 0.3609642857 | I24: =IF('Semester 1'!D24=0,"",'Semester 1'!D24) -> 2 | J24: =IF('Semester 2'!D24=0,"",'Semester 1'!E24) ->  | K24: ='Semester 1'!H24 -> 0.8021428571 | L24: =IFERROR('Semester 2'!H24,"") -> 0 | M24: =IFERROR(IF(E24=1,"",IF(E24=2,Notenskala!$D$9-H24,IF(E24=3,Notenskala!$D$8-H24,IF(E24=4,Notenskala!$D$7-H24,IF(E24=5,Notenskala!$D$6-H24))))),"") -> 0.1390357143 | N24: =IFERROR(IF(E24=1,H24-Notenskala!$C$8,IF(E24=2,H24-Notenskala!$C$7,IF(E24=3,H24-Notenskala!$C$6,IF(E24=4,H24-Notenskala!$C$5,IF(E24=5,""))))),"") -> 
B25: 23 | E25: =IFERROR(IF(H25=0,"",VLOOKUP(H25,Notenskala!$D$4:$E$9,2,TRUE)),"") ->  | F25: h | G25: i | H25: 0 | I25: =IF('Semester 1'!D25=0,"",'Semester 1'!D25) ->  | J25: =IF('Semester 2'!D25=0,"",'Semester 1'!E25) ->  | K25: ='Semester 1'!H25 -> 0 | L25: =IFERROR('Semester 2'!H25,"") -> 0 | M25: =IFERROR(IF(E25=1,"",IF(E25=2,Notenskala!$D$9-H25,IF(E25=3,Notenskala!$D$8-H25,IF(E25=4,Notenskala!$D$7-H25,IF(E25=5,Notenskala!$D$6-H25))))),"") -> FALSE | N25: =IFERROR(IF(E25=1,H25-Notenskala!$C$8,IF(E25=2,H25-Notenskala!$C$7,IF(E25=3,H25-Notenskala!$C$6,IF(E25=4,H25-Notenskala!$C$5,IF(E25=5,""))))),"") -> FALSE
B26: 24 | E26: =IFERROR(IF(H26=0,"",VLOOKUP(H26,Notenskala!$D$4:$E$9,2,TRUE)),"") ->  | F26: h | G26: i | H26: 0 | I26: =IF('Semester 1'!D26=0,"",'Semester 1'!D26) ->  | J26: =IF('Semester 2'!D26=0,"",'Semester 1'!E26) ->  | K26: ='Semester 1'!H26 -> 0 | L26: =IFERROR('Semester 2'!H26,"") -> 0 | M26: =IFERROR(IF(E26=1,"",IF(E26=2,Notenskala!$D$9-H26,IF(E26=3,Notenskala!$D$8-H26,IF(E26=4,Notenskala!$D$7-H26,IF(E26=5,Notenskala!$D$6-H26))))),"") -> FALSE | N26: =IFERROR(IF(E26=1,H26-Notenskala!$C$8,IF(E26=2,H26-Notenskala!$C$7,IF(E26=3,H26-Notenskala!$C$6,IF(E26=4,H26-Notenskala!$C$5,IF(E26=5,""))))),"") -> FALSE
B27: 25 | E27: =IFERROR(IF(H27=0,"",VLOOKUP(H27,Notenskala!$D$4:$E$9,2,TRUE)),"") ->  | F27: h | G27: i | H27: 0 | I27: =IF('Semester 1'!D27=0,"",'Semester 1'!D27) ->  | J27: =IF('Semester 2'!D27=0,"",'Semester 1'!E27) ->  | K27: ='Semester 1'!H27 -> 0 | L27: =IFERROR('Semester 2'!H27,"") -> 0 | M27: =IFERROR(IF(E27=1,"",IF(E27=2,Notenskala!$D$9-H27,IF(E27=3,Notenskala!$D$8-H27,IF(E27=4,Notenskala!$D$7-H27,IF(E27=5,Notenskala!$D$6-H27))))),"") -> FALSE | N27: =IFERROR(IF(E27=1,H27-Notenskala!$C$8,IF(E27=2,H27-Notenskala!$C$7,IF(E27=3,H27-Notenskala!$C$6,IF(E27=4,H27-Notenskala!$C$5,IF(E27=5,""))))),"") -> FALSE
J29: Gewichtung | K29: 0.45 | L29: 0.55 | O29: =SUM(K29:L29) -> 1
J30: MUSS immer 100 ergeben!
J31: für Ursprungswerte --> runterscrollen!
J50: #Default
J51: Gewichtung | K51: 0.45 | L51: 0.55

Sheet Notenskala
A1: zurück
B2: Notenskala
B4: Nicht Beurteilt | C4: K/NB | D4: K/NB | E4: K/NB
B5: Nicht Genügend | C5: =D6-0.01% -> 0.4999 | D5: 0 | E5: 5
B6: Genügend | C6: =D7-0.01% -> 0.6499 | D6: 0.5 | E6: 4
B7: Befriedigend | C7: 0.8099 | D7: 0.65 | E7: 3
B8: Gut | C8: 0.9099 | D8: 0.81 | E8: 2
B9: Sehr Gut | C9: =100% -> 1 | D9: 0.91 | E9: 1
B11: für ursprüngliche Prozente --> runterscrollen!
B43: #Default
B44: Nicht Beurteilt | D44: K/NB | E44: K/NB
B45: Nicht Genügend | D45: 0 | E45: 5
B46: Genügend | D46: 0.5 | E46: 4
B47: Befriedigend | D47: 0.65 | E47: 3
B48: Gut | D48: 0.81 | E48: 2
B49: Sehr Gut | D49: 0.91 | E49: 1

Sheet Semester 1
A1: zurück
B2: Nr. | C2: Name | D2: S1 Lehrer | E2: Note | F2: h | G2: i | H2: Gesamt | I2: MA | J2: Heft | K2: Wdh | L2: Test 1 | M2: Test 2 | N2: Test gemacht? | O2: h | P2: i | AB2: =Notenskala!B4 -> Nicht Beurteilt | AC2: =Notenskala!C4 -> K/NB | AD2: =Notenskala!D4 -> K/NB | AE2: =Notenskala!E4 -> K/NB
B3: 1 | C3: =IF(Gesamtnote!C3=0,"",Gesamtnote!C3) -> Schüler 1 | D3: 2 | E3: =IFERROR(IF(H3=0,"",VLOOKUP(H3,Notenskala!$D$4:$E$9,2,TRUE)),"") -> 2 | F3: =IF(O3<2%,"h",IF(O3<4%,"k"," ")) ->  | G3: =IF(P3<2%,"i",IF(P3<4%,"m"," ")) ->  | H3: =IFERROR(_xlfn.IFS(N3=2,SUMPRODUCT(I3:M3,$I$29:$M$29)/SUM($I$29:$M$29),N3=1,SUMPRODUCT(I3:L3,$I$30:$L$30)/SUM($I$30:$L$30),N3=0,SUMPRODUCT(I3:K3,$I$31:$K$31)/SUM($I$31:$K$31)),"") -> 0.8669187063 | I3: ='MA 1'!E3 -> 0.8846153846 | J3: ='Heft 1'!E3 -> 0.8 | K3: ='Wdh 1'!E6 -> 0.8863636364 | L3: =IF('Test 1.1'!E4="K/NB",'Test 1.2'!E4,'Test 1.1'!E4) -> 0.9375 | M3: =IF('Test 1.1'!E4="K/NB","K/NB",'Test 1.2'!E4) -> 0.84375 | N3: =COUNT(L3:M3) -> 2 | O3: =IFERROR(IF(E3=1,"",IF(E3=2,Notenskala!$D$9-H3,IF(E3=3,Notenskala!$D$8-H3,IF(E3=4,Notenskala!$D$7-H3,IF(E3=5,Notenskala!$D$6-H3))))),"") -> 0.04308129371 | P3: =IFERROR(IF(E3=1,H3-Notenskala!$C$8,IF(E3=2,H3-Notenskala!$C$7,IF(E3=3,H3-Notenskala!$C$6,IF(E3=4,H3-Notenskala!$C$5,IF(E3=5,""))))),"") -> 0.05701870629 | AB3: =Notenskala!B5 -> Nicht Genügend | AC3: =Notenskala!C5 -> 0.4999 | AD3: =Notenskala!D5 -> 0 | AE3: =Notenskala!E5 -> 5
B4: 2 | C4: =IF(Gesamtnote!C4=0,"",Gesamtnote!C4) -> Schüler 2 | D4: 1 | E4: =IFERROR(IF(H4=0,"",VLOOKUP(H4,Notenskala!$D$4:$E$9,2,TRUE)),"") -> 1 | H4: =IFERROR(_xlfn.IFS(N4=2,SUMPRODUCT(I4:M4,$I$29:$M$29)/SUM($I$29:$M$29),N4=1,SUMPRODUCT(I4:L4,$I$30:$L$30)/SUM($I$30:$L$30),N4=0,SUMPRODUCT(I4:K4,$I$31:$K$31)/SUM($I$31:$K$31)),"") -> 0.97875 | I4: ='MA 1'!E4 -> 1 | J4: ='Heft 1'!E4 -> 0.9 | K4: ='Wdh 1'!E7 -> 1 | L4: =IF('Test 1.1'!E5="K/NB",'Test 1.2'!E5,'Test 1.1'!E5) -> 1 | M4: =IF('Test 1.1'!E5="K/NB","K/NB",'Test 1.2'!E5) -> 0.96875 | N4: =COUNT(L4:M4) -> 2 | O4: =IFERROR(IF(E4=1,"",IF(E4=2,Notenskala!$D$9-H4,IF(E4=3,Notenskala!$D$8-H4,IF(E4=4,Notenskala!$D$7-H4,IF(E4=5,Notenskala!$D$6-H4))))),"") ->  | P4: =IFERROR(IF(E4=1,H4-Notenskala!$C$8,IF(E4=2,H4-Notenskala!$C$7,IF(E4=3,H4-Notenskala!$C$6,IF(E4=4,H4-Notenskala!$C$5,IF(E4=5,""))))),"") -> 0.06885 | AB4: =Notenskala!B6 -> Genügend | AC4: =Notenskala!C6 -> 0.6499 | AD4: =Notenskala!D6 -> 0.5 | AE4: =Notenskala!E6 -> 4
B5: 3 | C5: =IF(Gesamtnote!C5=0,"",Gesamtnote!C5) -> Schüler 3 | D5: 2 | E5: =IFERROR(IF(H5=0,"",VLOOKUP(H5,Notenskala!$D$4:$E$9,2,TRUE)),"") -> 3 | F5: h | H5: =IFERROR(_xlfn.IFS(N5=2,SUMPRODUCT(I5:M5,$I$29:$M$29)/SUM($I$29:$M$29),N5=1,SUMPRODUCT(I5:L5,$I$30:$L$30)/SUM($I$30:$L$30),N5=0,SUMPRODUCT(I5:K5,$I$31:$K$31)/SUM($I$31:$K$31)),"") -> 0.7992045455 | I5: ='MA 1'!E5 -> 0.85 | J5: ='Heft 1'!E5 -> 0.7 | K5: ='Wdh 1'!E8 -> 0.8181818182 | L5: =IF('Test 1.1'!E6="K/NB",'Test 1.2'!E6,'Test 1.1'!E6) -> 0.5 | M5: =IF('Test 1.1'!E6="K/NB","K/NB",'Test 1.2'!E6) -> 0.84375 | N5: 2 | O5: =IFERROR(IF(E5=1,"",IF(E5=2,Notenskala!$D$9-H5,IF(E5=3,Notenskala!$D$8-H5,IF(E5=4,Notenskala!$D$7-H5,IF(E5=5,Notenskala!$D$6-H5))))),"") -> 0.01079545455 | P5: =IFERROR(IF(E5=1,H5-Notenskala!$C$8,IF(E5=2,H5-Notenskala!$C$7,IF(E5=3,H5-Notenskala!$C$6,IF(E5=4,H5-Notenskala!$C$5,IF(E5=5,""))))),"") -> 0.1493045455 | AB5: =Notenskala!B7 -> Befriedigend | AC5: =Notenskala!C7 -> 0.8099 | AD5: =Notenskala!D7 -> 0.65 | AE5: =Notenskala!E7 -> 3
B6: 4 | C6: =IF(Gesamtnote!C6=0,"",Gesamtnote!C6) -> Schüler 4 | D6: 1 | E6: =IFERROR(IF(H6=0,"",VLOOKUP(H6,Notenskala!$D$4:$E$9,2,TRUE)),"") -> 1 | H6: =IFERROR(_xlfn.IFS(N6=2,SUMPRODUCT(I6:M6,$I$29:$M$29)/SUM($I$29:$M$29),N6=1,SUMPRODUCT(I6:L6,$I$30:$L$30)/SUM($I$30:$L$30),N6=0,SUMPRODUCT(I6:K6,$I$31:$K$31)/SUM($I$31:$K$31)),"") -> 0.9525 | I6: ='MA 1'!E6 -> 1 | J6: ='Heft 1'!E6 -> 0.85 | K6: ='Wdh 1'!E9 -> 0.9375 | L6: =IF('Test 1.1'!E7="K/NB",'Test 1.2'!E7,'Test 1.1'!E7) -> 1 | M6: =IF('Test 1.1'!E7="K/NB","K/NB",'Test 1.2'!E7) -> 0.96875 | N6: 2 | O6: =IFERROR(IF(E6=1,"",IF(E6=2,Notenskala!$D$9-H6,IF(E6=3,Notenskala!$D$8-H6,IF(E6=4,Notenskala!$D$7-H6,IF(E6=5,Notenskala!$D$6-H6))))),"") ->  | P6: =IFERROR(IF(E6=1,H6-Notenskala!$C$8,IF(E6=2,H6-Notenskala!$C$7,IF(E6=3,H6-Notenskala!$C$6,IF(E6=4,H6-Notenskala!$C$5,IF(E6=5,""))))),"") -> 0.0426 | AB6: =Notenskala!B8 -> Gut | AC6: =Notenskala!C8 -> 0.9099 | AD6: =Notenskala!D8 -> 0.81 | AE6: =Notenskala!E8 -> 2
B7: 5 | C7: =IF(Gesamtnote!C7=0,"",Gesamtnote!C7) -> Schüler 5 | D7: 2 | E7: =IFERROR(IF(H7=0,"",VLOOKUP(H7,Notenskala!$D$4:$E$9,2,TRUE)),"") -> 2 | G7: m | H7: =IFERROR(_xlfn.IFS(N7=2,SUMPRODUCT(I7:M7,$I$29:$M$29)/SUM($I$29:$M$29),N7=1,SUMPRODUCT(I7:L7,$I$30:$L$30)/SUM($I$30:$L$30),N7=0,SUMPRODUCT(I7:K7,$I$31:$K$31)/SUM($I$31:$K$31)),"") -> 0.8337259615 | I7: ='MA 1'!E7 -> 0.9384615385 | J7: ='Heft 1'!E7 -> 0.9 | K7: ='Wdh 1'!E10 -> 0.734375 | L7: =IF('Test 1.1'!E8="K/NB",'Test 1.2'!E8,'Test 1.1'!E8) -> 0.8125 | M7: =IF('Test 1.1'!E8="K/NB","K/NB",'Test 1.2'!E8) -> 0.78125 | N7: 2 | O7: =IFERROR(IF(E7=1,"",IF(E7=2,Notenskala!$D$9-H7,IF(E7=3,Notenskala!$D$8-H7,IF(E7=4,Notenskala!$D$7-H7,IF(E7=5,Notenskala!$D$6-H7))))),"") -> 0.07627403846 | P7: =IFERROR(IF(E7=1,H7-Notenskala!$C$8,IF(E7=2,H7-Notenskala!$C$7,IF(E7=3,H7-Notenskala!$C$6,IF(E7=4,H7-Notenskala!$C$5,IF(E7=5,""))))),"") -> 0.02382596154 | AB7: =Notenskala!B9 -> Sehr Gut | AC7: =Notenskala!C9 -> 1 | AD7: =Notenskala!D9 -> 0.91 | AE7: =Notenskala!E9 -> 1
B8: 6 | C8: =IF(Gesamtnote!C8=0,"",Gesamtnote!C8) -> Schüler 6 | D8: 1 | E8: =IFERROR(IF(H8=0,"",VLOOKUP(H8,Notenskala!$D$4:$E$9,2,TRUE)),"") -> 1 | H8: =IFERROR(_xlfn.IFS(N8=2,SUMPRODUCT(I8:M8,$I$29:$M$29)/SUM($I$29:$M$29),N8=1,SUMPRODUCT(I8:L8,$I$30:$L$30)/SUM($I$30:$L$30),N8=0,SUMPRODUCT(I8:K8,$I$31:$K$31)/SUM($I$31:$K$31)),"") -> 0.975 | I8: ='MA 1'!E8 -> 1 | J8: ='Heft 1'!E8 -> 1 | K8: ='Wdh 1'!E11 -> 0.9375 | L8: =IF('Test 1.1'!E9="K/NB",'Test 1.2'!E9,'Test 1.1'!E9) -> 1 | M8: =IF('Test 1.1'!E9="K/NB","K/NB",'Test 1.2'!E9) -> 0.96875 | N8: 2 | O8: =IFERROR(IF(E8=1,"",IF(E8=2,Notenskala!$D$9-H8,IF(E8=3,Notenskala!$D$8-H8,IF(E8=4,Notenskala!$D$7-H8,IF(E8=5,Notenskala!$D$6-H8))))),"") ->  | P8: =IFERROR(IF(E8=1,H8-Notenskala!$C$8,IF(E8=2,H8-Notenskala!$C$7,IF(E8=3,H8-Notenskala!$C$6,IF(E8=4,H8-Notenskala!$C$5,IF(E8=5,""))))),"") -> 0.0651
B9: 7 | C9: =IF(Gesamtnote!C9=0,"",Gesamtnote!C9) -> Schüler 7 | D9: 2 | E9: =IFERROR(IF(H9=0,"",VLOOKUP(H9,Notenskala!$D$4:$E$9,2,TRUE)),"") -> 2 | G9: m | H9: =IFERROR(_xlfn.IFS(N9=2,SUMPRODUCT(I9:M9,$I$29:$M$29)/SUM($I$29:$M$29),N9=1,SUMPRODUCT(I9:L9,$I$30:$L$30)/SUM($I$30:$L$30),N9=0,SUMPRODUCT(I9:K9,$I$31:$K$31)/SUM($I$31:$K$31)),"") -> 0.8361111111 | I9: ='MA 1'!E9 -> 0.825 | J9: ='Heft 1'!E9 -> 0.85 | K9: ='Wdh 1'!E12 -> 0.8703703704 | L9: =IF('Test 1.1'!E10="K/NB",'Test 1.2'!E10,'Test 1.1'!E10) -> 0.875 | M9: =IF('Test 1.1'!E10="K/NB","K/NB",'Test 1.2'!E10) -> 0.78125 | N9: 2 | O9: =IFERROR(IF(E9=1,"",IF(E9=2,Notenskala!$D$9-H9,IF(E9=3,Notenskala!$D$8-H9,IF(E9=4,Notenskala!$D$7-H9,IF(E9=5,Notenskala!$D$6-H9))))),"") -> 0.07388888889 | P9: =IFERROR(IF(E9=1,H9-Notenskala!$C$8,IF(E9=2,H9-Notenskala!$C$7,IF(E9=3,H9-Notenskala!$C$6,IF(E9=4,H9-Notenskala!$C$5,IF(E9=5,""))))),"") -> 0.02621111111
B10: 8 | C10: =IF(Gesamtnote!C10=0,"",Gesamtnote!C10) -> Schüler 8 | D10: 3 | E10: =IFERROR(IF(H10=0,"",VLOOKUP(H10,Notenskala!$D$4:$E$9,2,TRUE)),"") -> 3 | G10: m | H10: =IFERROR(_xlfn.IFS(N10=2,SUMPRODUCT(I10:M10,$I$29:$M$29)/SUM($I$29:$M$29),N10=1,SUMPRODUCT(I10:L10,$I$30:$L$30)/SUM($I$30:$L$30),N10=0,SUMPRODUCT(I10:K10,$I$31:$K$31)/SUM($I$31:$K$31)),"") -> 0.6859821429 | I10: ='MA 1'!E10 -> 0.7928571429 | J10: ='Heft 1'!E10 -> 0.8 | K10: ='Wdh 1'!E13 -> 0.625 | L10: =IF('Test 1.1'!E11="K/NB",'Test 1.2'!E11,'Test 1.1'!E11) -> 0.8125 | M10: =IF('Test 1.1'!E11="K/NB","K/NB",'Test 1.2'!E11) -> 0.5 | N10: 2 | O10: =IFERROR(IF(E10=1,"",IF(E10=2,Notenskala!$D$9-H10,IF(E10=3,Notenskala!$D$8-H10,IF(E10=4,Notenskala!$D$7-H10,IF(E10=5,Notenskala!$D$6-H10))))),"") -> 0.1240178571 | P10: =IFERROR(IF(E10=1,H10-Notenskala!$C$8,IF(E10=2,H10-Notenskala!$C$7,IF(E10=3,H10-Notenskala!$C$6,IF(E10=4,H10-Notenskala!$C$5,IF(E10=5,""))))),"") -> 0.03608214286
B11: 9 | C11: =IF(Gesamtnote!C11=0,"",Gesamtnote!C11) -> Schüler 9 | D11: 2 | E11: =IFERROR(IF(H11=0,"",VLOOKUP(H11,Notenskala!$D$4:$E$9,2,TRUE)),"") -> 2 | G11: i | H11: =IFERROR(_xlfn.IFS(N11=2,SUMPRODUCT(I11:M11,$I$29:$M$29)/SUM($I$29:$M$29),N11=1,SUMPRODUCT(I11:L11,$I$30:$L$30)/SUM($I$30:$L$30),N11=0,SUMPRODUCT(I11:K11,$I$31:$K$31)/SUM($I$31:$K$31)),"") -> 0.8135308442 | I11: ='MA 1'!E11 -> 0.8214285714 | J11: ='Heft 1'!E11 -> 0.9 | K11: ='Wdh 1'!E14 -> 0.9090909091 | L11: =IF('Test 1.1'!E12="K/NB",'Test 1.2'!E12,'Test 1.1'!E12) -> 0.6875 | M11: =IF('Test 1.1'!E12="K/NB","K/NB",'Test 1.2'!E12) -> 0.625 | N11: 2 | O11: =IFERROR(IF(E11=1,"",IF(E11=2,Notenskala!$D$9-H11,IF(E11=3,Notenskala!$D$8-H11,IF(E11=4,Notenskala!$D$7-H11,IF(E11=5,Notenskala!$D$6-H11))))),"") -> 0.09646915584 | P11: =IFERROR(IF(E11=1,H11-Notenskala!$C$8,IF(E11=2,H11-Notenskala!$C$7,IF(E11=3,H11-Notenskala!$C$6,IF(E11=4,H11-Notenskala!$C$5,IF(E11=5,""))))),"") -> 0.003630844156
B12: 10 | C12: =IF(Gesamtnote!C12=0,"",Gesamtnote!C12) -> Schüler 10 | D12: 3 | E12: =IFERROR(IF(H12=0,"",VLOOKUP(H12,Notenskala!$D$4:$E$9,2,TRUE)),"") -> 3 | H12: =IFERROR(_xlfn.IFS(N12=2,SUMPRODUCT(I12:M12,$I$29:$M$29)/SUM($I$29:$M$29),N12=1,SUMPRODUCT(I12:L12,$I$30:$L$30)/SUM($I$30:$L$30),N12=0,SUMPRODUCT(I12:K12,$I$31:$K$31)/SUM($I$31:$K$31)),"") -> 0.7608482143 | I12: ='MA 1'!E12 -> 0.8142857143 | J12: ='Heft 1'!E12 -> 0.85 | K12: ='Wdh 1'!E15 -> 0.640625 | L12: =IF('Test 1.1'!E13="K/NB",'Test 1.2'!E13,'Test 1.1'!E13) -> 0.8125 | M12: =IF('Test 1.1'!E13="K/NB","K/NB",'Test 1.2'!E13) -> 0.78125 | N12: 2 | O12: =IFERROR(IF(E12=1,"",IF(E12=2,Notenskala!$D$9-H12,IF(E12=3,Notenskala!$D$8-H12,IF(E12=4,Notenskala!$D$7-H12,IF(E12=5,Notenskala!$D$6-H12))))),"") -> 0.04915178571 | P12: =IFERROR(IF(E12=1,H12-Notenskala!$C$8,IF(E12=2,H12-Notenskala!$C$7,IF(E12=3,H12-Notenskala!$C$6,IF(E12=4,H12-Notenskala!$C$5,IF(E12=5,""))))),"") -> 0.1109482143
B13: 11 | C13: =IF(Gesamtnote!C13=0,"",Gesamtnote!C13) -> Schüler 11 | D13: 2 | E13: =IFERROR(IF(H13=0,"",VLOOKUP(H13,Notenskala!$D$4:$E$9,2,TRUE)),"") -> 2 | F13: k | H13: =IFERROR(_xlfn.IFS(N13=2,SUMPRODUCT(I13:M13,$I$29:$M$29)/SUM($I$29:$M$29),N13=1,SUMPRODUCT(I13:L13,$I$30:$L$30)/SUM($I$30:$L$30),N13=0,SUMPRODUCT(I13:K13,$I$31:$K$31)/SUM($I$31:$K$31)),"") -> 0.8728571429 | I13: ='MA 1'!E13 -> 0.8928571429 | J13: ='Heft 1'!E13 -> 0.95 | K13: ='Wdh 1'!E16 -> 0.875 | L13: =IF('Test 1.1'!E14="K/NB",'Test 1.2'!E14,'Test 1.1'!E14) -> 0.875 | M13: =IF('Test 1.1'!E14="K/NB","K/NB",'Test 1.2'!E14) -> 0.78125 | N13: 2 | O13: =IFERROR(IF(E13=1,"",IF(E13=2,Notenskala!$D$9-H13,IF(E13=3,Notenskala!$D$8-H13,IF(E13=4,Notenskala!$D$7-H13,IF(E13=5,Notenskala!$D$6-H13))))),"") -> 0.03714285714 | P13: =IFERROR(IF(E13=1,H13-Notenskala!$C$8,IF(E13=2,H13-Notenskala!$C$7,IF(E13=3,H13-Notenskala!$C$6,IF(E13=4,H13-Notenskala!$C$5,IF(E13=5,""))))),"") -> 0.06295714286
B14: 12 | C14: =IF(Gesamtnote!C14=0,"",Gesamtnote!C14) -> Schüler 12 | D14: 1 | E14: =IFERROR(IF(H14=0,"",VLOOKUP(H14,Notenskala!$D$4:$E$9,2,TRUE)),"") -> 2 | F14: h | H14: =IFERROR(_xlfn.IFS(N14=2,SUMPRODUCT(I14:M14,$I$29:$M$29)/SUM($I$29:$M$29),N14=1,SUMPRODUCT(I14:L14,$I$30:$L$30)/SUM($I$30:$L$30),N14=0,SUMPRODUCT(I14:K14,$I$31:$K$31)/SUM($I$31:$K$31)),"") -> 0.9078571429 | I14: ='MA 1'!E14 -> 0.8928571429 | J14: ='Heft 1'!E14 -> 0.85 | K14: ='Wdh 1'!E17 -> 0.96875 | L14: =IF('Test 1.1'!E15="K/NB",'Test 1.2'!E15,'Test 1.1'!E15) -> 0.8125 | M14: =IF('Test 1.1'!E15="K/NB","K/NB",'Test 1.2'!E15) -> 0.90625 | N14: 2 | O14: =IFERROR(IF(E14=1,"",IF(E14=2,Notenskala!$D$9-H14,IF(E14=3,Notenskala!$D$8-H14,IF(E14=4,Notenskala!$D$7-H14,IF(E14=5,Notenskala!$D$6-H14))))),"") -> 0.002142857143 | P14: =IFERROR(IF(E14=1,H14-Notenskala!$C$8,IF(E14=2,H14-Notenskala!$C$7,IF(E14=3,H14-Notenskala!$C$6,IF(E14=4,H14-Notenskala!$C$5,IF(E14=5,""))))),"") -> 0.09795714286
B15: 13 | C15: =IF(Gesamtnote!C15=0,"",Gesamtnote!C15) -> Schüler 13 | D15: 3 | E15: =IFERROR(IF(H15=0,"",VLOOKUP(H15,Notenskala!$D$4:$E$9,2,TRUE)),"") -> 3 | H15: =IFERROR(_xlfn.IFS(N15=2,SUMPRODUCT(I15:M15,$I$29:$M$29)/SUM($I$29:$M$29),N15=1,SUMPRODUCT(I15:L15,$I$30:$L$30)/SUM($I$30:$L$30),N15=0,SUMPRODUCT(I15:K15,$I$31:$K$31)/SUM($I$31:$K$31)),"") -> 0.7557142857 | I15: ='MA 1'!E15 -> 0.7857142857 | J15: ='Heft 1'!E15 -> 0.8 | K15: ='Wdh 1'!E18 -> 0.65625 | L15: =IF('Test 1.1'!E16="K/NB",'Test 1.2'!E16,'Test 1.1'!E16) -> 0.8125 | M15: =IF('Test 1.1'!E16="K/NB","K/NB",'Test 1.2'!E16) -> 0.8125 | N15: 2 | O15: =IFERROR(IF(E15=1,"",IF(E15=2,Notenskala!$D$9-H15,IF(E15=3,Notenskala!$D$8-H15,IF(E15=4,Notenskala!$D$7-H15,IF(E15=5,Notenskala!$D$6-H15))))),"") -> 0.05428571429 | P15: =IFERROR(IF(E15=1,H15-Notenskala!$C$8,IF(E15=2,H15-Notenskala!$C$7,IF(E15=3,H15-Notenskala!$C$6,IF(E15=4,H15-Notenskala!$C$5,IF(E15=5,""))))),"") -> 0.1058142857
B16: 14 | C16: =IF(Gesamtnote!C16=0,"",Gesamtnote!C16) -> Schüler 14 | D16: 2 | E16: =IFERROR(IF(H16=0,"",VLOOKUP(H16,Notenskala!$D$4:$E$9,2,TRUE)),"") -> 2 | F16: k | H16: =IFERROR(_xlfn.IFS(N16=2,SUMPRODUCT(I16:M16,$I$29:$M$29)/SUM($I$29:$M$29),N16=1,SUMPRODUCT(I16:L16,$I$30:$L$30)/SUM($I$30:$L$30),N16=0,SUMPRODUCT(I16:K16,$I$31:$K$31)/SUM($I$31:$K$31)),"") -> 0.8769642857 | I16: ='MA 1'!E16 -> 0.8857142857 | J16: ='Heft 1'!E16 -> 0.95 | K16: ='Wdh 1'!E19 -> 0.84375 | L16: =IF('Test 1.1'!E17="K/NB",'Test 1.2'!E17,'Test 1.1'!E17) -> 0.9375 | M16: =IF('Test 1.1'!E17="K/NB","K/NB",'Test 1.2'!E17) -> 0.84375 | N16: 2 | O16: =IFERROR(IF(E16=1,"",IF(E16=2,Notenskala!$D$9-H16,IF(E16=3,Notenskala!$D$8-H16,IF(E16=4,Notenskala!$D$7-H16,IF(E16=5,Notenskala!$D$6-H16))))),"") -> 0.03303571429 | P16: =IFERROR(IF(E16=1,H16-Notenskala!$C$8,IF(E16=2,H16-Notenskala!$C$7,IF(E16=3,H16-Notenskala!$C$6,IF(E16=4,H16-Notenskala!$C$5,IF(E16=5,""))))),"") -> 0.06706428571
B17: 15 | C17: =IF(Gesamtnote!C17=0,"",Gesamtnote!C17) -> Schüler 15 | D17: 1 | E17: =IFERROR(IF(H17=0,"",VLOOKUP(H17,Notenskala!$D$4:$E$9,2,TRUE)),"") -> 1 | G17: m | H17: =IFERROR(_xlfn.IFS(N17=2,SUMPRODUCT(I17:M17,$I$29:$M$29)/SUM($I$29:$M$29),N17=1,SUMPRODUCT(I17:L17,$I$30:$L$30)/SUM($I$30:$L$30),N17=0,SUMPRODUCT(I17:K17,$I$31:$K$31)/SUM($I$31:$K$31)),"") -> 0.9476785714 | I17: ='MA 1'!E17 -> 0.9714285714 | J17: ='Heft 1'!E17 -> 0.95 | K17: ='Wdh 1'!E20 -> 0.9 | L17: =IF('Test 1.1'!E18="K/NB",'Test 1.2'!E18,'Test 1.1'!E18) -> 0.875 | M17: =IF('Test 1.1'!E18="K/NB","K/NB",'Test 1.2'!E18) -> 1 | N17: 2 | O17: =IFERROR(IF(E17=1,"",IF(E17=2,Notenskala!$D$9-H17,IF(E17=3,Notenskala!$D$8-H17,IF(E17=4,Notenskala!$D$7-H17,IF(E17=5,Notenskala!$D$6-H17))))),"") ->  | P17: =IFERROR(IF(E17=1,H17-Notenskala!$C$8,IF(E17=2,H17-Notenskala!$C$7,IF(E17=3,H17-Notenskala!$C$6,IF(E17=4,H17-Notenskala!$C$5,IF(E17=5,""))))),"") -> 0.03777857143
B18: 16 | C18: =IF(Gesamtnote!C18=0,"",Gesamtnote!C18) -> Schüler 16 | D18: 1 | E18: =IFERROR(IF(H18=0,"",VLOOKUP(H18,Notenskala!$D$4:$E$9,2,TRUE)),"") -> 1 | H18: =IFERROR(_xlfn.IFS(N18=2,SUMPRODUCT(I18:M18,$I$29:$M$29)/SUM($I$29:$M$29),N18=1,SUMPRODUCT(I18:L18,$I$30:$L$30)/SUM($I$30:$L$30),N18=0,SUMPRODUCT(I18:K18,$I$31:$K$31)/SUM($I$31:$K$31)),"") -> 0.9914423077 | I18: ='MA 1'!E18 -> 0.9923076923 | J18: ='Heft 1'!E18 -> 1 | K18: ='Wdh 1'!E21 -> 1 | L18: =IF('Test 1.1'!E19="K/NB",'Test 1.2'!E19,'Test 1.1'!E19) -> 0.875 | M18: =IF('Test 1.1'!E19="K/NB","K/NB",'Test 1.2'!E19) -> 1 | N18: 2 | O18: =IFERROR(IF(E18=1,"",IF(E18=2,Notenskala!$D$9-H18,IF(E18=3,Notenskala!$D$8-H18,IF(E18=4,Notenskala!$D$7-H18,IF(E18=5,Notenskala!$D$6-H18))))),"") ->  | P18: =IFERROR(IF(E18=1,H18-Notenskala!$C$8,IF(E18=2,H18-Notenskala!$C$7,IF(E18=3,H18-Notenskala!$C$6,IF(E18=4,H18-Notenskala!$C$5,IF(E18=5,""))))),"") -> 0.08154230769
B19: 17 | C19: =IF(Gesamtnote!C19=0,"",Gesamtnote!C19) -> Schüler 17 | D19: 2 | E19: =IFERROR(IF(H19=0,"",VLOOKUP(H19,Notenskala!$D$4:$E$9,2,TRUE)),"") -> 2 | G19: i | H19: =IFERROR(_xlfn.IFS(N19=2,SUMPRODUCT(I19:M19,$I$29:$M$29)/SUM($I$29:$M$29),N19=1,SUMPRODUCT(I19:L19,$I$30:$L$30)/SUM($I$30:$L$30),N19=0,SUMPRODUCT(I19:K19,$I$31:$K$31)/SUM($I$31:$K$31)),"") -> 0.8213782051 | I19: ='MA 1'!E19 -> 0.8615384615 | J19: ='Heft 1'!E19 -> 0.85 | K19: ='Wdh 1'!E22 -> 0.8888888889 | L19: =IF('Test 1.1'!E20="K/NB",'Test 1.2'!E20,'Test 1.1'!E20) -> 0.5 | M19: =IF('Test 1.1'!E20="K/NB","K/NB",'Test 1.2'!E20) -> 0.71875 | N19: 2 | O19: =IFERROR(IF(E19=1,"",IF(E19=2,Notenskala!$D$9-H19,IF(E19=3,Notenskala!$D$8-H19,IF(E19=4,Notenskala!$D$7-H19,IF(E19=5,Notenskala!$D$6-H19))))),"") -> 0.08862179487 | P19: =IFERROR(IF(E19=1,H19-Notenskala!$C$8,IF(E19=2,H19-Notenskala!$C$7,IF(E19=3,H19-Notenskala!$C$6,IF(E19=4,H19-Notenskala!$C$5,IF(E19=5,""))))),"") -> 0.01147820513
B20: 18 | C20: =IF(Gesamtnote!C20=0,"",Gesamtnote!C20) -> Schüler 18 | D20: 1 | E20: =IFERROR(IF(H20=0,"",VLOOKUP(H20,Notenskala!$D$4:$E$9,2,TRUE)),"") -> 1 | G20: m | H20: =IFERROR(_xlfn.IFS(N20=2,SUMPRODUCT(I20:M20,$I$29:$M$29)/SUM($I$29:$M$29),N20=1,SUMPRODUCT(I20:L20,$I$30:$L$30)/SUM($I$30:$L$30),N20=0,SUMPRODUCT(I20:K20,$I$31:$K$31)/SUM($I$31:$K$31)),"") -> 0.9473214286 | I20: ='MA 1'!E20 -> 0.9785714286 | J20: ='Heft 1'!E20 -> 0.9 | K20: ='Wdh 1'!E23 -> 0.90625 | L20: =IF('Test 1.1'!E21="K/NB",'Test 1.2'!E21,'Test 1.1'!E21) -> 0.9375 | M20: =IF('Test 1.1'!E21="K/NB","K/NB",'Test 1.2'!E21) -> 1 | N20: 2 | O20: =IFERROR(IF(E20=1,"",IF(E20=2,Notenskala!$D$9-H20,IF(E20=3,Notenskala!$D$8-H20,IF(E20=4,Notenskala!$D$7-H20,IF(E20=5,Notenskala!$D$6-H20))))),"") ->  | P20: =IFERROR(IF(E20=1,H20-Notenskala!$C$8,IF(E20=2,H20-Notenskala!$C$7,IF(E20=3,H20-Notenskala!$C$6,IF(E20=4,H20-Notenskala!$C$5,IF(E20=5,""))))),"") -> 0.03742142857
B21: 19 | C21: =IF(Gesamtnote!C21=0,"",Gesamtnote!C21) -> Schüler 19 | D21: 2 | E21: =IFERROR(IF(H21=0,"",VLOOKUP(H21,Notenskala!$D$4:$E$9,2,TRUE)),"") -> 2 | G21: i | H21: =IFERROR(_xlfn.IFS(N21=2,SUMPRODUCT(I21:M21,$I$29:$M$29)/SUM($I$29:$M$29),N21=1,SUMPRODUCT(I21:L21,$I$30:$L$30)/SUM($I$30:$L$30),N21=0,SUMPRODUCT(I21:K21,$I$31:$K$31)/SUM($I$31:$K$31)),"") -> 0.8116071429 | I21: ='MA 1'!E21 -> 0.8428571429 | J21: ='Heft 1'!E21 -> 0.85 | K21: ='Wdh 1'!E24 -> 0.75 | L21: =IF('Test 1.1'!E22="K/NB",'Test 1.2'!E22,'Test 1.1'!E22) -> 0.75 | M21: =IF('Test 1.1'!E22="K/NB","K/NB",'Test 1.2'!E22) -> 0.84375 | N21: 2 | O21: =IFERROR(IF(E21=1,"",IF(E21=2,Notenskala!$D$9-H21,IF(E21=3,Notenskala!$D$8-H21,IF(E21=4,Notenskala!$D$7-H21,IF(E21=5,Notenskala!$D$6-H21))))),"") -> 0.09839285714 | P21: =IFERROR(IF(E21=1,H21-Notenskala!$C$8,IF(E21=2,H21-Notenskala!$C$7,IF(E21=3,H21-Notenskala!$C$6,IF(E21=4,H21-Notenskala!$C$5,IF(E21=5,""))))),"") -> 0.001707142857
B22: 20 | C22: =IF(Gesamtnote!C22=0,"",Gesamtnote!C22) -> Schüler 20 | D22: 1 | E22: =IFERROR(IF(H22=0,"",VLOOKUP(H22,Notenskala!$D$4:$E$9,2,TRUE)),"") -> 1 | G22: i | H22: =IFERROR(_xlfn.IFS(N22=2,SUMPRODUCT(I22:M22,$I$29:$M$29)/SUM($I$29:$M$29),N22=1,SUMPRODUCT(I22:L22,$I$30:$L$30)/SUM($I$30:$L$30),N22=0,SUMPRODUCT(I22:K22,$I$31:$K$31)/SUM($I$31:$K$31)),"") -> 0.921875 | I22: ='MA 1'!E22 -> 1 | J22: ='Heft 1'!E22 -> 1 | K22: ='Wdh 1'!E25 -> 0.8125 | L22: =IF('Test 1.1'!E23="K/NB",'Test 1.2'!E23,'Test 1.1'!E23) -> 0.9375 | M22: =IF('Test 1.1'!E23="K/NB","K/NB",'Test 1.2'!E23) -> 0.90625 | N22: 2 | O22: =IFERROR(IF(E22=1,"",IF(E22=2,Notenskala!$D$9-H22,IF(E22=3,Notenskala!$D$8-H22,IF(E22=4,Notenskala!$D$7-H22,IF(E22=5,Notenskala!$D$6-H22))))),"") ->  | P22: =IFERROR(IF(E22=1,H22-Notenskala!$C$8,IF(E22=2,H22-Notenskala!$C$7,IF(E22=3,H22-Notenskala!$C$6,IF(E22=4,H22-Notenskala!$C$5,IF(E22=5,""))))),"") -> 0.011975
B23: 21 | C23: =IF(Gesamtnote!C23=0,"",Gesamtnote!C23) -> Schüler 21 | D23: 3 | E23: =IFERROR(IF(H23=0,"",VLOOKUP(H23,Notenskala!$D$4:$E$9,2,TRUE)),"") -> 3 | H23: =IFERROR(_xlfn.IFS(N23=2,SUMPRODUCT(I23:M23,$I$29:$M$29)/SUM($I$29:$M$29),N23=1,SUMPRODUCT(I23:L23,$I$30:$L$30)/SUM($I$30:$L$30),N23=0,SUMPRODUCT(I23:K23,$I$31:$K$31)/SUM($I$31:$K$31)),"") -> 0.7538392857 | I23: ='MA 1'!E23 -> 0.7857142857 | J23: ='Heft 1'!E23 -> 0.85 | K23: ='Wdh 1'!E26 -> 0.75 | L23: =IF('Test 1.1'!E24="K/NB",'Test 1.2'!E24,'Test 1.1'!E24) -> 0.6875 | M23: =IF('Test 1.1'!E24="K/NB","K/NB",'Test 1.2'!E24) -> 0.65625 | N23: 2 | O23: =IFERROR(IF(E23=1,"",IF(E23=2,Notenskala!$D$9-H23,IF(E23=3,Notenskala!$D$8-H23,IF(E23=4,Notenskala!$D$7-H23,IF(E23=5,Notenskala!$D$6-H23))))),"") -> 0.05616071429 | P23: =IFERROR(IF(E23=1,H23-Notenskala!$C$8,IF(E23=2,H23-Notenskala!$C$7,IF(E23=3,H23-Notenskala!$C$6,IF(E23=4,H23-Notenskala!$C$5,IF(E23=5,""))))),"") -> 0.1039392857
B24: 22 | C24: =IF(Gesamtnote!C24=0,"",Gesamtnote!C24) -> Schüler 22 | D24: 2 | E24: =IFERROR(IF(H24=0,"",VLOOKUP(H24,Notenskala!$D$4:$E$9,2,TRUE)),"") -> 3 | F24: h | H24: =IFERROR(_xlfn.IFS(N24=2,SUMPRODUCT(I24:M24,$I$29:$M$29)/SUM($I$29:$M$29),N24=1,SUMPRODUCT(I24:L24,$I$30:$L$30)/SUM($I$30:$L$30),N24=0,SUMPRODUCT(I24:K24,$I$31:$K$31)/SUM($I$31:$K$31)),"") -> 0.8021428571 | I24: ='MA 1'!E24 -> 0.8571428571 | J24: ='Heft 1'!E24 -> 0.8 | K24: ='Wdh 1'!E27 -> 0.78125 | L24: =IF('Test 1.1'!E25="K/NB",'Test 1.2'!E25,'Test 1.1'!E25) -> 0.6875 | M24: =IF('Test 1.1'!E25="K/NB","K/NB",'Test 1.2'!E25) -> 0.78125 | N24: 2 | O24: =IFERROR(IF(E24=1,"",IF(E24=2,Notenskala!$D$9-H24,IF(E24=3,Notenskala!$D$8-H24,IF(E24=4,Notenskala!$D$7-H24,IF(E24=5,Notenskala!$D$6-H24))))),"") -> 0.007857142857 | P24: =IFERROR(IF(E24=1,H24-Notenskala!$C$8,IF(E24=2,H24-Notenskala!$C$7,IF(E24=3,H24-Notenskala!$C$6,IF(E24=4,H24-Notenskala!$C$5,IF(E24=5,""))))),"") -> 0.1522428571
B25: 23 | C25: =IF(Gesamtnote!C25=0,"",Gesamtnote!C25) ->  | E25: =IFERROR(IF(H25=0,"",VLOOKUP(H25,Notenskala!$D$4:$E$9,2,TRUE)),"") ->  | H25: =IFERROR(_xlfn.IFS(N25=2,SUMPRODUCT(I25:M25,$I$29:$M$29)/SUM($I$29:$M$29),N25=1,SUMPRODUCT(I25:L25,$I$30:$L$30)/SUM($I$30:$L$30),N25=0,SUMPRODUCT(I25:K25,$I$31:$K$31)/SUM($I$31:$K$31)),"") -> 0 | I25: ='MA 1'!E25 ->  | J25: ='Heft 1'!E25 ->  | K25: ='Wdh 1'!E28 ->  | L25: =IF('Test 1.1'!E26="K/NB",'Test 1.2'!E26,'Test 1.1'!E26) -> K/NB | M25: =IF('Test 1.1'!E26="K/NB","K/NB",'Test 1.2'!E26) -> K/NB | N25: 0 | O25: =IFERROR(IF(E25=1,"",IF(E25=2,Notenskala!$D$9-H25,IF(E25=3,Notenskala!$D$8-H25,IF(E25=4,Notenskala!$D$7-H25,IF(E25=5,Notenskala!$D$6-H25))))),"") -> FALSE | P25: =IFERROR(IF(E25=1,H25-Notenskala!$C$8,IF(E25=2,H25-Notenskala!$C$7,IF(E25=3,H25-Notenskala!$C$6,IF(E25=4,H25-Notenskala!$C$5,IF(E25=5,""))))),"") -> FALSE
B26: 24 | C26: =IF(Gesamtnote!C26=0,"",Gesamtnote!C26) ->  | E26: =IFERROR(IF(H26=0,"",VLOOKUP(H26,Notenskala!$D$4:$E$9,2,TRUE)),"") ->  | H26: =IFERROR(_xlfn.IFS(N26=2,SUMPRODUCT(I26:M26,$I$29:$M$29)/SUM($I$29:$M$29),N26=1,SUMPRODUCT(I26:L26,$I$30:$L$30)/SUM($I$30:$L$30),N26=0,SUMPRODUCT(I26:K26,$I$31:$K$31)/SUM($I$31:$K$31)),"") -> 0 | I26: ='MA 1'!E26 ->  | J26: ='Heft 1'!E26 ->  | K26: ='Wdh 1'!E29 ->  | L26: =IF('Test 1.1'!E27="K/NB",'Test 1.2'!E27,'Test 1.1'!E27) -> K/NB | M26: =IF('Test 1.1'!E27="K/NB","K/NB",'Test 1.2'!E27) -> K/NB | N26: 0 | O26: =IFERROR(IF(E26=1,"",IF(E26=2,Notenskala!$D$9-H26,IF(E26=3,Notenskala!$D$8-H26,IF(E26=4,Notenskala!$D$7-H26,IF(E26=5,Notenskala!$D$6-H26))))),"") -> FALSE | P26: =IFERROR(IF(E26=1,H26-Notenskala!$C$8,IF(E26=2,H26-Notenskala!$C$7,IF(E26=3,H26-Notenskala!$C$6,IF(E26=4,H26-Notenskala!$C$5,IF(E26=5,""))))),"") -> FALSE
B27: 25 | C27: =IF(Gesamtnote!C27=0,"",Gesamtnote!C27) ->  | E27: =IFERROR(IF(H27=0,"",VLOOKUP(H27,Notenskala!$D$4:$E$9,2,TRUE)),"") ->  | H27: =IFERROR(_xlfn.IFS(N27=2,SUMPRODUCT(I27:M27,$I$29:$M$29)/SUM($I$29:$M$29),N27=1,SUMPRODUCT(I27:L27,$I$30:$L$30)/SUM($I$30:$L$30),N27=0,SUMPRODUCT(I27:K27,$I$31:$K$31)/SUM($I$31:$K$31)),"") -> 0 | I27: ='MA 1'!E27 ->  | J27: ='Heft 1'!E27 ->  | K27: ='Wdh 1'!E30 ->  | L27: =IF('Test 1.1'!E28="K/NB",'Test 1.2'!E28,'Test 1.1'!E28) -> K/NB | M27: =IF('Test 1.1'!E28="K/NB","K/NB",'Test 1.2'!E28) -> K/NB | N27: 0 | O27: =IFERROR(IF(E27=1,"",IF(E27=2,Notenskala!$D$9-H27,IF(E27=3,Notenskala!$D$8-H27,IF(E27=4,Notenskala!$D$7-H27,IF(E27=5,Notenskala!$D$6-H27))))),"") -> FALSE | P27: =IFERROR(IF(E27=1,H27-Notenskala!$C$8,IF(E27=2,H27-Notenskala!$C$7,IF(E27=3,H27-Notenskala!$C$6,IF(E27=4,H27-Notenskala!$C$5,IF(E27=5,""))))),"") -> FALSE
H29: Zwei Tests | I29: 0.3 | J29: 0.15 | K29: 0.3 | L29: 0.05 | M29: 0.2 | Q29: =SUM(I29:M29) -> 1
H30: Ein Test | I30: 0.35 | J30: 0.2 | K30: 0.35 | L30: 0.1 | Q30: =SUM(I30:M30) -> 1
H31: Kein Test | I31: 0.3 | J31: 0.25 | K31: 0.45 | Q31: 1
H32: MUSS immer 100 ergeben!
H33: für Ursprungswerte --> runterscrollen!
H50: #Default
H51: Zwei Tests | I51: 0.2 | J51: 0.1 | K51: 0.2 | L51: 0.25 | M51: 0.25
H52: Ein Test | I52: 0.2 | J52: 0.15 | K52: 0.25 | L52: 0.4
H53: Kein Test | I53: 0.35 | J53: 0.25 | K53: 0.4

Sheet MA 1
A1: zurück
B2: Nr. | C2: Name | D2: MA | E2: Prozente | F2: Stunden | G2: Krank | H2: Summe | I2: 2025-09-22 | J2: 2025-10-13 | K2: 2025-10-15 | L2: 2025-10-20 | M2: 2025-10-22 | N2: 2025-11-03 | O2: 2025-11-05 | P2: 2025-11-10 | Q2: 2025-11-12 | R2: 2025-11-17 | S2: 2025-11-19 | T2: 2025-11-24 | U2: 2025-11-26 | V2: 2026-02-04
B3: 1 | C3: =IF(Gesamtnote!C3=0,"",Gesamtnote!C3) -> Schüler 1 | D3: =IFERROR(VLOOKUP(E3,Notenskala!$D$4:$E$9,2,TRUE),"") -> 2 | E3: =IFERROR(H3/F3,"") -> 0.8846153846 | F3: =$D$30-G3 -> 13 | G3: =COUNTIF(I3:BE3,"K") -> 1 | H3: =IF(SUM(I3:BE3)=0,"",SUM(I3:BE3)) -> 11.5 | I3: 1 | J3: 1 | K3: 0.9 | L3: 0.9 | M3: 0.8 | N3: 0.8 | O3: 0.8 | P3: 0.8 | Q3: K | R3: 0.9 | S3: 0.9 | T3: 1 | U3: 1 | V3: 0.7
B4: 2 | C4: =IF(Gesamtnote!C4=0,"",Gesamtnote!C4) -> Schüler 2 | D4: =IFERROR(VLOOKUP(E4,Notenskala!$D$4:$E$9,2,TRUE),"") -> 1 | E4: =IFERROR(H4/F4,"") -> 1 | F4: 14 | G4: =COUNTIF(I4:BE4,"K") -> 0 | H4: =IF(SUM(I4:BE4)=0,"",SUM(I4:BE4)) -> 14 | I4: 1 | J4: 1 | K4: 1 | L4: 1 | M4: 1 | N4: 1 | O4: 1 | P4: 1 | Q4: 1 | R4: 1 | S4: 1 | T4: 1 | U4: 1 | V4: 1
B5: 3 | C5: =IF(Gesamtnote!C5=0,"",Gesamtnote!C5) -> Schüler 3 | D5: =IFERROR(VLOOKUP(E5,Notenskala!$D$4:$E$9,2,TRUE),"") -> 2 | E5: 0.85 | F5: 14 | G5: 0 | H5: 11.9 | I5: 1 | J5: 0.9 | K5: 0.8 | L5: 0.8 | M5: 0.9 | N5: 0.7 | O5: 0.9 | P5: 1 | Q5: 1 | R5: 0.6 | S5: 1 | T5: 0.7 | U5: 1 | V5: 0.6
B6: 4 | C6: =IF(Gesamtnote!C6=0,"",Gesamtnote!C6) -> Schüler 4 | D6: =IFERROR(VLOOKUP(E6,Notenskala!$D$4:$E$9,2,TRUE),"") -> 1 | E6: 1 | F6: 13 | G6: 1 | H6: 13 | I6: 1 | J6: 1 | K6: 1 | L6: K | M6: 1 | N6: 1 | O6: 1 | P6: 1 | Q6: 1 | R6: 1 | S6: 1 | T6: 1 | U6: 1 | V6: 1
B7: 5 | C7: =IF(Gesamtnote!C7=0,"",Gesamtnote!C7) -> Schüler 5 | D7: =IFERROR(VLOOKUP(E7,Notenskala!$D$4:$E$9,2,TRUE),"") -> 1 | E7: 0.9384615385 | F7: 13 | G7: 1 | H7: 12.2 | I7: 1 | J7: 0.8 | K7: 0.9 | L7: 0.9 | M7: 0.8 | N7: 1 | O7: 0.8 | P7: 1 | Q7: 1 | R7: 1 | S7: 1 | T7: 1 | U7: 1 | V7: K
B8: 6 | C8: =IF(Gesamtnote!C8=0,"",Gesamtnote!C8) -> Schüler 6 | D8: =IFERROR(VLOOKUP(E8,Notenskala!$D$4:$E$9,2,TRUE),"") -> 1 | E8: 1 | F8: 14 | G8: 0 | H8: 14 | I8: 1 | J8: 1 | K8: 1 | L8: 1 | M8: 1 | N8: 1 | O8: 1 | P8: 1 | Q8: 1 | R8: 1 | S8: 1 | T8: 1 | U8: 1 | V8: 1
B9: 7 | C9: =IF(Gesamtnote!C9=0,"",Gesamtnote!C9) -> Schüler 7 | D9: =IFERROR(VLOOKUP(E9,Notenskala!$D$4:$E$9,2,TRUE),"") -> 2 | E9: 0.825 | F9: 12 | G9: 2 | H9: 9.9 | I9: K | J9: 0.8 | K9: 0.7 | L9: 0.7 | M9: 0.8 | N9: 0.9 | O9: 0.8 | P9: K | Q9: 1 | R9: 0.6 | S9: 1 | T9: 1 | U9: 1 | V9: 0.6
B10: 8 | C10: =IF(Gesamtnote!C10=0,"",Gesamtnote!C10) -> Schüler 8 | D10: =IFERROR(VLOOKUP(E10,Notenskala!$D$4:$E$9,2,TRUE),"") -> 3 | E10: 0.7928571429 | F10: 14 | G10: 0 | H10: 11.1 | I10: 0.8 | J10: 0.7 | K10: 0.7 | L10: 0.9 | M10: 0.6 | N10: 0.7 | O10: 0.8 | P10: 0.8 | Q10: 1 | R10: 0.6 | S10: 1 | T10: 0.8 | U10: 1 | V10: 0.7
B11: 9 | C11: =IF(Gesamtnote!C11=0,"",Gesamtnote!C11) -> Schüler 9 | D11: =IFERROR(VLOOKUP(E11,Notenskala!$D$4:$E$9,2,TRUE),"") -> 2 | E11: 0.8214285714 | F11: 14 | G11: 0 | H11: 11.5 | I11: 0.8 | J11: 0.8 | K11: 0.7 | L11: 0.9 | M11: 0.9 | N11: 0.8 | O11: 0.8 | P11: 1 | Q11: 1 | R11: 0.6 | S11: 1 | T11: 0.7 | U11: 1 | V11: 0.5
B12: 10 | C12: =IF(Gesamtnote!C12=0,"",Gesamtnote!C12) -> Schüler 10 | D12: =IFERROR(VLOOKUP(E12,Notenskala!$D$4:$E$9,2,TRUE),"") -> 2 | E12: 0.8142857143 | F12: 14 | G12: 0 | H12: 11.4 | I12: 0.8 | J12: 0.7 | K12: 0.6 | L12: 0.7 | M12: 0.7 | N12: 0.8 | O12: 0.6 | P12: 0.8 | Q12: 1 | R12: 1 | S12: 1 | T12: 1 | U12: 1 | V12: 0.7
B13: 11 | C13: =IF(Gesamtnote!C13=0,"",Gesamtnote!C13) -> Schüler 11 | D13: =IFERROR(VLOOKUP(E13,Notenskala!$D$4:$E$9,2,TRUE),"") -> 2 | E13: 0.8928571429 | F13: 14 | G13: 0 | H13: 12.5 | I13: 1 | J13: 0.8 | K13: 0.7 | L13: 0.8 | M13: 0.9 | N13: 0.9 | O13: 0.8 | P13: 1 | Q13: 1 | R13: 0.6 | S13: 1 | T13: 1 | U13: 1 | V13: 1
B14: 12 | C14: =IF(Gesamtnote!C14=0,"",Gesamtnote!C14) -> Schüler 12 | D14: =IFERROR(VLOOKUP(E14,Notenskala!$D$4:$E$9,2,TRUE),"") -> 2 | E14: 0.8928571429 | F14: 14 | G14: 0 | H14: 12.5 | I14: 1 | J14: 0.9 | K14: 0.8 | L14: 0.8 | M14: 0.9 | N14: 0.8 | O14: 0.8 | P14: 1 | Q14: 1 | R14: 1 | S14: 1 | T14: 1 | U14: 1 | V14: 0.5
B15: 13 | C15: =IF(Gesamtnote!C15=0,"",Gesamtnote!C15) -> Schüler 13 | D15: =IFERROR(VLOOKUP(E15,Notenskala!$D$4:$E$9,2,TRUE),"") -> 3 | E15: 0.7857142857 | F15: 14 | G15: 0 | H15: 11 | I15: 0.8 | J15: 0.7 | K15: 0.7 | L15: 0.9 | M15: 0.6 | N15: 0.7 | O15: 0.7 | P15: 0.8 | Q15: 0.6 | R15: 1 | S15: 1 | T15: 1 | U15: 1 | V15: 0.5
B16: 14 | C16: =IF(Gesamtnote!C16=0,"",Gesamtnote!C16) -> Schüler 14 | D16: =IFERROR(VLOOKUP(E16,Notenskala!$D$4:$E$9,2,TRUE),"") -> 2 | E16: 0.8857142857 | F16: 14 | G16: 0 | H16: 12.4 | I16: 1 | J16: 0.8 | K16: 0.7 | L16: 0.9 | M16: 0.9 | N16: 0.9 | O16: 0.9 | P16: 1 | Q16: 0.9 | R16: 0.6 | S16: 1 | T16: 0.9 | U16: 0.9 | V16: 1
B17: 15 | C17: =IF(Gesamtnote!C17=0,"",Gesamtnote!C17) -> Schüler 15 | D17: =IFERROR(VLOOKUP(E17,Notenskala!$D$4:$E$9,2,TRUE),"") -> 1 | E17: 0.9714285714 | F17: 14 | G17: 0 | H17: 13.6 | I17: 1 | J17: 1 | K17: 1 | L17: 1 | M17: 1 | N17: 1 | O17: 1 | P17: 1 | Q17: 1 | R17: 0.6 | S17: 1 | T17: 1 | U17: 1 | V17: 1
B18: 16 | C18: =IF(Gesamtnote!C18=0,"",Gesamtnote!C18) -> Schüler 16 | D18: =IFERROR(VLOOKUP(E18,Notenskala!$D$4:$E$9,2,TRUE),"") -> 1 | E18: 0.9923076923 | F18: 13 | G18: 1 | H18: 12.9 | I18: 1 | J18: K | K18: 1 | L18: 1 | M18: 1 | N18: 1 | O18: 1 | P18: 1 | Q18: 1 | R18: 1 | S18: 1 | T18: 0.9 | U18: 1 | V18: 1
B19: 17 | C19: =IF(Gesamtnote!C19=0,"",Gesamtnote!C19) -> Schüler 17 | D19: =IFERROR(VLOOKUP(E19,Notenskala!$D$4:$E$9,2,TRUE),"") -> 2 | E19: 0.8615384615 | F19: 13 | G19: 1 | H19: 11.2 | I19: K | J19: 0.8 | K19: 0.8 | L19: 1 | M19: 0.9 | N19: 0.7 | O19: 0.7 | P19: 1 | Q19: 1 | R19: 0.8 | S19: 1 | T19: 1 | U19: 1 | V19: 0.5
B20: 18 | C20: =IF(Gesamtnote!C20=0,"",Gesamtnote!C20) -> Schüler 18 | D20: =IFERROR(VLOOKUP(E20,Notenskala!$D$4:$E$9,2,TRUE),"") -> 1 | E20: 0.9785714286 | F20: 14 | G20: 0 | H20: 13.7 | I20: 1 | J20: 1 | K20: 1 | L20: 1 | M20: 1 | N20: 1 | O20: 1 | P20: 1 | Q20: 1 | R20: 1 | S20: 1 | T20: 0.8 | U20: 1 | V20: 0.9
B21: 19 | C21: =IF(Gesamtnote!C21=0,"",Gesamtnote!C21) -> Schüler 19 | D21: =IFERROR(VLOOKUP(E21,Notenskala!$D$4:$E$9,2,TRUE),"") -> 2 | E21: 0.8428571429 | F21: 14 | G21: 0 | H21: 11.8 | I21: 1 | J21: 0.8 | K21: 0.9 | L21: 0.7 | M21: 0.7 | N21: 0.9 | O21: 0.8 | P21: 1 | Q21: 0.8 | R21: 0.8 | S21: 1 | T21: 0.8 | U21: 1 | V21: 0.6
B22: 20 | C22: =IF(Gesamtnote!C22=0,"",Gesamtnote!C22) -> Schüler 20 | D22: =IFERROR(VLOOKUP(E22,Notenskala!$D$4:$E$9,2,TRUE),"") -> 1 | E22: 1 | F22: 14 | G22: 0 | H22: 14 | I22: 1 | J22: 1 | K22: 1 | L22: 1 | M22: 1 | N22: 1 | O22: 1 | P22: 1 | Q22: 1 | R22: 1 | S22: 1 | T22: 1 | U22: 1 | V22: 1
B23: 21 | C23: =IF(Gesamtnote!C23=0,"",Gesamtnote!C23) -> Schüler 21 | D23: =IFERROR(VLOOKUP(E23,Notenskala!$D$4:$E$9,2,TRUE),"") -> 3 | E23: 0.7857142857 | F23: 14 | G23: 0 | H23: 11 | I23: 0.8 | J23: 0.7 | K23: 0.8 | L23: 0.6 | M23: 0.8 | N23: 0.8 | O23: 0.7 | P23: 0.8 | Q23: 0.8 | R23: 0.7 | S23: 1 | T23: 1 | U23: 1 | V23: 0.5
B24: 22 | C24: =IF(Gesamtnote!C24=0,"",Gesamtnote!C24) -> Schüler 22 | D24: =IFERROR(VLOOKUP(E24,Notenskala!$D$4:$E$9,2,TRUE),"") -> 2 | E24: 0.8571428571 | F24: 14 | G24: 0 | H24: 12 | I24: 0.8 | J24: 0.9 | K24: 0.7 | L24: 0.8 | M24: 0.8 | N24: 0.8 | O24: 0.9 | P24: 0.8 | Q24: 0.9 | R24: 1 | S24: 1 | T24: 1 | U24: 1 | V24: 0.6
B25: 23 | C25: =IF(Gesamtnote!C25=0,"",Gesamtnote!C25) ->  | D25: =IFERROR(VLOOKUP(E25,Notenskala!$D$4:$E$9,2,TRUE),"") ->  | F25: 14 | G25: 0
B26: 24 | C26: =IF(Gesamtnote!C26=0,"",Gesamtnote!C26) ->  | D26: =IFERROR(VLOOKUP(E26,Notenskala!$D$4:$E$9,2,TRUE),"") ->  | F26: 14 | G26: 0
B27: 25 | C27: =IF(Gesamtnote!C27=0,"",Gesamtnote!C27) ->  | D27: =IFERROR(VLOOKUP(E27,Notenskala!$D$4:$E$9,2,TRUE),"") ->  | F27: 14 | G27: 0
C28: Ø | D28: =IFERROR(AVERAGE(D3:D27),"") -> 1.772727273 | E28: =IFERROR(AVERAGE(E3:E27),"") -> 0.8942432567 | F28: 13.72 | G28: 0.28 | H28: 12.23181818
C30: Stunden bis jetzt | D30: =COUNTA(I2:BE2) -> 14
C33: Sehr Gut | D33: =COUNTIF($D$3:$D$27,"1") -> 8
C34: Gut | D34: =COUNTIF($D$3:$D$27,"2") -> 11
C35: Befriedigend | D35: =COUNTIF($D$3:$D$27,"3") -> 3
C36: Genügend | D36: =COUNTIF($D$3:$D$27,"4") -> 0
C37: Nicht Genügend | D37: =COUNTIF($D$3:$D$27,"5") -> 0
C38: K / Nicht Beurteilt | D38: =COUNTIF($D$3:$D$27,"K/NB") -> 0
C40: Positiv | D40: =IFERROR(SUM(D33:D36)/SUM(D33:D37),"") -> 1
C41: Negativ | D41: =IFERROR(D37/SUM(D33:D37),"") -> 0

Sheet Wdh 1
A1: zurück
D2: Datum | G2: 2025-09-22 | H2: 2025-10-15 | I2: 2025-11-22
D3: Inhalt | G3: Demokratie | H3: Referat Wien | I3: Geschichte der EU | J3: Migrationsströme
D4: Punkte | G4: 5 | H4: 5 | I4: 10 | J4: 12
B5: Nr. | C5: Name | D5: Wdh | E5: Gesamt | F5: Ges. Punkte
B6: 1 | C6: ='Semester 1'!C3 -> Schüler 1 | D6: =IFERROR(VLOOKUP(E6,Notenskala!$D$4:$E$9,2,TRUE),"") -> 2 | E6: =IFERROR(SUMIF(G6:R6,"<>",G6:R6)/F6,"") -> 0.8863636364 | F6: =SUMIF(G6:R6,"<>",$G$4:$R$4) -> 22 | G6: 3.5 | H6: 4 | J6: 12
B7: 2 | C7: ='Semester 1'!C4 -> Schüler 2 | D7: =IFERROR(VLOOKUP(E7,Notenskala!$D$4:$E$9,2,TRUE),"") -> 1 | E7: =IFERROR(SUMIF(G7:R7,"<>",G7:R7)/F7,"") -> 1 | F7: =SUMIF(G7:R7,"<>",$G$4:$R$4) -> 32 | G7: 5 | H7: 5 | I7: 10 | J7: 12
B8: 3 | C8: ='Semester 1'!C5 -> Schüler 3 | D8: =IFERROR(VLOOKUP(E8,Notenskala!$D$4:$E$9,2,TRUE),"") -> 2 | E8: 0.8181818182 | F8: 22 | G8: 5 | H8: 4 | J8: 9
B9: 4 | C9: ='Semester 1'!C6 -> Schüler 4 | D9: =IFERROR(VLOOKUP(E9,Notenskala!$D$4:$E$9,2,TRUE),"") -> 1 | E9: 0.9375 | F9: 32 | G9: 5 | H9: 5 | I9: 8 | J9: 12
B10: 5 | C10: ='Semester 1'!C7 -> Schüler 5 | D10: =IFERROR(VLOOKUP(E10,Notenskala!$D$4:$E$9,2,TRUE),"") -> 3 | E10: 0.734375 | F10: 32 | G10: 5 | H10: 4 | I10: 4 | J10: 10.5
B11: 6 | C11: ='Semester 1'!C8 -> Schüler 6 | D11: =IFERROR(VLOOKUP(E11,Notenskala!$D$4:$E$9,2,TRUE),"") -> 1 | E11: 0.9375 | F11: 32 | G11: 5 | H11: 5 | I11: 8 | J11: 12
B12: 7 | C12: ='Semester 1'!C9 -> Schüler 7 | D12: =IFERROR(VLOOKUP(E12,Notenskala!$D$4:$E$9,2,TRUE),"") -> 2 | E12: 0.8703703704 | F12: 27 | H12: 5 | I12: 6.5 | J12: 12
B13: 8 | C13: ='Semester 1'!C10 -> Schüler 8 | D13: =IFERROR(VLOOKUP(E13,Notenskala!$D$4:$E$9,2,TRUE),"") -> 4 | E13: 0.625 | F13: 32 | G13: 2 | H13: 4 | I13: 3 | J13: 11
B14: 9 | C14: ='Semester 1'!C11 -> Schüler 9 | D14: =IFERROR(VLOOKUP(E14,Notenskala!$D$4:$E$9,2,TRUE),"") -> 2 | E14: 0.9090909091 | F14: 22 | G14: 4 | H14: 4 | J14: 12
B15: 10 | C15: ='Semester 1'!C12 -> Schüler 10 | D15: =IFERROR(VLOOKUP(E15,Notenskala!$D$4:$E$9,2,TRUE),"") -> 4 | E15: 0.640625 | F15: 32 | G15: 0.5 | H15: 2 | I15: 7 | J15: 11
B16: 11 | C16: ='Semester 1'!C13 -> Schüler 11 | D16: =IFERROR(VLOOKUP(E16,Notenskala!$D$4:$E$9,2,TRUE),"") -> 2 | E16: 0.875 | F16: 32 | G16: 3 | H16: 5 | I16: 8 | J16: 12
B17: 12 | C17: ='Semester 1'!C14 -> Schüler 12 | D17: =IFERROR(VLOOKUP(E17,Notenskala!$D$4:$E$9,2,TRUE),"") -> 1 | E17: 0.96875 | F17: 32 | G17: 5 | H17: 4 | I17: 10 | J17: 12
B18: 13 | C18: ='Semester 1'!C15 -> Schüler 13 | D18: =IFERROR(VLOOKUP(E18,Notenskala!$D$4:$E$9,2,TRUE),"") -> 3 | E18: 0.65625 | F18: 32 | G18: 2 | H18: 4 | I18: 3 | J18: 12
B19: 14 | C19: ='Semester 1'!C16 -> Schüler 14 | D19: =IFERROR(VLOOKUP(E19,Notenskala!$D$4:$E$9,2,TRUE),"") -> 2 | E19: 0.84375 | F19: 32 | G19: 5 | H19: 5 | I19: 5 | J19: 12
B20: 15 | C20: ='Semester 1'!C17 -> Schüler 15 | D20: =IFERROR(VLOOKUP(E20,Notenskala!$D$4:$E$9,2,TRUE),"") -> 2 | E20: 0.9 | F20: 20 | G20: 5 | H20: 5 | I20: 8
B21: 16 | C21: ='Semester 1'!C18 -> Schüler 16 | D21: =IFERROR(VLOOKUP(E21,Notenskala!$D$4:$E$9,2,TRUE),"") -> 1 | E21: 1 | F21: 32 | G21: 5 | H21: 5 | I21: 10 | J21: 12
B22: 17 | C22: ='Semester 1'!C19 -> Schüler 17 | D22: =IFERROR(VLOOKUP(E22,Notenskala!$D$4:$E$9,2,TRUE),"") -> 2 | E22: 0.8888888889 | F22: 27 | H22: 4 | I22: 9 | J22: 11
B23: 18 | C23: ='Semester 1'!C20 -> Schüler 18 | D23: =IFERROR(VLOOKUP(E23,Notenskala!$D$4:$E$9,2,TRUE),"") -> 2 | E23: 0.90625 | F23: 32 | G23: 3 | H23: 5 | I23: 9 | J23: 12
B24: 19 | C24: ='Semester 1'!C21 -> Schüler 19 | D24: =IFERROR(VLOOKUP(E24,Notenskala!$D$4:$E$9,2,TRUE),"") -> 3 | E24: 0.75 | F24: 32 | G24: 4 | H24: 5 | I24: 4 | J24: 11
B25: 20 | C25: ='Semester 1'!C22 -> Schüler 20 | D25: =IFERROR(VLOOKUP(E25,Notenskala!$D$4:$E$9,2,TRUE),"") -> 2 | E25: 0.8125 | F25: 32 | G25: 3 | H25: 5 | I25: 8 | J25: 10
B26: 21 | C26: ='Semester 1'!C23 -> Schüler 21 | D26: =IFERROR(VLOOKUP(E26,Notenskala!$D$4:$E$9,2,TRUE),"") -> 3 | E26: 0.75 | F26: 32 | G26: 3 | H26: 3 | I26: 9 | J26: 9
B27: 22 | C27: ='Semester 1'!C24 -> Schüler 22 | D27: =IFERROR(VLOOKUP(E27,Notenskala!$D$4:$E$9,2,TRUE),"") -> 3 | E27: 0.78125 | F27: 32 | G27: 5 | H27: 2 | I27: 9 | J27: 9
B28: 23 | C28: ='Semester 1'!C25 ->  | D28: =IFERROR(VLOOKUP(E28,Notenskala!$D$4:$E$9,2,TRUE),"") ->  | F28: 0
B29: 24 | C29: ='Semester 1'!C26 ->  | D29: =IFERROR(VLOOKUP(E29,Notenskala!$D$4:$E$9,2,TRUE),"") ->  | F29: 0
B30: 25 | C30: ='Semester 1'!C27 ->  | D30: =IFERROR(VLOOKUP(E30,Notenskala!$D$4:$E$9,2,TRUE),"") ->  | F30: 0
C31: Ø | D31: =IFERROR(AVERAGEIF(D6:D30,">0"),"") -> 2.181818182 | E31: =IFERROR(AVERAGEIF(E6:E30,">0"),"") -> 0.8405293465 | F31: 29.63636364 | G31: 3.9 | H31: 4.272727273 | I31: 7.289473684 | J31: 11.21428571

Sheet Heft 1
A1: zurück
B2: Nr. | C2: Name | D2: Heft | E2: Summe | F2: 2025-11-12 | G2: Notizen | H2: 2025-01-20 | I2: Notizen | J2: 2025-01-29 | K2: Notizen | L2: 2025-01-20 | M2: Notizen
B3: 1 | C3: ='Semester 1'!C3 -> Schüler 1 | D3: =IFERROR(VLOOKUP(E3,Notenskala!$D$4:$E$9,2,TRUE),"") -> 3 | E3: =IFERROR(SUM(F3,H3)/COUNTA(F3,H3),"") -> 0.8 | F3: 0.8 | G3: Unterschrift WDH, Leistung, Gsk EU nicht vollständig
B4: 2 | C4: ='Semester 1'!C4 -> Schüler 2 | D4: =IFERROR(VLOOKUP(E4,Notenskala!$D$4:$E$9,2,TRUE),"") -> 2 | E4: =IFERROR(SUM(F4,H4)/COUNTA(F4,H4),"") -> 0.9 | F4: 0.9
B5: 3 | C5: ='Semester 1'!C5 -> Schüler 3 | D5: =IFERROR(VLOOKUP(E5,Notenskala!$D$4:$E$9,2,TRUE),"") -> 3 | E5: 0.7 | F5: 0.7
B6: 4 | C6: ='Semester 1'!C6 -> Schüler 4 | D6: =IFERROR(VLOOKUP(E6,Notenskala!$D$4:$E$9,2,TRUE),"") -> 2 | E6: 0.85 | F6: 0.85 | G6: Zettel einkleben, unterschriften
B7: 5 | C7: ='Semester 1'!C7 -> Schüler 5 | D7: =IFERROR(VLOOKUP(E7,Notenskala!$D$4:$E$9,2,TRUE),"") -> 2 | E7: 0.9 | F7: 0.9 | G7: EU Gsk nicht vollständig
B8: 6 | C8: ='Semester 1'!C8 -> Schüler 6 | D8: =IFERROR(VLOOKUP(E8,Notenskala!$D$4:$E$9,2,TRUE),"") -> 1 | E8: 1 | F8: 1
B9: 7 | C9: ='Semester 1'!C9 -> Schüler 7 | D9: =IFERROR(VLOOKUP(E9,Notenskala!$D$4:$E$9,2,TRUE),"") -> 2 | E9: 0.85 | F9: 0.85 | G9: zu spät, schriftbild
B10: 8 | C10: ='Semester 1'!C10 -> Schüler 8 | D10: =IFERROR(VLOOKUP(E10,Notenskala!$D$4:$E$9,2,TRUE),"") -> 3 | E10: 0.8 | F10: 0.8 | G10: Unterschrift WDH, Leistung, Gsk EU nicht vollständig
B11: 9 | C11: ='Semester 1'!C11 -> Schüler 9 | D11: =IFERROR(VLOOKUP(E11,Notenskala!$D$4:$E$9,2,TRUE),"") -> 2 | E11: 0.9 | F11: 0.9 | G11: EU Gsk nicht vollständig
B12: 10 | C12: ='Semester 1'!C12 -> Schüler 10 | D12: =IFERROR(VLOOKUP(E12,Notenskala!$D$4:$E$9,2,TRUE),"") -> 2 | E12: 0.85 | F12: 0.85 | G12: U wdh, gsk eu nicht fertig
B13: 11 | C13: ='Semester 1'!C13 -> Schüler 11 | D13: =IFERROR(VLOOKUP(E13,Notenskala!$D$4:$E$9,2,TRUE),"") -> 1 | E13: 0.95 | F13: 0.95 | G13: U wdh,
B14: 12 | C14: ='Semester 1'!C14 -> Schüler 12 | D14: =IFERROR(VLOOKUP(E14,Notenskala!$D$4:$E$9,2,TRUE),"") -> 2 | E14: 0.85 | F14: 0.85 | G14: Unterschrift, Geschichte nicht vollständig
B15: 13 | C15: ='Semester 1'!C15 -> Schüler 13 | D15: =IFERROR(VLOOKUP(E15,Notenskala!$D$4:$E$9,2,TRUE),"") -> 3 | E15: 0.8 | F15: 0.8 | G15: Unterschriften, GSK EU
B16: 14 | C16: ='Semester 1'!C16 -> Schüler 14 | D16: =IFERROR(VLOOKUP(E16,Notenskala!$D$4:$E$9,2,TRUE),"") -> 1 | E16: 0.95 | F16: 0.95 | G16: EU Gsk nicht vollständig
B17: 15 | C17: ='Semester 1'!C17 -> Schüler 15 | D17: =IFERROR(VLOOKUP(E17,Notenskala!$D$4:$E$9,2,TRUE),"") -> 1 | E17: 0.95 | F17: 0.95 | G17: U wdh,
B18: 16 | C18: ='Semester 1'!C18 -> Schüler 16 | D18: =IFERROR(VLOOKUP(E18,Notenskala!$D$4:$E$9,2,TRUE),"") -> 1 | E18: 1 | F18: 1
B19: 17 | C19: ='Semester 1'!C19 -> Schüler 17 | D19: =IFERROR(VLOOKUP(E19,Notenskala!$D$4:$E$9,2,TRUE),"") -> 2 | E19: 0.85 | F19: 0.85 | G19: Unterschrift, Geschrichte nicht vollständig
B20: 18 | C20: ='Semester 1'!C20 -> Schüler 18 | D20: =IFERROR(VLOOKUP(E20,Notenskala!$D$4:$E$9,2,TRUE),"") -> 2 | E20: 0.9 | F20: 0.9 | G20: Unterschriften
B21: 19 | C21: ='Semester 1'!C21 -> Schüler 19 | D21: =IFERROR(VLOOKUP(E21,Notenskala!$D$4:$E$9,2,TRUE),"") -> 2 | E21: 0.85 | F21: 0.85 | G21: Unterschrift, EU Geschichte
B22: 20 | C22: ='Semester 1'!C22 -> Schüler 20 | D22: =IFERROR(VLOOKUP(E22,Notenskala!$D$4:$E$9,2,TRUE),"") -> 1 | E22: 1 | F22: 1
B23: 21 | C23: ='Semester 1'!C23 -> Schüler 21 | D23: =IFERROR(VLOOKUP(E23,Notenskala!$D$4:$E$9,2,TRUE),"") -> 2 | E23: 0.85 | F23: 0.85 | G23: Unterschrift, Geschichte nicht vollständig
B24: 22 | C24: ='Semester 1'!C24 -> Schüler 22 | D24: =IFERROR(VLOOKUP(E24,Notenskala!$D$4:$E$9,2,TRUE),"") -> 3 | E24: 0.8 | F24: 0.8
B25: 23 | C25: ='Semester 1'!C25 ->  | D25: =IFERROR(VLOOKUP(E25,Notenskala!$D$4:$E$9,2,TRUE),"") -> 
B26: 24 | D26: =IFERROR(VLOOKUP(E26,Notenskala!$D$4:$E$9,2,TRUE),"") -> 
B27: 25 | D27: =IFERROR(VLOOKUP(E27,Notenskala!$D$4:$E$9,2,TRUE),"") -> 

Sheet Test 1.1
A1: zurück
C2: 2025-11-19 | D2: Punkte | G2: =SUM(H2:N2) -> 16 | H2: 3 | I2: 5 | J2: 5 | K2: 3 | P2: Verteilung:
A3: Gruppe | B3: Nr. | C3: Name | D3: Test 1 | E3: Prozente | F3: Leer | G3: Summe | H3: A | I3: B | J3: C | K3: D | L3: E | M3: F | N3: G | P3: Sehr Gut | Q3: =COUNTIF($D$4:$D$28,"1") -> 7
A4: 3 | B4: 1 | C4: =IF(Gesamtnote!C3=0,"",Gesamtnote!C3) -> Schüler 1 | D4: =IF(G4="K/NB","K/NB",_xlfn.XLOOKUP(G4,$R$15:$R$19,$P$15:$P$19,"",-1)) -> 1 | E4: =IF(F4=FALSE,G4/$G$2,"K/NB") -> 0.9375 | F4: =SUMPRODUCT(--(H4:L4<>""))=0 -> FALSE | G4: =IF(F4=FALSE,SUM(H4:N4),"K/NB") -> 15 | H4: 3 | I4: 4 | J4: 5 | K4: 3 | P4: Gut | Q4: =COUNTIF($D$4:$D$28,"2") -> 9
A5: 2 | B5: 2 | C5: =IF(Gesamtnote!C4=0,"",Gesamtnote!C4) -> Schüler 2 | D5: =IF(G5="K/NB","K/NB",_xlfn.XLOOKUP(G5,$R$15:$R$19,$P$15:$P$19,"",-1)) -> 1 | E5: =IF(F5=FALSE,G5/$G$2,"K/NB") -> 1 | F5: =SUMPRODUCT(--(H5:L5<>""))=0 -> FALSE | G5: =IF(F5=FALSE,SUM(H5:N5),"K/NB") -> 16 | H5: 3 | I5: 5 | J5: 5 | K5: 3 | P5: Befriedigend | Q5: =COUNTIF($D$4:$D$28,"3") -> 4
A6: 5 | B6: 3 | C6: =IF(Gesamtnote!C5=0,"",Gesamtnote!C5) -> Schüler 3 | D6: 4 | E6: 0.5 | F6: =SUMPRODUCT(--(H6:L6<>""))=0 -> FALSE | G6: 8 | H6: 1 | I6: 2 | J6: 4 | K6: 1 | P6: Genügend | Q6: =COUNTIF($D$4:$D$28,"4") -> 2
A7: 3 | B7: 4 | C7: =IF(Gesamtnote!C6=0,"",Gesamtnote!C6) -> Schüler 4 | D7: 1 | E7: 1 | F7: =SUMPRODUCT(--(H7:L7<>""))=0 -> FALSE | G7: 16 | H7: 3 | I7: 5 | J7: 5 | K7: 3 | P7: Nicht Genügend | Q7: =COUNTIF($D$4:$D$28,"5") -> 0
A8: 4 | B8: 5 | C8: =IF(Gesamtnote!C7=0,"",Gesamtnote!C7) -> Schüler 5 | D8: 2 | E8: 0.8125 | F8: =SUMPRODUCT(--(H8:L8<>""))=0 -> FALSE | G8: 13 | H8: 2 | I8: 4 | J8: 5 | K8: 2 | P8: K / Nicht Beurteilt | Q8: =COUNTIF($D$4:$D$28,"K/NB") -> 3
A9: 3 | B9: 6 | C9: =IF(Gesamtnote!C8=0,"",Gesamtnote!C8) -> Schüler 6 | D9: 1 | E9: 1 | F9: =SUMPRODUCT(--(H9:L9<>""))=0 -> FALSE | G9: 16 | H9: 3 | I9: 5 | J9: 5 | K9: 3
A10: 1 | B10: 7 | C10: =IF(Gesamtnote!C9=0,"",Gesamtnote!C9) -> Schüler 7 | D10: 2 | E10: 0.875 | F10: =SUMPRODUCT(--(H10:L10<>""))=0 -> FALSE | G10: 14 | H10: 3 | I10: 4 | J10: 5 | K10: 2 | P10: Positiv | Q10: =IFERROR(SUM(Q3:Q6)/SUM(Q3:Q7),"") -> 1
A11: 2 | B11: 8 | C11: =IF(Gesamtnote!C10=0,"",Gesamtnote!C10) -> Schüler 8 | D11: 2 | E11: 0.8125 | F11: =SUMPRODUCT(--(H11:L11<>""))=0 -> FALSE | G11: 13 | H11: 2 | I11: 4 | J11: 4 | K11: 3 | P11: Negativ | Q11: =IFERROR(Q7/SUM(Q3:Q7),"") -> 0
A12: 1 | B12: 9 | C12: =IF(Gesamtnote!C11=0,"",Gesamtnote!C11) -> Schüler 9 | D12: 3 | E12: 0.6875 | F12: =SUMPRODUCT(--(H12:L12<>""))=0 -> FALSE | G12: 11 | H12: 2 | I12: 3 | J12: 5 | K12: 1
A13: 5 | B13: 10 | C13: =IF(Gesamtnote!C12=0,"",Gesamtnote!C12) -> Schüler 10 | D13: 2 | E13: 0.8125 | F13: =SUMPRODUCT(--(H13:L13<>""))=0 -> FALSE | G13: 13 | H13: 2 | I13: 4 | J13: 5 | K13: 2
A14: 1 | B14: 11 | C14: =IF(Gesamtnote!C13=0,"",Gesamtnote!C13) -> Schüler 11 | D14: 2 | E14: 0.875 | F14: =SUMPRODUCT(--(H14:L14<>""))=0 -> FALSE | G14: 14 | H14: 2 | I14: 5 | J14: 5 | K14: 2 | P14: Notenschlüssel: | Q14: Von | R14: Bis
A15: 4 | B15: 12 | C15: =IF(Gesamtnote!C14=0,"",Gesamtnote!C14) -> Schüler 12 | D15: 2 | E15: 0.8125 | F15: =SUMPRODUCT(--(H15:L15<>""))=0 -> FALSE | G15: 13 | H15: 1 | I15: 5 | J15: 5 | K15: 2 | P15: 1 | Q15: =G2 -> 16 | R15: =MROUND($G$2*Notenskala!$D$9,0.5) -> 14.5
A16: 4 | B16: 13 | C16: =IF(Gesamtnote!C15=0,"",Gesamtnote!C15) -> Schüler 13 | D16: 2 | E16: 0.8125 | F16: =SUMPRODUCT(--(H16:L16<>""))=0 -> FALSE | G16: 13 | H16: 3 | I16: 4 | J16: 4 | K16: 2 | P16: 2 | Q16: =R15-0.5 -> 14 | R16: =MROUND($G$2*Notenskala!$D$8,0.5) -> 13
A17: 1 | B17: 14 | C17: =IF(Gesamtnote!C16=0,"",Gesamtnote!C16) -> Schüler 14 | D17: 1 | E17: 0.9375 | F17: =SUMPRODUCT(--(H17:L17<>""))=0 -> FALSE | G17: 15 | H17: 2 | I17: 5 | J17: 5 | K17: 3 | P17: 3 | Q17: =R16-0.5 -> 12.5 | R17: =MROUND($G$2*Notenskala!$D$7,0.5) -> 10.5
A18: 1 | B18: 15 | C18: =IF(Gesamtnote!C17=0,"",Gesamtnote!C17) -> Schüler 15 | D18: 2 | E18: 0.875 | F18: =SUMPRODUCT(--(H18:L18<>""))=0 -> FALSE | G18: 14 | H18: 2 | I18: 4 | J18: 5 | K18: 3 | P18: 4 | Q18: 10 | R18: =MROUND($G$2*Notenskala!$D$6,0.5) -> 8
A19: 4 | B19: 16 | C19: =IF(Gesamtnote!C18=0,"",Gesamtnote!C18) -> Schüler 16 | D19: 2 | E19: 0.875 | F19: =SUMPRODUCT(--(H19:L19<>""))=0 -> FALSE | G19: 14 | H19: 2 | I19: 5 | J19: 5 | K19: 2 | P19: 5 | Q19: 7.5 | R19: =MROUND($G$2*Notenskala!$D$5,0.5) -> 0
A20: 5 | B20: 17 | C20: =IF(Gesamtnote!C19=0,"",Gesamtnote!C19) -> Schüler 17 | D20: 4 | E20: 0.5 | F20: =SUMPRODUCT(--(H20:L20<>""))=0 -> FALSE | G20: 8 | H20: 0 | I20: 3 | J20: 4 | K20: 1
A21: 3 | B21: 18 | C21: =IF(Gesamtnote!C20=0,"",Gesamtnote!C20) -> Schüler 18 | D21: 1 | E21: 0.9375 | F21: =SUMPRODUCT(--(H21:L21<>""))=0 -> FALSE | G21: 15 | H21: 3 | I21: 5 | J21: 4 | K21: 3 | P21: Kurzreferat EU
A22: 2 | B22: 19 | C22: =IF(Gesamtnote!C21=0,"",Gesamtnote!C21) -> Schüler 19 | D22: 3 | E22: 0.75 | F22: =SUMPRODUCT(--(H22:L22<>""))=0 -> FALSE | G22: 12 | H22: 2 | I22: 3 | J22: 4 | K22: 3 | P22: A | Q22: Foliendesign
A23: 2 | B23: 20 | C23: =IF(Gesamtnote!C22=0,"",Gesamtnote!C22) -> Schüler 20 | D23: 1 | E23: 0.9375 | F23: =SUMPRODUCT(--(H23:L23<>""))=0 -> FALSE | G23: 15 | H23: 3 | I23: 5 | J23: 5 | K23: 2 | P23: B | Q23: Vortrag
A24: 5 | B24: 21 | C24: =IF(Gesamtnote!C23=0,"",Gesamtnote!C23) -> Schüler 21 | D24: 3 | E24: 0.6875 | F24: =SUMPRODUCT(--(H24:L24<>""))=0 -> FALSE | G24: 11 | H24: 1 | I24: 4 | J24: 5 | K24: 1 | P24: C | Q24: Inhalt
A25: 5 | B25: 22 | C25: =IF(Gesamtnote!C24=0,"",Gesamtnote!C24) -> Schüler 22 | D25: 3 | E25: 0.6875 | F25: =SUMPRODUCT(--(H25:L25<>""))=0 -> FALSE | G25: 11 | H25: 0 | I25: 4 | J25: 5 | K25: 2 | P25: D | Q25: Anschaulichkeit / Reaktion auf Rückfragen
B26: 23 | C26: =IF(Gesamtnote!C25=0,"",Gesamtnote!C25) ->  | D26: K/NB | E26: K/NB | F26: =SUMPRODUCT(--(H26:L26<>""))=0 -> TRUE | G26: K/NB
B27: 24 | C27: =IF(Gesamtnote!C26=0,"",Gesamtnote!C26) ->  | D27: K/NB | E27: K/NB | F27: =SUMPRODUCT(--(H27:L27<>""))=0 -> TRUE | G27: K/NB
B28: 25 | C28: =IF(Gesamtnote!C27=0,"",Gesamtnote!C27) ->  | D28: K/NB | E28: K/NB | F28: =SUMPRODUCT(--(H28:L28<>""))=0 -> TRUE | G28: K/NB
C29: Ø | D29: =IFERROR(AVERAGEIF(D4:D28,"<>",D4:D28),"") -> 2.045454545 | E29: =IFERROR(AVERAGEIF(E4:E28,"<>",E4:E28),"") -> 0.8238636364 | G29: 13.18181818 | H29: 2.045454545 | I29: 4.181818182 | J29: 4.727272727 | K29: 2.227272727

Sheet Test 1.2
A1: zurück
C2: 2025-02-02 | D2: Punkte | G2: =SUM(H2:N2) -> 16 | H2: 3 | I2: 5 | J2: 5 | K2: 3 | P2: Verteilung:
A3: Gruppe | B3: Nr. | C3: Name | D3: Test 2 | E3: Prozente | F3: Leer | G3: Summe | H3: A | I3: B | J3: C | K3: D | L3: E | M3: F | N3: G | P3: Sehr Gut | Q3: =COUNTIF($D$4:$D$28,"1") -> 8
A4: 5 | B4: 1 | C4: =IF(Gesamtnote!C3=0,"",Gesamtnote!C3) -> Schüler 1 | D4: =IF(G4="K/NB","K/NB",_xlfn.XLOOKUP(G4,$R$15:$R$19,$P$15:$P$19,"",-1)) -> 2 | E4: =IF(F4=FALSE,G4/$G$2,"K/NB") -> 0.84375 | F4: =SUMPRODUCT(--(H4:L4<>""))=0 -> FALSE | G4: =IF(F4=FALSE,SUM(H4:N4),"K/NB") -> 13.5 | H4: 2 | I4: 4.5 | J4: 4 | K4: 3 | P4: Gut | Q4: =COUNTIF($D$4:$D$28,"2") -> 5
A5: 3 | B5: 2 | C5: =IF(Gesamtnote!C4=0,"",Gesamtnote!C4) -> Schüler 2 | D5: =IF(G5="K/NB","K/NB",_xlfn.XLOOKUP(G5,$R$15:$R$19,$P$15:$P$19,"",-1)) -> 1 | E5: =IF(F5=FALSE,G5/$G$2,"K/NB") -> 0.96875 | F5: =SUMPRODUCT(--(H5:L5<>""))=0 -> FALSE | G5: =IF(F5=FALSE,SUM(H5:N5),"K/NB") -> 15.5 | H5: 3 | I5: 5 | J5: 4.5 | K5: 3 | P5: Befriedigend | Q5: =COUNTIF($D$4:$D$28,"3") -> 7
A6: 5 | B6: 3 | C6: =IF(Gesamtnote!C5=0,"",Gesamtnote!C5) -> Schüler 3 | D6: 2 | E6: 0.84375 | F6: =SUMPRODUCT(--(H6:L6<>""))=0 -> FALSE | G6: 13.5 | H6: 2.5 | I6: 4 | J6: 4 | K6: 3 | P6: Genügend | Q6: =COUNTIF($D$4:$D$28,"4") -> 2
A7: 4 | B7: 4 | C7: =IF(Gesamtnote!C6=0,"",Gesamtnote!C6) -> Schüler 4 | D7: 1 | E7: 0.96875 | F7: =SUMPRODUCT(--(H7:L7<>""))=0 -> FALSE | G7: 15.5 | H7: 2.5 | I7: 5 | J7: 5 | K7: 3 | P7: Nicht Genügend | Q7: =COUNTIF($D$4:$D$28,"5") -> 0
A8: 6 | B8: 5 | C8: =IF(Gesamtnote!C7=0,"",Gesamtnote!C7) -> Schüler 5 | D8: 3 | E8: 0.78125 | F8: =SUMPRODUCT(--(H8:L8<>""))=0 -> FALSE | G8: 12.5 | H8: 2.5 | I8: 4 | J8: 4 | K8: 2 | P8: K / Nicht Beurteilt | Q8: =COUNTIF($D$4:$D$28,"K/NB") -> 3
A9: 4 | B9: 6 | C9: =IF(Gesamtnote!C8=0,"",Gesamtnote!C8) -> Schüler 6 | D9: 1 | E9: 0.96875 | F9: =SUMPRODUCT(--(H9:L9<>""))=0 -> FALSE | G9: =IF(F9=FALSE,SUM(H9:N9),"K/NB") -> 15.5 | H9: 2.5 | I9: 5 | J9: 5 | K9: 3
A10: 1 | B10: 7 | C10: =IF(Gesamtnote!C9=0,"",Gesamtnote!C9) -> Schüler 7 | D10: 3 | E10: 0.78125 | F10: =SUMPRODUCT(--(H10:L10<>""))=0 -> FALSE | G10: 12.5 | H10: 2 | I10: 4.5 | J10: 4 | K10: 2 | P10: Positiv | Q10: =IFERROR(SUM(Q3:Q6)/SUM(Q3:Q7),"") -> 1
A11: 7 | B11: 8 | C11: =IF(Gesamtnote!C10=0,"",Gesamtnote!C10) -> Schüler 8 | D11: 4 | E11: 0.5 | F11: =SUMPRODUCT(--(H11:L11<>""))=0 -> FALSE | G11: =IF(F11=FALSE,SUM(H11:N11),"K/NB") -> 8 | H11: 2 | I11: 3 | J11: 2 | K11: 1 | P11: Negativ | Q11: =IFERROR(Q7/SUM(Q3:Q7),"") -> 0
A12: 5 | B12: 9 | C12: =IF(Gesamtnote!C11=0,"",Gesamtnote!C11) -> Schüler 9 | D12: 4 | E12: 0.625 | F12: =SUMPRODUCT(--(H12:L12<>""))=0 -> FALSE | G12: 10 | H12: 2 | I12: 3 | J12: 4 | K12: 1
A13: 2 | B13: 10 | C13: =IF(Gesamtnote!C12=0,"",Gesamtnote!C12) -> Schüler 10 | D13: 3 | E13: 0.78125 | F13: =SUMPRODUCT(--(H13:L13<>""))=0 -> FALSE | G13: 12.5 | H13: 3 | I13: 4 | J13: 3.5 | K13: 2
A14: 1 | B14: 11 | C14: =IF(Gesamtnote!C13=0,"",Gesamtnote!C13) -> Schüler 11 | D14: 3 | E14: 0.78125 | F14: =SUMPRODUCT(--(H14:L14<>""))=0 -> FALSE | G14: 12.5 | H14: 2.5 | I14: 4.5 | J14: 4 | K14: 1.5 | P14: Notenschlüssel: | Q14: Von | R14: Bis
A15: 6 | B15: 12 | C15: =IF(Gesamtnote!C14=0,"",Gesamtnote!C14) -> Schüler 12 | D15: 1 | E15: 0.90625 | F15: =SUMPRODUCT(--(H15:L15<>""))=0 -> FALSE | G15: 14.5 | H15: 2.5 | I15: 5 | J15: 4 | K15: 3 | P15: 1 | Q15: =G2 -> 16 | R15: =MROUND($G$2*Notenskala!$D$9,0.5) -> 14.5
A16: 6 | B16: 13 | C16: =IF(Gesamtnote!C15=0,"",Gesamtnote!C15) -> Schüler 13 | D16: 2 | E16: 0.8125 | F16: =SUMPRODUCT(--(H16:L16<>""))=0 -> FALSE | G16: 13 | H16: 2.5 | I16: 3.5 | J16: 4 | K16: 3 | P16: 2 | Q16: =R15-0.5 -> 14 | R16: =MROUND($G$2*Notenskala!$D$8,0.5) -> 13
A17: 1 | B17: 14 | C17: =IF(Gesamtnote!C16=0,"",Gesamtnote!C16) -> Schüler 14 | D17: 2 | E17: 0.84375 | F17: =SUMPRODUCT(--(H17:L17<>""))=0 -> FALSE | G17: 13.5 | H17: 2.5 | I17: 5 | J17: 4 | K17: 2 | P17: 3 | Q17: =R16-0.5 -> 12.5 | R17: =MROUND($G$2*Notenskala!$D$7,0.5) -> 10.5
A18: 3 | B18: 15 | C18: =IF(Gesamtnote!C17=0,"",Gesamtnote!C17) -> Schüler 15 | D18: 1 | E18: 1 | F18: =SUMPRODUCT(--(H18:L18<>""))=0 -> FALSE | G18: 16 | H18: 3 | I18: 5 | J18: 5 | K18: 3 | P18: 4 | Q18: =R17-0.5 -> 10 | R18: =MROUND($G$2*Notenskala!$D$6,0.5) -> 8
A19: 3 | B19: 16 | C19: =IF(Gesamtnote!C18=0,"",Gesamtnote!C18) -> Schüler 16 | D19: 1 | E19: 1 | F19: =SUMPRODUCT(--(H19:L19<>""))=0 -> FALSE | G19: 16 | H19: 3 | I19: 5 | J19: 5 | K19: 3 | P19: 5 | Q19: =R18-0.5 -> 7.5 | R19: =MROUND($G$2*Notenskala!$D$5,0.5) -> 0
A20: 2 | B20: 17 | C20: =IF(Gesamtnote!C19=0,"",Gesamtnote!C19) -> Schüler 17 | D20: 3 | E20: 0.71875 | F20: =SUMPRODUCT(--(H20:L20<>""))=0 -> FALSE | G20: 11.5 | H20: 3 | I20: 3 | J20: 4 | K20: 1.5
A21: 3 | B21: 18 | C21: =IF(Gesamtnote!C20=0,"",Gesamtnote!C20) -> Schüler 18 | D21: 1 | E21: 1 | F21: =SUMPRODUCT(--(H21:L21<>""))=0 -> FALSE | G21: 16 | H21: 3 | I21: 5 | J21: 5 | K21: 3 | P21: A | Q21: Foliendesign
A22: 3 | B22: 19 | C22: =IF(Gesamtnote!C21=0,"",Gesamtnote!C21) -> Schüler 19 | D22: 2 | E22: 0.84375 | F22: =SUMPRODUCT(--(H22:L22<>""))=0 -> FALSE | G22: 13.5 | H22: 3 | I22: 4.5 | J22: 4 | K22: 2 | P22: B | Q22: Vortrag
A23: 4 | B23: 20 | C23: =IF(Gesamtnote!C22=0,"",Gesamtnote!C22) -> Schüler 20 | D23: 1 | E23: 0.90625 | F23: =SUMPRODUCT(--(H23:L23<>""))=0 -> FALSE | G23: 14.5 | H23: 2.5 | I23: 4 | J23: 5 | K23: 3 | P23: C | Q23: Inhalt
A24: 2 | B24: 21 | C24: =IF(Gesamtnote!C23=0,"",Gesamtnote!C23) -> Schüler 21 | D24: 3 | E24: 0.65625 | F24: =SUMPRODUCT(--(H24:L24<>""))=0 -> FALSE | G24: 10.5 | H24: 3 | I24: 2.5 | J24: 3 | K24: 2 | P24: D | Q24: Anschaulichkeit / Reaktion auf Rückfragen
A25: 5 | B25: 22 | C25: =IF(Gesamtnote!C24=0,"",Gesamtnote!C24) -> Schüler 22 | D25: =IF(G25="K/NB","K/NB",_xlfn.XLOOKUP(G25,$R$15:$R$19,$P$15:$P$19,"",-1)) -> 3 | E25: 0.78125 | F25: =SUMPRODUCT(--(H25:L25<>""))=0 -> FALSE | G25: 12.5 | H25: 2.5 | I25: 4 | J25: 4 | K25: 2
B26: 23 | C26: =IF(Gesamtnote!C25=0,"",Gesamtnote!C25) ->  | D26: K/NB | E26: K/NB | F26: =SUMPRODUCT(--(H26:L26<>""))=0 -> TRUE | G26: K/NB
B27: 24 | C27: =IF(Gesamtnote!C26=0,"",Gesamtnote!C26) ->  | D27: K/NB | E27: K/NB | F27: =SUMPRODUCT(--(H27:L27<>""))=0 -> TRUE | G27: K/NB
B28: 25 | C28: =IF(Gesamtnote!C27=0,"",Gesamtnote!C27) ->  | D28: K/NB | E28: K/NB | F28: =SUMPRODUCT(--(H28:L28<>""))=0 -> TRUE | G28: K/NB
C29: Ø | D29: =IFERROR(AVERAGEIF(D4:D28,"<>",D4:D28),"") -> 2.136363636 | E29: =IFERROR(AVERAGEIF(E4:E28,"<>",E4:E28),"") -> 0.8323863636 | G29: 13.31818182 | H29: 2.590909091 | I29: 4.227272727 | J29: 4.136363636 | K29: 2.363636364

Sheet Semester 2
A1: zurück
B2: Nr. | C2: Name | D2: S2 Lehrer | E2: Note | F2: h | G2: i | H2: Gesamt | I2: MA | J2: Heft | K2: Wdh | L2: Test 1 | M2: Test 2 | N2: Test gemacht? | O2: h | P2: i | AC2: =Notenskala!B4 -> Nicht Beurteilt | AD2: =Notenskala!C4 -> K/NB | AE2: =Notenskala!D4 -> K/NB | AF2: =Notenskala!E4 -> K/NB
B3: 1 | C3: =IF(Gesamtnote!C3=0,"",Gesamtnote!C3) -> Schüler 1 | E3: =IFERROR(IF(H3=0,"",VLOOKUP(H3,Notenskala!$D$4:$E$9,2,TRUE)),"") ->  | F3: =IF(O3<2%,"h",IF(O3<4%,"k"," ")) ->  | G3: =IF(P3<2%,"i",IF(P3<4%,"m"," ")) ->  | H3: =IFERROR(_xlfn.IFS(N3=2,SUMPRODUCT(I3:M3,$I$29:$M$29)/SUM($I$29:$M$29),N3=1,SUMPRODUCT(I3:L3,$I$30:$L$30)/SUM($I$30:$L$30),N3=0,SUMPRODUCT(I3:K3,$I$31:$K$31)/SUM($I$31:$K$31)),"") -> 0 | I3: ='MA 2'!E3 ->  | J3: ='Heft 2'!E3 ->  | K3: ='Wdh 2'!E6 ->  | L3: ='Test 2.1'!E4 -> K/NB | M3: ='Test 2.2'!E4 -> K/NB | N3: =COUNT(L3:M3) -> 0 | O3: =IFERROR(IF(E3=1,"",IF(E3=2,Notenskala!$D$9-H3,IF(E3=3,Notenskala!$D$8-H3,IF(E3=4,Notenskala!$D$7-H3,IF(E3=5,Notenskala!$D$6-H3))))),"") -> FALSE | P3: =IFERROR(IF(E3=1,H3-Notenskala!$C$8,IF(E3=2,H3-Notenskala!$C$7,IF(E3=3,H3-Notenskala!$C$6,IF(E3=4,H3-Notenskala!$C$5,IF(E3=5,""))))),"") -> FALSE | AC3: =Notenskala!B5 -> Nicht Genügend | AD3: =Notenskala!C5 -> 0.4999 | AE3: =Notenskala!D5 -> 0 | AF3: =Notenskala!E5 -> 5
B4: 2 | C4: =IF(Gesamtnote!C4=0,"",Gesamtnote!C4) -> Schüler 2 | E4: =IFERROR(IF(H4=0,"",VLOOKUP(H4,Notenskala!$D$4:$E$9,2,TRUE)),"") ->  | H4: =IFERROR(_xlfn.IFS(N4=2,SUMPRODUCT(I4:M4,$I$29:$M$29)/SUM($I$29:$M$29),N4=1,SUMPRODUCT(I4:L4,$I$30:$L$30)/SUM($I$30:$L$30),N4=0,SUMPRODUCT(I4:K4,$I$31:$K$31)/SUM($I$31:$K$31)),"") -> 0 | I4: ='MA 2'!E4 ->  | J4: ='Heft 2'!E4 ->  | K4: ='Wdh 2'!E7 ->  | L4: ='Test 2.1'!E5 -> K/NB | M4: ='Test 2.2'!E5 -> K/NB | N4: =COUNT(L4:M4) -> 0 | O4: =IFERROR(IF(E4=1,"",IF(E4=2,Notenskala!$D$9-H4,IF(E4=3,Notenskala!$D$8-H4,IF(E4=4,Notenskala!$D$7-H4,IF(E4=5,Notenskala!$D$6-H4))))),"") -> FALSE | P4: =IFERROR(IF(E4=1,H4-Notenskala!$C$8,IF(E4=2,H4-Notenskala!$C$7,IF(E4=3,H4-Notenskala!$C$6,IF(E4=4,H4-Notenskala!$C$5,IF(E4=5,""))))),"") -> FALSE | AC4: =Notenskala!B6 -> Genügend | AD4: =Notenskala!C6 -> 0.6499 | AE4: =Notenskala!D6 -> 0.5 | AF4: =Notenskala!E6 -> 4
B5: 3 | C5: =IF(Gesamtnote!C5=0,"",Gesamtnote!C5) -> Schüler 3 | E5: =IFERROR(IF(H5=0,"",VLOOKUP(H5,Notenskala!$D$4:$E$9,2,TRUE)),"") ->  | H5: =IFERROR(_xlfn.IFS(N5=2,SUMPRODUCT(I5:M5,$I$29:$M$29)/SUM($I$29:$M$29),N5=1,SUMPRODUCT(I5:L5,$I$30:$L$30)/SUM($I$30:$L$30),N5=0,SUMPRODUCT(I5:K5,$I$31:$K$31)/SUM($I$31:$K$31)),"") -> 0 | I5: ='MA 2'!E5 ->  | J5: ='Heft 2'!E5 ->  | K5: ='Wdh 2'!E8 ->  | L5: ='Test 2.1'!E6 -> K/NB | M5: ='Test 2.2'!E6 -> K/NB | N5: 0 | O5: =IFERROR(IF(E5=1,"",IF(E5=2,Notenskala!$D$9-H5,IF(E5=3,Notenskala!$D$8-H5,IF(E5=4,Notenskala!$D$7-H5,IF(E5=5,Notenskala!$D$6-H5))))),"") -> FALSE | P5: =IFERROR(IF(E5=1,H5-Notenskala!$C$8,IF(E5=2,H5-Notenskala!$C$7,IF(E5=3,H5-Notenskala!$C$6,IF(E5=4,H5-Notenskala!$C$5,IF(E5=5,""))))),"") -> FALSE | AC5: =Notenskala!B7 -> Befriedigend | AD5: =Notenskala!C7 -> 0.8099 | AE5: =Notenskala!D7 -> 0.65 | AF5: =Notenskala!E7 -> 3
B6: 4 | C6: =IF(Gesamtnote!C6=0,"",Gesamtnote!C6) -> Schüler 4 | E6: =IFERROR(IF(H6=0,"",VLOOKUP(H6,Notenskala!$D$4:$E$9,2,TRUE)),"") ->  | H6: =IFERROR(_xlfn.IFS(N6=2,SUMPRODUCT(I6:M6,$I$29:$M$29)/SUM($I$29:$M$29),N6=1,SUMPRODUCT(I6:L6,$I$30:$L$30)/SUM($I$30:$L$30),N6=0,SUMPRODUCT(I6:K6,$I$31:$K$31)/SUM($I$31:$K$31)),"") -> 0 | I6: ='MA 2'!E6 ->  | J6: ='Heft 2'!E6 ->  | K6: ='Wdh 2'!E9 ->  | L6: ='Test 2.1'!E7 -> K/NB | M6: ='Test 2.2'!E7 -> K/NB | N6: 0 | O6: =IFERROR(IF(E6=1,"",IF(E6=2,Notenskala!$D$9-H6,IF(E6=3,Notenskala!$D$8-H6,IF(E6=4,Notenskala!$D$7-H6,IF(E6=5,Notenskala!$D$6-H6))))),"") -> FALSE | P6: =IFERROR(IF(E6=1,H6-Notenskala!$C$8,IF(E6=2,H6-Notenskala!$C$7,IF(E6=3,H6-Notenskala!$C$6,IF(E6=4,H6-Notenskala!$C$5,IF(E6=5,""))))),"") -> FALSE | AC6: =Notenskala!B8 -> Gut | AD6: =Notenskala!C8 -> 0.9099 | AE6: =Notenskala!D8 -> 0.81 | AF6: =Notenskala!E8 -> 2
B7: 5 | C7: =IF(Gesamtnote!C7=0,"",Gesamtnote!C7) -> Schüler 5 | E7: =IFERROR(IF(H7=0,"",VLOOKUP(H7,Notenskala!$D$4:$E$9,2,TRUE)),"") ->  | H7: =IFERROR(_xlfn.IFS(N7=2,SUMPRODUCT(I7:M7,$I$29:$M$29)/SUM($I$29:$M$29),N7=1,SUMPRODUCT(I7:L7,$I$30:$L$30)/SUM($I$30:$L$30),N7=0,SUMPRODUCT(I7:K7,$I$31:$K$31)/SUM($I$31:$K$31)),"") -> 0 | I7: ='MA 2'!E7 ->  | J7: ='Heft 2'!E7 ->  | K7: ='Wdh 2'!E10 ->  | L7: ='Test 2.1'!E8 -> K/NB | M7: ='Test 2.2'!E8 -> K/NB | N7: 0 | O7: =IFERROR(IF(E7=1,"",IF(E7=2,Notenskala!$D$9-H7,IF(E7=3,Notenskala!$D$8-H7,IF(E7=4,Notenskala!$D$7-H7,IF(E7=5,Notenskala!$D$6-H7))))),"") -> FALSE | P7: =IFERROR(IF(E7=1,H7-Notenskala!$C$8,IF(E7=2,H7-Notenskala!$C$7,IF(E7=3,H7-Notenskala!$C$6,IF(E7=4,H7-Notenskala!$C$5,IF(E7=5,""))))),"") -> FALSE | AC7: =Notenskala!B9 -> Sehr Gut | AD7: =Notenskala!C9 -> 1 | AE7: =Notenskala!D9 -> 0.91 | AF7: =Notenskala!E9 -> 1
B8: 6 | C8: =IF(Gesamtnote!C8=0,"",Gesamtnote!C8) -> Schüler 6 | E8: =IFERROR(IF(H8=0,"",VLOOKUP(H8,Notenskala!$D$4:$E$9,2,TRUE)),"") ->  | H8: =IFERROR(_xlfn.IFS(N8=2,SUMPRODUCT(I8:M8,$I$29:$M$29)/SUM($I$29:$M$29),N8=1,SUMPRODUCT(I8:L8,$I$30:$L$30)/SUM($I$30:$L$30),N8=0,SUMPRODUCT(I8:K8,$I$31:$K$31)/SUM($I$31:$K$31)),"") -> 0 | I8: ='MA 2'!E8 ->  | J8: ='Heft 2'!E8 ->  | K8: ='Wdh 2'!E11 ->  | L8: ='Test 2.1'!E9 -> K/NB | M8: ='Test 2.2'!E9 -> K/NB | N8: 0 | O8: =IFERROR(IF(E8=1,"",IF(E8=2,Notenskala!$D$9-H8,IF(E8=3,Notenskala!$D$8-H8,IF(E8=4,Notenskala!$D$7-H8,IF(E8=5,Notenskala!$D$6-H8))))),"") -> FALSE | P8: =IFERROR(IF(E8=1,H8-Notenskala!$C$8,IF(E8=2,H8-Notenskala!$C$7,IF(E8=3,H8-Notenskala!$C$6,IF(E8=4,H8-Notenskala!$C$5,IF(E8=5,""))))),"") -> FALSE
B9: 7 | C9: =IF(Gesamtnote!C9=0,"",Gesamtnote!C9) -> Schüler 7 | E9: =IFERROR(IF(H9=0,"",VLOOKUP(H9,Notenskala!$D$4:$E$9,2,TRUE)),"") ->  | H9: =IFERROR(_xlfn.IFS(N9=2,SUMPRODUCT(I9:M9,$I$29:$M$29)/SUM($I$29:$M$29),N9=1,SUMPRODUCT(I9:L9,$I$30:$L$30)/SUM($I$30:$L$30),N9=0,SUMPRODUCT(I9:K9,$I$31:$K$31)/SUM($I$31:$K$31)),"") -> 0 | I9: ='MA 2'!E9 ->  | J9: ='Heft 2'!E9 ->  | K9: ='Wdh 2'!E12 ->  | L9: ='Test 2.1'!E10 -> K/NB | M9: ='Test 2.2'!E10 -> K/NB | N9: 0 | O9: =IFERROR(IF(E9=1,"",IF(E9=2,Notenskala!$D$9-H9,IF(E9=3,Notenskala!$D$8-H9,IF(E9=4,Notenskala!$D$7-H9,IF(E9=5,Notenskala!$D$6-H9))))),"") -> FALSE | P9: =IFERROR(IF(E9=1,H9-Notenskala!$C$8,IF(E9=2,H9-Notenskala!$C$7,IF(E9=3,H9-Notenskala!$C$6,IF(E9=4,H9-Notenskala!$C$5,IF(E9=5,""))))),"") -> FALSE
B10: 8 | C10: =IF(Gesamtnote!C10=0,"",Gesamtnote!C10) -> Schüler 8 | E10: =IFERROR(IF(H10=0,"",VLOOKUP(H10,Notenskala!$D$4:$E$9,2,TRUE)),"") ->  | H10: =IFERROR(_xlfn.IFS(N10=2,SUMPRODUCT(I10:M10,$I$29:$M$29)/SUM($I$29:$M$29),N10=1,SUMPRODUCT(I10:L10,$I$30:$L$30)/SUM($I$30:$L$30),N10=0,SUMPRODUCT(I10:K10,$I$31:$K$31)/SUM($I$31:$K$31)),"") -> 0 | I10: ='MA 2'!E10 ->  | J10: ='Heft 2'!E10 ->  | K10: ='Wdh 2'!E13 ->  | L10: ='Test 2.1'!E11 -> K/NB | M10: ='Test 2.2'!E11 -> K/NB | N10: 0 | O10: =IFERROR(IF(E10=1,"",IF(E10=2,Notenskala!$D$9-H10,IF(E10=3,Notenskala!$D$8-H10,IF(E10=4,Notenskala!$D$7-H10,IF(E10=5,Notenskala!$D$6-H10))))),"") -> FALSE | P10: =IFERROR(IF(E10=1,H10-Notenskala!$C$8,IF(E10=2,H10-Notenskala!$C$7,IF(E10=3,H10-Notenskala!$C$6,IF(E10=4,H10-Notenskala!$C$5,IF(E10=5,""))))),"") -> FALSE
B11: 9 | C11: =IF(Gesamtnote!C11=0,"",Gesamtnote!C11) -> Schüler 9 | E11: =IFERROR(IF(H11=0,"",VLOOKUP(H11,Notenskala!$D$4:$E$9,2,TRUE)),"") ->  | H11: =IFERROR(_xlfn.IFS(N11=2,SUMPRODUCT(I11:M11,$I$29:$M$29)/SUM($I$29:$M$29),N11=1,SUMPRODUCT(I11:L11,$I$30:$L$30)/SUM($I$30:$L$30),N11=0,SUMPRODUCT(I11:K11,$I$31:$K$31)/SUM($I$31:$K$31)),"") -> 0 | I11: ='MA 2'!E11 ->  | J11: ='Heft 2'!E11 ->  | K11: ='Wdh 2'!E14 ->  | L11: ='Test 2.1'!E12 -> K/NB | M11: ='Test 2.2'!E12 -> K/NB | N11: 0 | O11: =IFERROR(IF(E11=1,"",IF(E11=2,Notenskala!$D$9-H11,IF(E11=3,Notenskala!$D$8-H11,IF(E11=4,Notenskala!$D$7-H11,IF(E11=5,Notenskala!$D$6-H11))))),"") -> FALSE | P11: =IFERROR(IF(E11=1,H11-Notenskala!$C$8,IF(E11=2,H11-Notenskala!$C$7,IF(E11=3,H11-Notenskala!$C$6,IF(E11=4,H11-Notenskala!$C$5,IF(E11=5,""))))),"") -> FALSE
B12: 10 | C12: =IF(Gesamtnote!C12=0,"",Gesamtnote!C12) -> Schüler 10 | E12: =IFERROR(IF(H12=0,"",VLOOKUP(H12,Notenskala!$D$4:$E$9,2,TRUE)),"") ->  | H12: =IFERROR(_xlfn.IFS(N12=2,SUMPRODUCT(I12:M12,$I$29:$M$29)/SUM($I$29:$M$29),N12=1,SUMPRODUCT(I12:L12,$I$30:$L$30)/SUM($I$30:$L$30),N12=0,SUMPRODUCT(I12:K12,$I$31:$K$31)/SUM($I$31:$K$31)),"") -> 0 | I12: ='MA 2'!E12 ->  | J12: ='Heft 2'!E12 ->  | K12: ='Wdh 2'!E15 ->  | L12: ='Test 2.1'!E13 -> K/NB | M12: ='Test 2.2'!E13 -> K/NB | N12: 0 | O12: =IFERROR(IF(E12=1,"",IF(E12=2,Notenskala!$D$9-H12,IF(E12=3,Notenskala!$D$8-H12,IF(E12=4,Notenskala!$D$7-H12,IF(E12=5,Notenskala!$D$6-H12))))),"") -> FALSE | P12: =IFERROR(IF(E12=1,H12-Notenskala!$C$8,IF(E12=2,H12-Notenskala!$C$7,IF(E12=3,H12-Notenskala!$C$6,IF(E12=4,H12-Notenskala!$C$5,IF(E12=5,""))))),"") -> FALSE
B13: 11 | C13: =IF(Gesamtnote!C13=0,"",Gesamtnote!C13) -> Schüler 11 | E13: =IFERROR(IF(H13=0,"",VLOOKUP(H13,Notenskala!$D$4:$E$9,2,TRUE)),"") ->  | H13: =IFERROR(_xlfn.IFS(N13=2,SUMPRODUCT(I13:M13,$I$29:$M$29)/SUM($I$29:$M$29),N13=1,SUMPRODUCT(I13:L13,$I$30:$L$30)/SUM($I$30:$L$30),N13=0,SUMPRODUCT(I13:K13,$I$31:$K$31)/SUM($I$31:$K$31)),"") -> 0 | I13: ='MA 2'!E13 ->  | J13: ='Heft 2'!E13 ->  | K13: ='Wdh 2'!E16 ->  | L13: ='Test 2.1'!E14 -> K/NB | M13: ='Test 2.2'!E14 -> K/NB | N13: 0 | O13: =IFERROR(IF(E13=1,"",IF(E13=2,Notenskala!$D$9-H13,IF(E13=3,Notenskala!$D$8-H13,IF(E13=4,Notenskala!$D$7-H13,IF(E13=5,Notenskala!$D$6-H13))))),"") -> FALSE | P13: =IFERROR(IF(E13=1,H13-Notenskala!$C$8,IF(E13=2,H13-Notenskala!$C$7,IF(E13=3,H13-Notenskala!$C$6,IF(E13=4,H13-Notenskala!$C$5,IF(E13=5,""))))),"") -> FALSE
B14: 12 | C14: =IF(Gesamtnote!C14=0,"",Gesamtnote!C14) -> Schüler 12 | E14: =IFERROR(IF(H14=0,"",VLOOKUP(H14,Notenskala!$D$4:$E$9,2,TRUE)),"") ->  | H14: =IFERROR(_xlfn.IFS(N14=2,SUMPRODUCT(I14:M14,$I$29:$M$29)/SUM($I$29:$M$29),N14=1,SUMPRODUCT(I14:L14,$I$30:$L$30)/SUM($I$30:$L$30),N14=0,SUMPRODUCT(I14:K14,$I$31:$K$31)/SUM($I$31:$K$31)),"") -> 0 | I14: ='MA 2'!E14 ->  | J14: ='Heft 2'!E14 ->  | K14: ='Wdh 2'!E17 ->  | L14: ='Test 2.1'!E15 -> K/NB | M14: ='Test 2.2'!E15 -> K/NB | N14: 0 | O14: =IFERROR(IF(E14=1,"",IF(E14=2,Notenskala!$D$9-H14,IF(E14=3,Notenskala!$D$8-H14,IF(E14=4,Notenskala!$D$7-H14,IF(E14=5,Notenskala!$D$6-H14))))),"") -> FALSE | P14: =IFERROR(IF(E14=1,H14-Notenskala!$C$8,IF(E14=2,H14-Notenskala!$C$7,IF(E14=3,H14-Notenskala!$C$6,IF(E14=4,H14-Notenskala!$C$5,IF(E14=5,""))))),"") -> FALSE
B15: 13 | C15: =IF(Gesamtnote!C15=0,"",Gesamtnote!C15) -> Schüler 13 | E15: =IFERROR(IF(H15=0,"",VLOOKUP(H15,Notenskala!$D$4:$E$9,2,TRUE)),"") ->  | H15: =IFERROR(_xlfn.IFS(N15=2,SUMPRODUCT(I15:M15,$I$29:$M$29)/SUM($I$29:$M$29),N15=1,SUMPRODUCT(I15:L15,$I$30:$L$30)/SUM($I$30:$L$30),N15=0,SUMPRODUCT(I15:K15,$I$31:$K$31)/SUM($I$31:$K$31)),"") -> 0 | I15: ='MA 2'!E15 ->  | J15: ='Heft 2'!E15 ->  | K15: ='Wdh 2'!E18 ->  | L15: ='Test 2.1'!E16 -> K/NB | M15: ='Test 2.2'!E16 -> K/NB | N15: 0 | O15: =IFERROR(IF(E15=1,"",IF(E15=2,Notenskala!$D$9-H15,IF(E15=3,Notenskala!$D$8-H15,IF(E15=4,Notenskala!$D$7-H15,IF(E15=5,Notenskala!$D$6-H15))))),"") -> FALSE | P15: =IFERROR(IF(E15=1,H15-Notenskala!$C$8,IF(E15=2,H15-Notenskala!$C$7,IF(E15=3,H15-Notenskala!$C$6,IF(E15=4,H15-Notenskala!$C$5,IF(E15=5,""))))),"") -> FALSE
B16: 14 | C16: =IF(Gesamtnote!C16=0,"",Gesamtnote!C16) -> Schüler 14 | E16: =IFERROR(IF(H16=0,"",VLOOKUP(H16,Notenskala!$D$4:$E$9,2,TRUE)),"") ->  | H16: =IFERROR(_xlfn.IFS(N16=2,SUMPRODUCT(I16:M16,$I$29:$M$29)/SUM($I$29:$M$29),N16=1,SUMPRODUCT(I16:L16,$I$30:$L$30)/SUM($I$30:$L$30),N16=0,SUMPRODUCT(I16:K16,$I$31:$K$31)/SUM($I$31:$K$31)),"") -> 0 | I16: ='MA 2'!E16 ->  | J16: ='Heft 2'!E16 ->  | K16: ='Wdh 2'!E19 ->  | L16: ='Test 2.1'!E17 -> K/NB | M16: ='Test 2.2'!E17 -> K/NB | N16: 0 | O16: =IFERROR(IF(E16=1,"",IF(E16=2,Notenskala!$D$9-H16,IF(E16=3,Notenskala!$D$8-H16,IF(E16=4,Notenskala!$D$7-H16,IF(E16=5,Notenskala!$D$6-H16))))),"") -> FALSE | P16: =IFERROR(IF(E16=1,H16-Notenskala!$C$8,IF(E16=2,H16-Notenskala!$C$7,IF(E16=3,H16-Notenskala!$C$6,IF(E16=4,H16-Notenskala!$C$5,IF(E16=5,""))))),"") -> FALSE
B17: 15 | C17: =IF(Gesamtnote!C17=0,"",Gesamtnote!C17) -> Schüler 15 | E17: =IFERROR(IF(H17=0,"",VLOOKUP(H17,Notenskala!$D$4:$E$9,2,TRUE)),"") ->  | H17: =IFERROR(_xlfn.IFS(N17=2,SUMPRODUCT(I17:M17,$I$29:$M$29)/SUM($I$29:$M$29),N17=1,SUMPRODUCT(I17:L17,$I$30:$L$30)/SUM($I$30:$L$30),N17=0,SUMPRODUCT(I17:K17,$I$31:$K$31)/SUM($I$31:$K$31)),"") -> 0 | I17: ='MA 2'!E17 ->  | J17: ='Heft 2'!E17 ->  | K17: ='Wdh 2'!E20 ->  | L17: ='Test 2.1'!E18 -> K/NB | M17: ='Test 2.2'!E18 -> K/NB | N17: 0 | O17: =IFERROR(IF(E17=1,"",IF(E17=2,Notenskala!$D$9-H17,IF(E17=3,Notenskala!$D$8-H17,IF(E17=4,Notenskala!$D$7-H17,IF(E17=5,Notenskala!$D$6-H17))))),"") -> FALSE | P17: =IFERROR(IF(E17=1,H17-Notenskala!$C$8,IF(E17=2,H17-Notenskala!$C$7,IF(E17=3,H17-Notenskala!$C$6,IF(E17=4,H17-Notenskala!$C$5,IF(E17=5,""))))),"") -> FALSE
B18: 16 | C18: =IF(Gesamtnote!C18=0,"",Gesamtnote!C18) -> Schüler 16 | E18: =IFERROR(IF(H18=0,"",VLOOKUP(H18,Notenskala!$D$4:$E$9,2,TRUE)),"") ->  | H18: =IFERROR(_xlfn.IFS(N18=2,SUMPRODUCT(I18:M18,$I$29:$M$29)/SUM($I$29:$M$29),N18=1,SUMPRODUCT(I18:L18,$I$30:$L$30)/SUM($I$30:$L$30),N18=0,SUMPRODUCT(I18:K18,$I$31:$K$31)/SUM($I$31:$K$31)),"") -> 0 | I18: ='MA 2'!E18 ->  | J18: ='Heft 2'!E18 ->  | K18: ='Wdh 2'!E21 ->  | L18: ='Test 2.1'!E19 -> K/NB | M18: ='Test 2.2'!E19 -> K/NB | N18: 0 | O18: =IFERROR(IF(E18=1,"",IF(E18=2,Notenskala!$D$9-H18,IF(E18=3,Notenskala!$D$8-H18,IF(E18=4,Notenskala!$D$7-H18,IF(E18=5,Notenskala!$D$6-H18))))),"") -> FALSE | P18: =IFERROR(IF(E18=1,H18-Notenskala!$C$8,IF(E18=2,H18-Notenskala!$C$7,IF(E18=3,H18-Notenskala!$C$6,IF(E18=4,H18-Notenskala!$C$5,IF(E18=5,""))))),"") -> FALSE
B19: 17 | C19: =IF(Gesamtnote!C19=0,"",Gesamtnote!C19) -> Schüler 17 | E19: =IFERROR(IF(H19=0,"",VLOOKUP(H19,Notenskala!$D$4:$E$9,2,TRUE)),"") ->  | H19: =IFERROR(_xlfn.IFS(N19=2,SUMPRODUCT(I19:M19,$I$29:$M$29)/SUM($I$29:$M$29),N19=1,SUMPRODUCT(I19:L19,$I$30:$L$30)/SUM($I$30:$L$30),N19=0,SUMPRODUCT(I19:K19,$I$31:$K$31)/SUM($I$31:$K$31)),"") -> 0 | I19: ='MA 2'!E19 ->  | J19: ='Heft 2'!E19 ->  | K19: ='Wdh 2'!E22 ->  | L19: ='Test 2.1'!E20 -> K/NB | M19: ='Test 2.2'!E20 -> K/NB | N19: 0 | O19: =IFERROR(IF(E19=1,"",IF(E19=2,Notenskala!$D$9-H19,IF(E19=3,Notenskala!$D$8-H19,IF(E19=4,Notenskala!$D$7-H19,IF(E19=5,Notenskala!$D$6-H19))))),"") -> FALSE | P19: =IFERROR(IF(E19=1,H19-Notenskala!$C$8,IF(E19=2,H19-Notenskala!$C$7,IF(E19=3,H19-Notenskala!$C$6,IF(E19=4,H19-Notenskala!$C$5,IF(E19=5,""))))),"") -> FALSE
B20: 18 | C20: =IF(Gesamtnote!C20=0,"",Gesamtnote!C20) -> Schüler 18 | E20: =IFERROR(IF(H20=0,"",VLOOKUP(H20,Notenskala!$D$4:$E$9,2,TRUE)),"") ->  | H20: =IFERROR(_xlfn.IFS(N20=2,SUMPRODUCT(I20:M20,$I$29:$M$29)/SUM($I$29:$M$29),N20=1,SUMPRODUCT(I20:L20,$I$30:$L$30)/SUM($I$30:$L$30),N20=0,SUMPRODUCT(I20:K20,$I$31:$K$31)/SUM($I$31:$K$31)),"") -> 0 | I20: ='MA 2'!E20 ->  | J20: ='Heft 2'!E20 ->  | K20: ='Wdh 2'!E23 ->  | L20: ='Test 2.1'!E21 -> K/NB | M20: ='Test 2.2'!E21 -> K/NB | N20: 0 | O20: =IFERROR(IF(E20=1,"",IF(E20=2,Notenskala!$D$9-H20,IF(E20=3,Notenskala!$D$8-H20,IF(E20=4,Notenskala!$D$7-H20,IF(E20=5,Notenskala!$D$6-H20))))),"") -> FALSE | P20: =IFERROR(IF(E20=1,H20-Notenskala!$C$8,IF(E20=2,H20-Notenskala!$C$7,IF(E20=3,H20-Notenskala!$C$6,IF(E20=4,H20-Notenskala!$C$5,IF(E20=5,""))))),"") -> FALSE
B21: 19 | C21: =IF(Gesamtnote!C21=0,"",Gesamtnote!C21) -> Schüler 19 | E21: =IFERROR(IF(H21=0,"",VLOOKUP(H21,Notenskala!$D$4:$E$9,2,TRUE)),"") ->  | H21: =IFERROR(_xlfn.IFS(N21=2,SUMPRODUCT(I21:M21,$I$29:$M$29)/SUM($I$29:$M$29),N21=1,SUMPRODUCT(I21:L21,$I$30:$L$30)/SUM($I$30:$L$30),N21=0,SUMPRODUCT(I21:K21,$I$31:$K$31)/SUM($I$31:$K$31)),"") -> 0 | I21: ='MA 2'!E21 ->  | J21: ='Heft 2'!E21 ->  | K21: ='Wdh 2'!E24 ->  | L21: ='Test 2.1'!E22 -> K/NB | M21: ='Test 2.2'!E22 -> K/NB | N21: 0 | O21: =IFERROR(IF(E21=1,"",IF(E21=2,Notenskala!$D$9-H21,IF(E21=3,Notenskala!$D$8-H21,IF(E21=4,Notenskala!$D$7-H21,IF(E21=5,Notenskala!$D$6-H21))))),"") -> FALSE | P21: =IFERROR(IF(E21=1,H21-Notenskala!$C$8,IF(E21=2,H21-Notenskala!$C$7,IF(E21=3,H21-Notenskala!$C$6,IF(E21=4,H21-Notenskala!$C$5,IF(E21=5,""))))),"") -> FALSE
B22: 20 | C22: =IF(Gesamtnote!C22=0,"",Gesamtnote!C22) -> Schüler 20 | E22: =IFERROR(IF(H22=0,"",VLOOKUP(H22,Notenskala!$D$4:$E$9,2,TRUE)),"") ->  | H22: =IFERROR(_xlfn.IFS(N22=2,SUMPRODUCT(I22:M22,$I$29:$M$29)/SUM($I$29:$M$29),N22=1,SUMPRODUCT(I22:L22,$I$30:$L$30)/SUM($I$30:$L$30),N22=0,SUMPRODUCT(I22:K22,$I$31:$K$31)/SUM($I$31:$K$31)),"") -> 0 | I22: ='MA 2'!E22 ->  | J22: ='Heft 2'!E22 ->  | K22: ='Wdh 2'!E25 ->  | L22: ='Test 2.1'!E23 -> K/NB | M22: ='Test 2.2'!E23 -> K/NB | N22: 0 | O22: =IFERROR(IF(E22=1,"",IF(E22=2,Notenskala!$D$9-H22,IF(E22=3,Notenskala!$D$8-H22,IF(E22=4,Notenskala!$D$7-H22,IF(E22=5,Notenskala!$D$6-H22))))),"") -> FALSE | P22: =IFERROR(IF(E22=1,H22-Notenskala!$C$8,IF(E22=2,H22-Notenskala!$C$7,IF(E22=3,H22-Notenskala!$C$6,IF(E22=4,H22-Notenskala!$C$5,IF(E22=5,""))))),"") -> FALSE
B23: 21 | C23: =IF(Gesamtnote!C23=0,"",Gesamtnote!C23) -> Schüler 21 | E23: =IFERROR(IF(H23=0,"",VLOOKUP(H23,Notenskala!$D$4:$E$9,2,TRUE)),"") ->  | H23: =IFERROR(_xlfn.IFS(N23=2,SUMPRODUCT(I23:M23,$I$29:$M$29)/SUM($I$29:$M$29),N23=1,SUMPRODUCT(I23:L23,$I$30:$L$30)/SUM($I$30:$L$30),N23=0,SUMPRODUCT(I23:K23,$I$31:$K$31)/SUM($I$31:$K$31)),"") -> 0 | I23: ='MA 2'!E23 ->  | J23: ='Heft 2'!E23 ->  | K23: ='Wdh 2'!E26 ->  | L23: ='Test 2.1'!E24 -> K/NB | M23: ='Test 2.2'!E24 -> K/NB | N23: 0 | O23: =IFERROR(IF(E23=1,"",IF(E23=2,Notenskala!$D$9-H23,IF(E23=3,Notenskala!$D$8-H23,IF(E23=4,Notenskala!$D$7-H23,IF(E23=5,Notenskala!$D$6-H23))))),"") -> FALSE | P23: =IFERROR(IF(E23=1,H23-Notenskala!$C$8,IF(E23=2,H23-Notenskala!$C$7,IF(E23=3,H23-Notenskala!$C$6,IF(E23=4,H23-Notenskala!$C$5,IF(E23=5,""))))),"") -> FALSE
B24: 22 | C24: =IF(Gesamtnote!C24=0,"",Gesamtnote!C24) -> Schüler 22 | E24: =IFERROR(IF(H24=0,"",VLOOKUP(H24,Notenskala!$D$4:$E$9,2,TRUE)),"") ->  | H24: =IFERROR(_xlfn.IFS(N24=2,SUMPRODUCT(I24:M24,$I$29:$M$29)/SUM($I$29:$M$29),N24=1,SUMPRODUCT(I24:L24,$I$30:$L$30)/SUM($I$30:$L$30),N24=0,SUMPRODUCT(I24:K24,$I$31:$K$31)/SUM($I$31:$K$31)),"") -> 0 | I24: ='MA 2'!E24 ->  | J24: ='Heft 2'!E24 ->  | K24: ='Wdh 2'!E27 ->  | L24: ='Test 2.1'!E25 -> K/NB | M24: ='Test 2.2'!E25 -> K/NB | N24: 0 | O24: =IFERROR(IF(E24=1,"",IF(E24=2,Notenskala!$D$9-H24,IF(E24=3,Notenskala!$D$8-H24,IF(E24=4,Notenskala!$D$7-H24,IF(E24=5,Notenskala!$D$6-H24))))),"") -> FALSE | P24: =IFERROR(IF(E24=1,H24-Notenskala!$C$8,IF(E24=2,H24-Notenskala!$C$7,IF(E24=3,H24-Notenskala!$C$6,IF(E24=4,H24-Notenskala!$C$5,IF(E24=5,""))))),"") -> FALSE
B25: 23 | C25: =IF(Gesamtnote!C25=0,"",Gesamtnote!C25) ->  | E25: =IFERROR(IF(H25=0,"",VLOOKUP(H25,Notenskala!$D$4:$E$9,2,TRUE)),"") ->  | H25: =IFERROR(_xlfn.IFS(N25=2,SUMPRODUCT(I25:M25,$I$29:$M$29)/SUM($I$29:$M$29),N25=1,SUMPRODUCT(I25:L25,$I$30:$L$30)/SUM($I$30:$L$30),N25=0,SUMPRODUCT(I25:K25,$I$31:$K$31)/SUM($I$31:$K$31)),"") -> 0 | I25: ='MA 2'!E25 ->  | J25: ='Heft 2'!E25 ->  | K25: ='Wdh 2'!E28 ->  | L25: ='Test 2.1'!E26 -> K/NB | M25: ='Test 2.2'!E26 -> K/NB | N25: 0 | O25: =IFERROR(IF(E25=1,"",IF(E25=2,Notenskala!$D$9-H25,IF(E25=3,Notenskala!$D$8-H25,IF(E25=4,Notenskala!$D$7-H25,IF(E25=5,Notenskala!$D$6-H25))))),"") -> FALSE | P25: =IFERROR(IF(E25=1,H25-Notenskala!$C$8,IF(E25=2,H25-Notenskala!$C$7,IF(E25=3,H25-Notenskala!$C$6,IF(E25=4,H25-Notenskala!$C$5,IF(E25=5,""))))),"") -> FALSE
B26: 24 | C26: =IF(Gesamtnote!C26=0,"",Gesamtnote!C26) ->  | E26: =IFERROR(IF(H26=0,"",VLOOKUP(H26,Notenskala!$D$4:$E$9,2,TRUE)),"") ->  | H26: =IFERROR(_xlfn.IFS(N26=2,SUMPRODUCT(I26:M26,$I$29:$M$29)/SUM($I$29:$M$29),N26=1,SUMPRODUCT(I26:L26,$I$30:$L$30)/SUM($I$30:$L$30),N26=0,SUMPRODUCT(I26:K26,$I$31:$K$31)/SUM($I$31:$K$31)),"") -> 0 | I26: ='MA 2'!E26 ->  | J26: ='Heft 2'!E26 ->  | K26: ='Wdh 2'!E29 ->  | L26: ='Test 2.1'!E27 -> K/NB | M26: ='Test 2.2'!E27 -> K/NB | N26: 0 | O26: =IFERROR(IF(E26=1,"",IF(E26=2,Notenskala!$D$9-H26,IF(E26=3,Notenskala!$D$8-H26,IF(E26=4,Notenskala!$D$7-H26,IF(E26=5,Notenskala!$D$6-H26))))),"") -> FALSE | P26: =IFERROR(IF(E26=1,H26-Notenskala!$C$8,IF(E26=2,H26-Notenskala!$C$7,IF(E26=3,H26-Notenskala!$C$6,IF(E26=4,H26-Notenskala!$C$5,IF(E26=5,""))))),"") -> FALSE
B27: 25 | C27: =IF(Gesamtnote!C27=0,"",Gesamtnote!C27) ->  | E27: =IFERROR(IF(H27=0,"",VLOOKUP(H27,Notenskala!$D$4:$E$9,2,TRUE)),"") ->  | H27: =IFERROR(_xlfn.IFS(N27=2,SUMPRODUCT(I27:M27,$I$29:$M$29)/SUM($I$29:$M$29),N27=1,SUMPRODUCT(I27:L27,$I$30:$L$30)/SUM($I$30:$L$30),N27=0,SUMPRODUCT(I27:K27,$I$31:$K$31)/SUM($I$31:$K$31)),"") -> 0 | I27: ='MA 2'!E27 ->  | J27: ='Heft 2'!E27 ->  | K27: ='Wdh 2'!E30 ->  | L27: ='Test 2.1'!E28 -> K/NB | M27: ='Test 2.2'!E28 -> K/NB | N27: 0 | O27: =IFERROR(IF(E27=1,"",IF(E27=2,Notenskala!$D$9-H27,IF(E27=3,Notenskala!$D$8-H27,IF(E27=4,Notenskala!$D$7-H27,IF(E27=5,Notenskala!$D$6-H27))))),"") -> FALSE | P27: =IFERROR(IF(E27=1,H27-Notenskala!$C$8,IF(E27=2,H27-Notenskala!$C$7,IF(E27=3,H27-Notenskala!$C$6,IF(E27=4,H27-Notenskala!$C$5,IF(E27=5,""))))),"") -> FALSE
H29: Zwei Tests | I29: 0.2 | J29: 0.1 | K29: 0.2 | L29: 0.25 | M29: 0.25 | Q29: =SUM(I29:M29) -> 1
H30: Ein Test | I30: 0.2 | J30: 0.15 | K30: 0.25 | L30: 0.4 | Q30: =SUM(I30:M30) -> 1
H31: Kein Test | I31: 0.35 | J31: 0.25 | K31: 0.4 | Q31: 1
H32: MUSS immer 100 ergeben!
H33: für Ursprungswerte --> runterscrollen!
H50: #Default
H51: Zwei Tests | I51: 0.2 | J51: 0.1 | K51: 0.2 | L51: 0.25 | M51: 0.25
H52: Ein Test | I52: 0.2 | J52: 0.15 | K52: 0.25 | L52: 0.4
H53: Kein Test | I53: 0.35 | J53: 0.25 | K53: 0.4

Sheet MA 2
A1: zurück
B2: Nr. | C2: Name | D2: MA | E2: Prozente | F2: Stunden | G2: Krank | H2: Summe
B3: 1 | C3: =IF(Gesamtnote!C3=0,"",Gesamtnote!C3) -> Schüler 1 | D3: =IFERROR(VLOOKUP(E3,Notenskala!$D$4:$E$9,2,TRUE),"") ->  | E3: =IFERROR(H3/F3,"") ->  | F3: =$D$30-G3 -> 0 | G3: =COUNTIF(I3:BE3,"K") -> 0 | H3: =IF(SUM(I3:BE3)=0,"",SUM(I3:BE3)) -> 
B4: 2 | C4: =IF(Gesamtnote!C4=0,"",Gesamtnote!C4) -> Schüler 2 | D4: =IFERROR(VLOOKUP(E4,Notenskala!$D$4:$E$9,2,TRUE),"") ->  | E4: =IFERROR(H4/F4,"") ->  | F4: 0 | G4: =COUNTIF(I4:BE4,"K") -> 0 | H4: =IF(SUM(I4:BE4)=0,"",SUM(I4:BE4)) -> 
B5: 3 | C5: =IF(Gesamtnote!C5=0,"",Gesamtnote!C5) -> Schüler 3 | D5: =IFERROR(VLOOKUP(E5,Notenskala!$D$4:$E$9,2,TRUE),"") ->  | F5: 0 | G5: 0
B6: 4 | C6: =IF(Gesamtnote!C6=0,"",Gesamtnote!C6) -> Schüler 4 | D6: =IFERROR(VLOOKUP(E6,Notenskala!$D$4:$E$9,2,TRUE),"") ->  | F6: 0 | G6: 0
B7: 5 | C7: =IF(Gesamtnote!C7=0,"",Gesamtnote!C7) -> Schüler 5 | D7: =IFERROR(VLOOKUP(E7,Notenskala!$D$4:$E$9,2,TRUE),"") ->  | F7: 0 | G7: 0
B8: 6 | C8: =IF(Gesamtnote!C8=0,"",Gesamtnote!C8) -> Schüler 6 | D8: =IFERROR(VLOOKUP(E8,Notenskala!$D$4:$E$9,2,TRUE),"") ->  | F8: 0 | G8: 0
B9: 7 | C9: =IF(Gesamtnote!C9=0,"",Gesamtnote!C9) -> Schüler 7 | D9: =IFERROR(VLOOKUP(E9,Notenskala!$D$4:$E$9,2,TRUE),"") ->  | F9: 0 | G9: 0
B10: 8 | C10: =IF(Gesamtnote!C10=0,"",Gesamtnote!C10) -> Schüler 8 | D10: =IFERROR(VLOOKUP(E10,Notenskala!$D$4:$E$9,2,TRUE),"") ->  | F10: 0 | G10: 0
B11: 9 | C11: =IF(Gesamtnote!C11=0,"",Gesamtnote!C11) -> Schüler 9 | D11: =IFERROR(VLOOKUP(E11,Notenskala!$D$4:$E$9,2,TRUE),"") ->  | F11: 0 | G11: 0
B12: 10 | C12: =IF(Gesamtnote!C12=0,"",Gesamtnote!C12) -> Schüler 10 | D12: =IFERROR(VLOOKUP(E12,Notenskala!$D$4:$E$9,2,TRUE),"") ->  | F12: 0 | G12: 0
B13: 11 | C13: =IF(Gesamtnote!C13=0,"",Gesamtnote!C13) -> Schüler 11 | D13: =IFERROR(VLOOKUP(E13,Notenskala!$D$4:$E$9,2,TRUE),"") ->  | F13: 0 | G13: 0
B14: 12 | C14: =IF(Gesamtnote!C14=0,"",Gesamtnote!C14) -> Schüler 12 | D14: =IFERROR(VLOOKUP(E14,Notenskala!$D$4:$E$9,2,TRUE),"") ->  | F14: 0 | G14: 0
B15: 13 | C15: =IF(Gesamtnote!C15=0,"",Gesamtnote!C15) -> Schüler 13 | D15: =IFERROR(VLOOKUP(E15,Notenskala!$D$4:$E$9,2,TRUE),"") ->  | F15: 0 | G15: 0
B16: 14 | C16: =IF(Gesamtnote!C16=0,"",Gesamtnote!C16) -> Schüler 14 | D16: =IFERROR(VLOOKUP(E16,Notenskala!$D$4:$E$9,2,TRUE),"") ->  | F16: 0 | G16: 0
B17: 15 | C17: =IF(Gesamtnote!C17=0,"",Gesamtnote!C17) -> Schüler 15 | D17: =IFERROR(VLOOKUP(E17,Notenskala!$D$4:$E$9,2,TRUE),"") ->  | F17: 0 | G17: 0
B18: 16 | C18: =IF(Gesamtnote!C18=0,"",Gesamtnote!C18) -> Schüler 16 | D18: =IFERROR(VLOOKUP(E18,Notenskala!$D$4:$E$9,2,TRUE),"") ->  | F18: 0 | G18: 0
B19: 17 | C19: =IF(Gesamtnote!C19=0,"",Gesamtnote!C19) -> Schüler 17 | D19: =IFERROR(VLOOKUP(E19,Notenskala!$D$4:$E$9,2,TRUE),"") ->  | F19: 0 | G19: 0
B20: 18 | C20: =IF(Gesamtnote!C20=0,"",Gesamtnote!C20) -> Schüler 18 | D20: =IFERROR(VLOOKUP(E20,Notenskala!$D$4:$E$9,2,TRUE),"") ->  | F20: 0 | G20: 0
B21: 19 | C21: =IF(Gesamtnote!C21=0,"",Gesamtnote!C21) -> Schüler 19 | D21: =IFERROR(VLOOKUP(E21,Notenskala!$D$4:$E$9,2,TRUE),"") ->  | F21: 0 | G21: 0
B22: 20 | C22: =IF(Gesamtnote!C22=0,"",Gesamtnote!C22) -> Schüler 20 | D22: =IFERROR(VLOOKUP(E22,Notenskala!$D$4:$E$9,2,TRUE),"") ->  | F22: 0 | G22: 0
B23: 21 | C23: =IF(Gesamtnote!C23=0,"",Gesamtnote!C23) -> Schüler 21 | D23: =IFERROR(VLOOKUP(E23,Notenskala!$D$4:$E$9,2,TRUE),"") ->  | F23: 0 | G23: 0
B24: 22 | C24: =IF(Gesamtnote!C24=0,"",Gesamtnote!C24) -> Schüler 22 | D24: =IFERROR(VLOOKUP(E24,Notenskala!$D$4:$E$9,2,TRUE),"") ->  | F24: 0 | G24: 0
B25: 23 | C25: =IF(Gesamtnote!C25=0,"",Gesamtnote!C25) ->  | D25: =IFERROR(VLOOKUP(E25,Notenskala!$D$4:$E$9,2,TRUE),"") ->  | F25: 0 | G25: 0
B26: 24 | C26: =IF(Gesamtnote!C26=0,"",Gesamtnote!C26) ->  | D26: =IFERROR(VLOOKUP(E26,Notenskala!$D$4:$E$9,2,TRUE),"") ->  | F26: 0 | G26: 0
B27: 25 | C27: =IF(Gesamtnote!C27=0,"",Gesamtnote!C27) ->  | D27: =IFERROR(VLOOKUP(E27,Notenskala!$D$4:$E$9,2,TRUE),"") ->  | F27: 0 | G27: 0
C28: Ø | D28: =IFERROR(AVERAGE(D3:D27),"") ->  | E28: =IFERROR(AVERAGE(E3:E27),"") ->  | F28: =IFERROR(AVERAGE(F3:F27),"") -> 0 | G28: =IFERROR(AVERAGE(G3:G27),"") -> 0 | H28: =IFERROR(AVERAGE(H3:H27),"") -> 
C30: Stunden bis jetzt | D30: =COUNTA(I2:BE2) -> 0
C33: Sehr Gut | D33: =COUNTIF($D$3:$D$27,"1") -> 0
C34: Gut | D34: =COUNTIF($D$3:$D$27,"2") -> 0
C35: Befriedigend | D35: =COUNTIF($D$3:$D$27,"3") -> 0
C36: Genügend | D36: =COUNTIF($D$3:$D$27,"4") -> 0
C37: Nicht Genügend | D37: =COUNTIF($D$3:$D$27,"5") -> 0
C38: K / Nicht Beurteilt | D38: =COUNTIF($D$3:$D$27,"K/NB") -> 0
C40: Positiv | D40: =IFERROR(SUM(D33:D36)/SUM(D33:D37),"") -> 
C41: Negativ | D41: =IFERROR(D37/SUM(D33:D37),"") -> 

Sheet Wdh 2
A1: zurück
D2: Datum
D3: Inhalt
D4: Punkte
B5: Nr. | C5: Name | D5: Wdh | E5: Gesamt | F5: Ges. Punkte
B6: 1 | C6: ='Semester 1'!C3 -> Schüler 1 | D6: =IFERROR(VLOOKUP(E6,Notenskala!$D$4:$E$9,2,TRUE),"") ->  | E6: =IFERROR(SUMIF(G6:R6,"<>",G6:R6)/F6,"") ->  | F6: =SUMIF(G6:R6,"<>",$G$4:$R$4) -> 0
B7: 2 | C7: ='Semester 1'!C4 -> Schüler 2 | D7: =IFERROR(VLOOKUP(E7,Notenskala!$D$4:$E$9,2,TRUE),"") ->  | E7: =IFERROR(SUMIF(G7:R7,"<>",G7:R7)/F7,"") ->  | F7: 0
B8: 3 | C8: ='Semester 1'!C5 -> Schüler 3 | D8: =IFERROR(VLOOKUP(E8,Notenskala!$D$4:$E$9,2,TRUE),"") ->  | F8: 0
B9: 4 | C9: ='Semester 1'!C6 -> Schüler 4 | D9: =IFERROR(VLOOKUP(E9,Notenskala!$D$4:$E$9,2,TRUE),"") ->  | F9: 0
B10: 5 | C10: ='Semester 1'!C7 -> Schüler 5 | D10: =IFERROR(VLOOKUP(E10,Notenskala!$D$4:$E$9,2,TRUE),"") ->  | F10: 0
B11: 6 | C11: ='Semester 1'!C8 -> Schüler 6 | D11: =IFERROR(VLOOKUP(E11,Notenskala!$D$4:$E$9,2,TRUE),"") ->  | F11: 0
B12: 7 | C12: ='Semester 1'!C9 -> Schüler 7 | D12: =IFERROR(VLOOKUP(E12,Notenskala!$D$4:$E$9,2,TRUE),"") ->  | F12: 0
B13: 8 | C13: ='Semester 1'!C10 -> Schüler 8 | D13: =IFERROR(VLOOKUP(E13,Notenskala!$D$4:$E$9,2,TRUE),"") ->  | F13: 0
B14: 9 | C14: ='Semester 1'!C11 -> Schüler 9 | D14: =IFERROR(VLOOKUP(E14,Notenskala!$D$4:$E$9,2,TRUE),"") ->  | F14: 0
B15: 10 | C15: ='Semester 1'!C12 -> Schüler 10 | D15: =IFERROR(VLOOKUP(E15,Notenskala!$D$4:$E$9,2,TRUE),"") ->  | F15: 0
B16: 11 | C16: ='Semester 1'!C13 -> Schüler 11 | D16: =IFERROR(VLOOKUP(E16,Notenskala!$D$4:$E$9,2,TRUE),"") ->  | F16: 0
B17: 12 | C17: ='Semester 1'!C14 -> Schüler 12 | D17: =IFERROR(VLOOKUP(E17,Notenskala!$D$4:$E$9,2,TRUE),"") ->  | F17: 0
B18: 13 | C18: ='Semester 1'!C15 -> Schüler 13 | D18: =IFERROR(VLOOKUP(E18,Notenskala!$D$4:$E$9,2,TRUE),"") ->  | F18: 0
B19: 14 | C19: ='Semester 1'!C16 -> Schüler 14 | D19: =IFERROR(VLOOKUP(E19,Notenskala!$D$4:$E$9,2,TRUE),"") ->  | F19: 0
B20: 15 | C20: ='Semester 1'!C17 -> Schüler 15 | D20: =IFERROR(VLOOKUP(E20,Notenskala!$D$4:$E$9,2,TRUE),"") ->  | F20: 0
B21: 16 | C21: ='Semester 1'!C18 -> Schüler 16 | D21: =IFERROR(VLOOKUP(E21,Notenskala!$D$4:$E$9,2,TRUE),"") ->  | F21: 0
B22: 17 | C22: ='Semester 1'!C19 -> Schüler 17 | D22: =IFERROR(VLOOKUP(E22,Notenskala!$D$4:$E$9,2,TRUE),"") ->  | F22: 0
B23: 18 | C23: ='Semester 1'!C20 -> Schüler 18 | D23: =IFERROR(VLOOKUP(E23,Notenskala!$D$4:$E$9,2,TRUE),"") ->  | F23: 0
B24: 19 | C24: ='Semester 1'!C21 -> Schüler 19 | D24: =IFERROR(VLOOKUP(E24,Notenskala!$D$4:$E$9,2,TRUE),"") ->  | F24: 0
B25: 20 | C25: ='Semester 1'!C22 -> Schüler 20 | D25: =IFERROR(VLOOKUP(E25,Notenskala!$D$4:$E$9,2,TRUE),"") ->  | F25: 0
B26: 21 | C26: ='Semester 1'!C23 -> Schüler 21 | D26: =IFERROR(VLOOKUP(E26,Notenskala!$D$4:$E$9,2,TRUE),"") ->  | F26: 0
B27: 22 | C27: ='Semester 1'!C24 -> Schüler 22 | D27: =IFERROR(VLOOKUP(E27,Notenskala!$D$4:$E$9,2,TRUE),"") ->  | F27: 0
B28: 23 | C28: ='Semester 1'!C25 ->  | D28: =IFERROR(VLOOKUP(E28,Notenskala!$D$4:$E$9,2,TRUE),"") ->  | F28: 0
B29: 24 | C29: ='Semester 1'!C26 ->  | D29: =IFERROR(VLOOKUP(E29,Notenskala!$D$4:$E$9,2,TRUE),"") ->  | F29: 0
B30: 25 | C30: ='Semester 1'!C27 ->  | D30: =IFERROR(VLOOKUP(E30,Notenskala!$D$4:$E$9,2,TRUE),"") ->  | F30: 0
C31: Ø | D31: =IFERROR(AVERAGEIF(D6:D30,">0"),"") ->  | E31: =IFERROR(AVERAGEIF(E6:E30,">0"),"") -> 

Sheet Heft 2
A1: zurück
B2: Nr. | C2: Name | D2: Heft | E2: Summe | F2: 2025-06-22 | G2: Notizen | H2: Datum | I2: Notizen | J2: 2025-01-29 | K2: Notizen | L2: 2025-01-20 | M2: Notizen
B3: 1 | C3: ='Semester 1'!C3 -> Schüler 1 | D3: =IFERROR(VLOOKUP(E3,Notenskala!$D$4:$E$9,2,TRUE),"") ->  | E3: =IFERROR(SUM(F3,H3)/COUNTA(F3,H3),"") -> 
B4: 2 | C4: ='Semester 1'!C4 -> Schüler 2 | D4: =IFERROR(VLOOKUP(E4,Notenskala!$D$4:$E$9,2,TRUE),"") ->  | E4: =IFERROR(SUM(F4,H4)/COUNTA(F4,H4),"") -> 
B5: 3 | C5: ='Semester 1'!C5 -> Schüler 3 | D5: =IFERROR(VLOOKUP(E5,Notenskala!$D$4:$E$9,2,TRUE),"") -> 
B6: 4 | C6: ='Semester 1'!C6 -> Schüler 4 | D6: =IFERROR(VLOOKUP(E6,Notenskala!$D$4:$E$9,2,TRUE),"") -> 
B7: 5 | C7: ='Semester 1'!C7 -> Schüler 5 | D7: =IFERROR(VLOOKUP(E7,Notenskala!$D$4:$E$9,2,TRUE),"") -> 
B8: 6 | C8: ='Semester 1'!C8 -> Schüler 6 | D8: =IFERROR(VLOOKUP(E8,Notenskala!$D$4:$E$9,2,TRUE),"") -> 
B9: 7 | C9: ='Semester 1'!C9 -> Schüler 7 | D9: =IFERROR(VLOOKUP(E9,Notenskala!$D$4:$E$9,2,TRUE),"") -> 
B10: 8 | C10: ='Semester 1'!C10 -> Schüler 8 | D10: =IFERROR(VLOOKUP(E10,Notenskala!$D$4:$E$9,2,TRUE),"") -> 
B11: 9 | C11: ='Semester 1'!C11 -> Schüler 9 | D11: =IFERROR(VLOOKUP(E11,Notenskala!$D$4:$E$9,2,TRUE),"") -> 
B12: 10 | C12: ='Semester 1'!C12 -> Schüler 10 | D12: =IFERROR(VLOOKUP(E12,Notenskala!$D$4:$E$9,2,TRUE),"") -> 
B13: 11 | C13: ='Semester 1'!C13 -> Schüler 11 | D13: =IFERROR(VLOOKUP(E13,Notenskala!$D$4:$E$9,2,TRUE),"") -> 
B14: 12 | C14: ='Semester 1'!C14 -> Schüler 12 | D14: =IFERROR(VLOOKUP(E14,Notenskala!$D$4:$E$9,2,TRUE),"") -> 
B15: 13 | C15: ='Semester 1'!C15 -> Schüler 13 | D15: =IFERROR(VLOOKUP(E15,Notenskala!$D$4:$E$9,2,TRUE),"") -> 
B16: 14 | C16: ='Semester 1'!C16 -> Schüler 14 | D16: =IFERROR(VLOOKUP(E16,Notenskala!$D$4:$E$9,2,TRUE),"") -> 
B17: 15 | C17: ='Semester 1'!C17 -> Schüler 15 | D17: =IFERROR(VLOOKUP(E17,Notenskala!$D$4:$E$9,2,TRUE),"") -> 
B18: 16 | C18: ='Semester 1'!C18 -> Schüler 16 | D18: =IFERROR(VLOOKUP(E18,Notenskala!$D$4:$E$9,2,TRUE),"") -> 
B19: 17 | C19: ='Semester 1'!C19 -> Schüler 17 | D19: =IFERROR(VLOOKUP(E19,Notenskala!$D$4:$E$9,2,TRUE),"") -> 
B20: 18 | C20: ='Semester 1'!C20 -> Schüler 18 | D20: =IFERROR(VLOOKUP(E20,Notenskala!$D$4:$E$9,2,TRUE),"") -> 
B21: 19 | C21: ='Semester 1'!C21 -> Schüler 19 | D21: =IFERROR(VLOOKUP(E21,Notenskala!$D$4:$E$9,2,TRUE),"") -> 
B22: 20 | C22: ='Semester 1'!C22 -> Schüler 20 | D22: =IFERROR(VLOOKUP(E22,Notenskala!$D$4:$E$9,2,TRUE),"") -> 
B23: 21 | C23: ='Semester 1'!C23 -> Schüler 21 | D23: =IFERROR(VLOOKUP(E23,Notenskala!$D$4:$E$9,2,TRUE),"") -> 
B24: 22 | C24: ='Semester 1'!C24 -> Schüler 22 | D24: =IFERROR(VLOOKUP(E24,Notenskala!$D$4:$E$9,2,TRUE),"") -> 
B25: 23 | C25: ='Semester 1'!C25 ->  | D25: =IFERROR(VLOOKUP(E25,Notenskala!$D$4:$E$9,2,TRUE),"") -> 
B26: 24 | D26: =IFERROR(VLOOKUP(E26,Notenskala!$D$4:$E$9,2,TRUE),"") -> 
B27: 25 | D27: =IFERROR(VLOOKUP(E27,Notenskala!$D$4:$E$9,2,TRUE),"") -> 

Sheet Test 2.1
A1: zurück
C2: 2025-02-02 | D2: Punkte | G2: =SUM(H2:N2) -> 0 | P2: Verteilung:
B3: Nr. | C3: Name | D3: Test 3 | E3: Prozente | F3: Leer | G3: Summe | H3: A | I3: B | J3: C | K3: D | L3: E | M3: F | N3: G | P3: Sehr Gut | Q3: =COUNTIF($D$4:$D$28,"1") -> 0
B4: 1 | C4: =IF(Gesamtnote!C3=0,"",Gesamtnote!C3) -> Schüler 1 | D4: =IF(G4="K/NB","K/NB",_xlfn.XLOOKUP(G4,$R$15:$R$19,$P$15:$P$19,"",-1)) -> K/NB | E4: =IF(F4=FALSE,G4/$G$2,"K/NB") -> K/NB | F4: =SUMPRODUCT(--(H4:L4<>""))=0 -> TRUE | G4: =IF(F4=FALSE,SUM(H4:N4),"K/NB") -> K/NB | P4: Gut | Q4: =COUNTIF($D$4:$D$28,"2") -> 0
B5: 2 | C5: =IF(Gesamtnote!C4=0,"",Gesamtnote!C4) -> Schüler 2 | D5: =IF(G5="K/NB","K/NB",_xlfn.XLOOKUP(G5,$R$15:$R$19,$P$15:$P$19,"",-1)) -> K/NB | E5: =IF(F5=FALSE,G5/$G$2,"K/NB") -> K/NB | F5: =SUMPRODUCT(--(H5:L5<>""))=0 -> TRUE | G5: =IF(F5=FALSE,SUM(H5:N5),"K/NB") -> K/NB | P5: Befriedigend | Q5: =COUNTIF($D$4:$D$28,"3") -> 0
B6: 3 | C6: =IF(Gesamtnote!C5=0,"",Gesamtnote!C5) -> Schüler 3 | D6: K/NB | E6: K/NB | F6: =SUMPRODUCT(--(H6:L6<>""))=0 -> TRUE | G6: K/NB | P6: Genügend | Q6: =COUNTIF($D$4:$D$28,"4") -> 0
B7: 4 | C7: =IF(Gesamtnote!C6=0,"",Gesamtnote!C6) -> Schüler 4 | D7: K/NB | E7: K/NB | F7: =SUMPRODUCT(--(H7:L7<>""))=0 -> TRUE | G7: K/NB | P7: Nicht Genügend | Q7: =COUNTIF($D$4:$D$28,"5") -> 0
B8: 5 | C8: =IF(Gesamtnote!C7=0,"",Gesamtnote!C7) -> Schüler 5 | D8: K/NB | E8: K/NB | F8: =SUMPRODUCT(--(H8:L8<>""))=0 -> TRUE | G8: K/NB | P8: K / Nicht Beurteilt | Q8: =COUNTIF($D$4:$D$28,"K/NB") -> 25
B9: 6 | C9: =IF(Gesamtnote!C8=0,"",Gesamtnote!C8) -> Schüler 6 | D9: K/NB | E9: K/NB | F9: =SUMPRODUCT(--(H9:L9<>""))=0 -> TRUE | G9: K/NB
B10: 7 | C10: =IF(Gesamtnote!C9=0,"",Gesamtnote!C9) -> Schüler 7 | D10: K/NB | E10: K/NB | F10: =SUMPRODUCT(--(H10:L10<>""))=0 -> TRUE | G10: K/NB | P10: Positiv | Q10: =IFERROR(SUM(Q3:Q6)/SUM(Q3:Q7),"") -> 
B11: 8 | C11: =IF(Gesamtnote!C10=0,"",Gesamtnote!C10) -> Schüler 8 | D11: K/NB | E11: K/NB | F11: =SUMPRODUCT(--(H11:L11<>""))=0 -> TRUE | G11: K/NB | P11: Negativ | Q11: =IFERROR(Q7/SUM(Q3:Q7),"") -> 
B12: 9 | C12: =IF(Gesamtnote!C11=0,"",Gesamtnote!C11) -> Schüler 9 | D12: K/NB | E12: K/NB | F12: =SUMPRODUCT(--(H12:L12<>""))=0 -> TRUE | G12: K/NB
B13: 10 | C13: =IF(Gesamtnote!C12=0,"",Gesamtnote!C12) -> Schüler 10 | D13: K/NB | E13: K/NB | F13: =SUMPRODUCT(--(H13:L13<>""))=0 -> TRUE | G13: K/NB
B14: 11 | C14: =IF(Gesamtnote!C13=0,"",Gesamtnote!C13) -> Schüler 11 | D14: K/NB | E14: K/NB | F14: =SUMPRODUCT(--(H14:L14<>""))=0 -> TRUE | G14: K/NB | P14: Notenschlüssel: | Q14: Von | R14: Bis
B15: 12 | C15: =IF(Gesamtnote!C14=0,"",Gesamtnote!C14) -> Schüler 12 | D15: K/NB | E15: K/NB | F15: =SUMPRODUCT(--(H15:L15<>""))=0 -> TRUE | G15: K/NB | P15: 1 | Q15: =G2 -> 0 | R15: =MROUND($G$2*Notenskala!$D$9,0.5) -> 0
B16: 13 | C16: =IF(Gesamtnote!C15=0,"",Gesamtnote!C15) -> Schüler 13 | D16: K/NB | E16: K/NB | F16: =SUMPRODUCT(--(H16:L16<>""))=0 -> TRUE | G16: K/NB | P16: 2 | Q16: =R15-0.5 -> -0.5 | R16: =MROUND($G$2*Notenskala!$D$8,0.5) -> 0
B17: 14 | C17: =IF(Gesamtnote!C16=0,"",Gesamtnote!C16) -> Schüler 14 | D17: K/NB | E17: K/NB | F17: =SUMPRODUCT(--(H17:L17<>""))=0 -> TRUE | G17: K/NB | P17: 3 | Q17: =R16-0.5 -> -0.5 | R17: =MROUND($G$2*Notenskala!$D$7,0.5) -> 0
B18: 15 | C18: =IF(Gesamtnote!C17=0,"",Gesamtnote!C17) -> Schüler 15 | D18: K/NB | E18: K/NB | F18: =SUMPRODUCT(--(H18:L18<>""))=0 -> TRUE | G18: K/NB | P18: 4 | Q18: -0.5 | R18: =MROUND($G$2*Notenskala!$D$6,0.5) -> 0
B19: 16 | C19: =IF(Gesamtnote!C18=0,"",Gesamtnote!C18) -> Schüler 16 | D19: K/NB | E19: K/NB | F19: =SUMPRODUCT(--(H19:L19<>""))=0 -> TRUE | G19: K/NB | P19: 5 | Q19: -0.5 | R19: =MROUND($G$2*Notenskala!$D$5,0.5) -> 0
B20: 17 | C20: =IF(Gesamtnote!C19=0,"",Gesamtnote!C19) -> Schüler 17 | D20: K/NB | E20: K/NB | F20: =SUMPRODUCT(--(H20:L20<>""))=0 -> TRUE | G20: K/NB
B21: 18 | C21: =IF(Gesamtnote!C20=0,"",Gesamtnote!C20) -> Schüler 18 | D21: K/NB | E21: K/NB | F21: =SUMPRODUCT(--(H21:L21<>""))=0 -> TRUE | G21: K/NB
B22: 19 | C22: =IF(Gesamtnote!C21=0,"",Gesamtnote!C21) -> Schüler 19 | D22: K/NB | E22: K/NB | F22: =SUMPRODUCT(--(H22:L22<>""))=0 -> TRUE | G22: K/NB
B23: 20 | C23: =IF(Gesamtnote!C22=0,"",Gesamtnote!C22) -> Schüler 20 | D23: K/NB | E23: K/NB | F23: =SUMPRODUCT(--(H23:L23<>""))=0 -> TRUE | G23: K/NB
B24: 21 | C24: =IF(Gesamtnote!C23=0,"",Gesamtnote!C23) -> Schüler 21 | D24: K/NB | E24: K/NB | F24: =SUMPRODUCT(--(H24:L24<>""))=0 -> TRUE | G24: K/NB
B25: 22 | C25: =IF(Gesamtnote!C24=0,"",Gesamtnote!C24) -> Schüler 22 | D25: K/NB | E25: K/NB | F25: =SUMPRODUCT(--(H25:L25<>""))=0 -> TRUE | G25: K/NB
B26: 23 | C26: =IF(Gesamtnote!C25=0,"",Gesamtnote!C25) ->  | D26: K/NB | E26: K/NB | F26: =SUMPRODUCT(--(H26:L26<>""))=0 -> TRUE | G26: K/NB
B27: 24 | C27: =IF(Gesamtnote!C26=0,"",Gesamtnote!C26) ->  | D27: K/NB | E27: K/NB | F27: =SUMPRODUCT(--(H27:L27<>""))=0 -> TRUE | G27: K/NB
B28: 25 | C28: =IF(Gesamtnote!C27=0,"",Gesamtnote!C27) ->  | D28: K/NB | E28: K/NB | F28: =SUMPRODUCT(--(H28:L28<>""))=0 -> TRUE | G28: K/NB
C29: Ø | D29: =IFERROR(AVERAGEIF(D4:D28,"<>",D4:D28),"") ->  | E29: =IFERROR(AVERAGEIF(E4:E28,"<>",E4:E28),"") -> 

Sheet Test 2.2
A1: zurück
C2: 2025-02-02 | D2: Punkte | G2: =SUM(H2:N2) -> 0 | P2: Verteilung:
B3: Nr. | C3: Name | D3: Test 4 | E3: Prozente | F3: Leer | G3: Summe | H3: A | I3: B | J3: C | K3: D | L3: E | M3: F | N3: G | P3: Sehr Gut | Q3: =COUNTIF($D$4:$D$28,"1") -> 0
B4: 1 | C4: =IF(Gesamtnote!C3=0,"",Gesamtnote!C3) -> Schüler 1 | D4: =IF(G4="K/NB","K/NB",_xlfn.XLOOKUP(G4,$R$15:$R$19,$P$15:$P$19,"",-1)) -> K/NB | E4: =IF(F4=FALSE,G4/$G$2,"K/NB") -> K/NB | F4: =SUMPRODUCT(--(H4:L4<>""))=0 -> TRUE | G4: =IF(F4=FALSE,SUM(H4:N4),"K/NB") -> K/NB | P4: Gut | Q4: =COUNTIF($D$4:$D$28,"2") -> 0
B5: 2 | C5: =IF(Gesamtnote!C4=0,"",Gesamtnote!C4) -> Schüler 2 | D5: =IF(G5="K/NB","K/NB",_xlfn.XLOOKUP(G5,$R$15:$R$19,$P$15:$P$19,"",-1)) -> K/NB | E5: =IF(F5=FALSE,G5/$G$2,"K/NB") -> K/NB | F5: =SUMPRODUCT(--(H5:L5<>""))=0 -> TRUE | G5: =IF(F5=FALSE,SUM(H5:N5),"K/NB") -> K/NB | P5: Befriedigend | Q5: =COUNTIF($D$4:$D$28,"3") -> 0
B6: 3 | C6: =IF(Gesamtnote!C5=0,"",Gesamtnote!C5) -> Schüler 3 | D6: K/NB | E6: K/NB | F6: =SUMPRODUCT(--(H6:L6<>""))=0 -> TRUE | G6: K/NB | P6: Genügend | Q6: =COUNTIF($D$4:$D$28,"4") -> 0
B7: 4 | C7: =IF(Gesamtnote!C6=0,"",Gesamtnote!C6) -> Schüler 4 | D7: K/NB | E7: K/NB | F7: =SUMPRODUCT(--(H7:L7<>""))=0 -> TRUE | G7: K/NB | P7: Nicht Genügend | Q7: =COUNTIF($D$4:$D$28,"5") -> 0
B8: 5 | C8: =IF(Gesamtnote!C7=0,"",Gesamtnote!C7) -> Schüler 5 | D8: K/NB | E8: K/NB | F8: =SUMPRODUCT(--(H8:L8<>""))=0 -> TRUE | G8: K/NB | P8: K / Nicht Beurteilt | Q8: =COUNTIF($D$4:$D$28,"K/NB") -> 25
B9: 6 | C9: =IF(Gesamtnote!C8=0,"",Gesamtnote!C8) -> Schüler 6 | D9: K/NB | E9: K/NB | F9: =SUMPRODUCT(--(H9:L9<>""))=0 -> TRUE | G9: K/NB
B10: 7 | C10: =IF(Gesamtnote!C9=0,"",Gesamtnote!C9) -> Schüler 7 | D10: K/NB | E10: K/NB | F10: =SUMPRODUCT(--(H10:L10<>""))=0 -> TRUE | G10: K/NB | P10: Positiv | Q10: =IFERROR(SUM(Q3:Q6)/SUM(Q3:Q7),"") -> 
B11: 8 | C11: =IF(Gesamtnote!C10=0,"",Gesamtnote!C10) -> Schüler 8 | D11: K/NB | E11: K/NB | F11: =SUMPRODUCT(--(H11:L11<>""))=0 -> TRUE | G11: K/NB | P11: Negativ | Q11: =IFERROR(Q7/SUM(Q3:Q7),"") -> 
B12: 9 | C12: =IF(Gesamtnote!C11=0,"",Gesamtnote!C11) -> Schüler 9 | D12: K/NB | E12: K/NB | F12: =SUMPRODUCT(--(H12:L12<>""))=0 -> TRUE | G12: K/NB
B13: 10 | C13: =IF(Gesamtnote!C12=0,"",Gesamtnote!C12) -> Schüler 10 | D13: K/NB | E13: K/NB | F13: =SUMPRODUCT(--(H13:L13<>""))=0 -> TRUE | G13: K/NB
B14: 11 | C14: =IF(Gesamtnote!C13=0,"",Gesamtnote!C13) -> Schüler 11 | D14: K/NB | E14: K/NB | F14: =SUMPRODUCT(--(H14:L14<>""))=0 -> TRUE | G14: K/NB | P14: Notenschlüssel: | Q14: Von | R14: Bis
B15: 12 | C15: =IF(Gesamtnote!C14=0,"",Gesamtnote!C14) -> Schüler 12 | D15: K/NB | E15: K/NB | F15: =SUMPRODUCT(--(H15:L15<>""))=0 -> TRUE | G15: K/NB | P15: 1 | Q15: =G2 -> 0 | R15: =MROUND($G$2*Notenskala!$D$9,0.5) -> 0
B16: 13 | C16: =IF(Gesamtnote!C15=0,"",Gesamtnote!C15) -> Schüler 13 | D16: K/NB | E16: K/NB | F16: =SUMPRODUCT(--(H16:L16<>""))=0 -> TRUE | G16: K/NB | P16: 2 | Q16: =R15-0.5 -> -0.5 | R16: =MROUND($G$2*Notenskala!$D$8,0.5) -> 0
B17: 14 | C17: =IF(Gesamtnote!C16=0,"",Gesamtnote!C16) -> Schüler 14 | D17: K/NB | E17: K/NB | F17: =SUMPRODUCT(--(H17:L17<>""))=0 -> TRUE | G17: K/NB | P17: 3 | Q17: =R16-0.5 -> -0.5 | R17: =MROUND($G$2*Notenskala!$D$7,0.5) -> 0
B18: 15 | C18: =IF(Gesamtnote!C17=0,"",Gesamtnote!C17) -> Schüler 15 | D18: K/NB | E18: K/NB | F18: =SUMPRODUCT(--(H18:L18<>""))=0 -> TRUE | G18: K/NB | P18: 4 | Q18: -0.5 | R18: =MROUND($G$2*Notenskala!$D$6,0.5) -> 0
B19: 16 | C19: =IF(Gesamtnote!C18=0,"",Gesamtnote!C18) -> Schüler 16 | D19: K/NB | E19: K/NB | F19: =SUMPRODUCT(--(H19:L19<>""))=0 -> TRUE | G19: K/NB | P19: 5 | Q19: -0.5 | R19: =MROUND($G$2*Notenskala!$D$5,0.5) -> 0
B20: 17 | C20: =IF(Gesamtnote!C19=0,"",Gesamtnote!C19) -> Schüler 17 | D20: K/NB | E20: K/NB | F20: =SUMPRODUCT(--(H20:L20<>""))=0 -> TRUE | G20: K/NB
B21: 18 | C21: =IF(Gesamtnote!C20=0,"",Gesamtnote!C20) -> Schüler 18 | D21: K/NB | E21: K/NB | F21: =SUMPRODUCT(--(H21:L21<>""))=0 -> TRUE | G21: K/NB
B22: 19 | C22: =IF(Gesamtnote!C21=0,"",Gesamtnote!C21) -> Schüler 19 | D22: K/NB | E22: K/NB | F22: =SUMPRODUCT(--(H22:L22<>""))=0 -> TRUE | G22: K/NB
B23: 20 | C23: =IF(Gesamtnote!C22=0,"",Gesamtnote!C22) -> Schüler 20 | D23: K/NB | E23: K/NB | F23: =SUMPRODUCT(--(H23:L23<>""))=0 -> TRUE | G23: K/NB
B24: 21 | C24: =IF(Gesamtnote!C23=0,"",Gesamtnote!C23) -> Schüler 21 | D24: K/NB | E24: K/NB | F24: =SUMPRODUCT(--(H24:L24<>""))=0 -> TRUE | G24: K/NB
B25: 22 | C25: =IF(Gesamtnote!C24=0,"",Gesamtnote!C24) -> Schüler 22 | D25: K/NB | E25: K/NB | F25: =SUMPRODUCT(--(H25:L25<>""))=0 -> TRUE | G25: K/NB
B26: 23 | C26: =IF(Gesamtnote!C25=0,"",Gesamtnote!C25) ->  | D26: K/NB | E26: K/NB | F26: =SUMPRODUCT(--(H26:L26<>""))=0 -> TRUE | G26: K/NB
B27: 24 | C27: =IF(Gesamtnote!C26=0,"",Gesamtnote!C26) ->  | D27: K/NB | E27: K/NB | F27: =SUMPRODUCT(--(H27:L27<>""))=0 -> TRUE | G27: K/NB
B28: 25 | C28: =IF(Gesamtnote!C27=0,"",Gesamtnote!C27) ->  | D28: K/NB | E28: K/NB | F28: =SUMPRODUCT(--(H28:L28<>""))=0 -> TRUE | G28: K/NB
C29: Ø | D29: =IFERROR(AVERAGEIF(D4:D28,"<>",D4:D28),"") ->  | E29: =IFERROR(AVERAGEIF(E4:E28,"<>",E4:E28),"") -> 
